Workbook

Sheet H. Ayuntamiento
A10: LISTA DE RAYA
A11: PERIODO 07 DEL 01 DE JULIO AL 31 DE JULIO 2026
A12: MUNICIPIO JILOTLAN DE LOS DOLORES, JALISCO
A13: NO EMPLEADO | B13: NOMBRE | E13: FECHA DE INGRESO | F13: DEPARTAMENTO | G13: PUESTO | H13: SUELDO NETO | I13: FIRMA
A14: 1 | B14: Federico Zepeda Mendoza | E14: 2024-10-15 | F14: Direcciòn de Servicios Pùblicos | G14: Ayudante | H14: $8,000.00
E15: TOTAL GENERAL | H15: =SUM(H14:H14) -> $8,000.00
B18: HISEL GONZALEZ MENDOZA | F18: EDUARDO ROLON CHAVEZ
B19: H.AYUNTAMIENTO JILOTLAN DE LOS DOLORES | F19: H. AUNTAMIENTO DE JILOTLAN DE LOS DOLORES
A26: LISTA DE RAYA
A27: PERIODO 07 DEL 01 DE JULIO AL 31 DE JULIO 2026
A28: MUNICIPIO JILOTLAN DE LOS DOLORES, JALISCO
A29: NO EMPLEADO | B29: NOMBRE | E29: FECHA DE INGRESO | F29: DEPARTAMENTO | G29: PUESTO | H29: SUEDO NETO | I29: FIRMA
A30: 1 | B30: Álvaro Garibay Castro | E30: 2024-10-01 | F30: Direcciòn de Obras Pùblicas | G30: Director | H30: $17,000.00
A31: 2 | B31: Pablo Eduardo Garibay Castro | E31: 2024-10-01 | F31: Direcciòn de Obras Pùblicas | G31: Supervisor | H31: $15,000.00
A32: 3 | B32: Juan Carlos Chavez Vazquez | E32: 2024-10-01 | F32: Direcciòn de Obras Pùblicas | G32: Supervisor | H32: $16,000.00
A33: 4 | B33: Jeronimo Sandoval Garcia | E33: 2024-12-01 | F33: Direcciòn de Obras Pùblicas | G33: Arquitecto | H33: $13,000.00
A34: 5 | B34: Norberto Orozco Mendoza | E34: 2024-10-01 | F34: Direcciòn de Obras Pùblicas | G34: Ayudante | H34: $7,000.00
E37: TOTAL GENERAL | H37: =SUM(H30:H36) -> $68,000.00
A42: ______________________________________ | B42: _________________________ | E42: _________________________________ | G42: ___________________________________
B43: HISEL GONZALEZ MENDOZA | E43: Alvaro Garibay Castro | G43: EDUARDO ROLON CHAVEZ
B44: PRESIDENTA | E44: Director de Obras Publicas | G44: TESORERO MUNICIPAL
B45: H. AYUNTAMIENTO DE JILOTLAN DE LOS DOLORES | E45: H. Ayuntamiento de Jilotlán de los dolores | G45: H. AYUNTAMIENTO DE JILOTLAN DE LOS DOLORES
A54: MUNICIPIO DE JILOTLÁN DE LOS DOLORES, JALISCO
A55: LISTA DE RAYA
A56: PERIODO 07 DEL 01 DE JULIO AL 31 DE JULIO 2026
A58: NO EMPLEADO | B58: NOMBRE | E58: FECHA DE INGRESO | F58: DEPARTAMENTO | G58: PUESTO | H58: SUELDO NETO | I58: FIRMA
A59: 1 | B59: Luis Manuel Arias Sandoval | E59: 2024-10-01 | F59: Todos los Departamentos | G59: Multifuncionales | H59: $10,000.00
A60: 2 | B60: Jose Alfredo Serrano Farias | E60: 2024-10-15 | F60: Todos los Departamentos | G60: Multifuncionales | H60: $10,000.00
E62: TOTAL GENERAL | H62: =SUM(H58:H61) -> $20,000.00
B65: HISEL GONZALEZ MENDOZA | G65: EDUARDO ROLON CHAVEZ
B66: PRESIDENTA | G66: TESORERO MUNICIPAL
B67: H. AYUNTAMIENTO DE JILOTLAN DE LOS DOLORES | G67: H. AYUNTAMIENTO DE JILOTLAN DE LOS DOLORES
A74: MUNICIPIO DE JILOTLÁN DE LOS DOLORES, JALISCO
A75: LISTA DE RAYA
A76: PERIODO 07 DEL 01 DE JULIO AL 31 DE JULIO 2026
A78: NO EMPLEADO | B78: NOMBRE | E78: FECHA DE INGRESO | F78: DEPARTAMENTO | G78: PUESTO | H78: SUELDO NETO | I78: FIRMA
A79: 1 | B79: Jorge Antonio Nava Solorzano | E79: 2024-10-01 | F79: Presidencia | G79: Chofer | H79: $15,000.00
A80: 2 | B80: Ricardo Orozco Vargas | E80: 2024-10-01 | F80: Presidencia | G80: Chofer Particular | H80: $10,000.00
E82: TOTAL GENERAL | H82: =SUM(H75:H81) -> $25,000.00
B86: HISEL GONZALEZ MENDOZA | G86: EDUARDO ROLON CHAVEZ
B87: PRESIDENTA | G87: TESORERO MUICIPAL
B88: H. AYUNTAMIENTO DE JILOTLAN DE LOS DOLORES | G88: H. AYUNTAMIENTO DE JILOTLAN DE LOS DOLORES
A93: MUNICIPIO DE JILOTLÁN DE LOS DOLORES, JALISCO
A94: LISTA DE RAYA
A95: PERIODO 07 DEL 01 DE JULIO AL 31 DE JULIO 2026
A97: NO EMPLEADO | B97: NOMBRE | E97: FECHA DE INGRESO | F97: DEPARTAMENTO | G97: PUESTO | H97: SUELDO NETO | I97: FIRMA
A98: 1 | B98: Pedro Hernandez Sotarriba | E98: 2024-10-01 | F98: Dirección de Comunicación | G98: Ayudante | H98: $7,000.00
E100: TOTAL GENERAL | H100: =SUM(H97:H99) -> $7,000.00
B103: HISEL GONZALEZ MENDOZA | G103: EDUARDO ROLON CHAVEZ
B104: PRESIDENTA | G104: TESORERO MUNICIPAL
B105: H. AYUNTAMIENTO DE JILOTLAN DE LOS DOLORES | G105: H. AYUNTAMIENTO DE JILOTLAN DE LOS DOLORES
A116: MUNICIPIO DE JILOTLÁN DE LOS DOLORES, JALISCO
A117: LISTA DE RAYA
A118: PERIODO 07 DEL 01 DE JULIO AL 31 DE JULIO 2026
A120: NO EMPLEADO | B120: NOMBRE | E120: FECHA DE INGRESO | F120: DEPARTAMENTO | G120: PUESTO | H120: SUELDO NETO | I120: FIRMA
A121: 1 | B121: Abel Orozco Rodriguez | E121: 2024-10-01 | F121: Jefatura de Agua Potable | G121: Enc de Mantto y Cloracion Mpal | H121: $12,000.00
A122: 2 | B122: Guzmaro Sandoval Garcia | E122: 2024-10-01 | F122: Jefatura de Agua Potable | G122: Ayudante | H122: $9,000.00
E123: TOTAL GENERAL | H123: =SUM(H121:H122) -> $21,000.00
B127: HISEL GONZALEZ MENDOZA | G127: EDUARDO ROLON CHAVEZ
B128: PRESIDENTA | G128: TESORERO MUNICIPAL
B129: H. AYUNTAMIENTO DE JILOTLAN DE LOS DOLORES | G129: H. AYUNTAMIENTO DE JILOTLAN DE LOS DOLORES
A136: LISTA DE RAYA
A137: PERIODO 07 DEL 01 DE JULIO AL 31 DE JULIO 2026
A138: MUNICIPIO JILOTLAN DE LOS DOLORES, JALISCO
A139: NO EMPLEADO | B139: NOMBRE | E139: FECHA DE INGRESO | F139: DEPARTAMENTO | G139: PUESTO | H139: SUEDO NETO | I139: FIRMA
A140: 1 | B140: Juan Melitón Chavez Alvarez | E140: 2024-10-01 | F140: Jefatura de Sericios Generales Y Cultura de Agua | G140: Recolector de Basura | H140: $9,000.00
A141: 2 | B141: Salomon Garibay Ortega | E141: 2024-10-01 | F141: Jefatura de Sericios Generales Y Cultura de Agua | G141: Recolector de Cartòn | H141: $7,000.00
A142: 3 | B142: Juan Carlos Garcia Gonzalez | E142: 2024-10-01 | F142: Jefatura de Sericios Generales Y Cultura de Agua | G142: Auxiliar | H142: $7,000.00
E145: TOTAL GENERAL | H145: =SUM(H140:H144) -> $23,000.00
B148: HISEL GONZALEZ MENDOZA | F148: EDUARDO ROLON CHAVEZ
B149: PRESIDENTA | F149: TESORERO MUNICIPAL
B150: H.AYUNTAMIENTO JILOTLAN DE LOS DOLORES | F150: H. AUNTAMIENTO DE JILOTLAN DE LOS DOLORES
A161: LISTA DE RAYA
A162: PERIODO 07 DEL 01 DE JULIO AL 31 DE JULIO 2026
A163: MUNICIPIO JILOTLAN DE LOS DOLORES, JALISCO
A164: NO EMPLEADO | B164: NOMBRE | E164: FECHA DE INGRESO | F164: DEPARTAMENTO | G164: PUESTO | H164: SUEDO NETO | I164: FIRMA
A165: 1 | B165: Israel Nuñez Buitron | E165: 2024-10-01 | F165: Alumbrado Publico | G165: Encargado | H165: $8,000.00
A166: 2 | B166: Luis Miguel Rodriguez Rorigez | E166: 2024-10-01 | F166: Alumbrado Publico | G166: Auxiliar | H166: $8,000.00
E168: TOTAL GENERAL | H168: =SUM(H165:H167) -> $16,000.00
B171: HISEL GONZALEZ MENDOZA | F171: EDUARDO ROLON CHAVEZ
B172: PRESIDENTA | F172: TESORERO MUNICIPAL
B173: H.AYUNTAMIENTO JILOTLAN DE LOS DOLORES | F173: H. AUNTAMIENTO DE JILOTLAN DE LOS DOLORES
A182: MUNICIPIO DE JILOTLÁN DE LOS DOLORES, JALISCO
A183: LISTA DE RAYA
A184: PERIODO 07 DEL 01 DE JULIO AL 31 DE JULIO 2026
A186: NO EMPLEADO | B186: NOMBRE | E186: FECHA DE INGRESO | F186: DEPARTAMENTO | G186: PUESTO | H186: SUELDO NETO | I186: FIRMA
A187: 1 | B187: Israel Padilla Cardenas | E187: 2024-10-01 | F187: Centro de Salud | G187: Chofer | H187: $8,000.00
E188: TOTAL GENERAL | H188: =SUM(H186:H187) -> $8,000.00
B191: HISEL GONZALEZ MENDOZA | G191: EDUARDO ROLON CHAVEZ
B192: PRESIDENTA | G192: TESORERO MUNICIPAL
B193: H. AYUNTAMIENTO DE JILOTLAN DE LOS DOLORES | G193: H. AYUNTAMIENTO DE JILOTLAN DE LOS DOLORES
A201: LISTA DE RAYA
A202: PERIODO 07 DEL 01 DE JULIO AL 31 DE JULIO 2026
A203: MUNICIPIO JILOTLAN DE LOS DOLORES, JALISCO
A204: NO EMPLEADO | B204: NOMBRE | E204: FECHA DE INGRESO | F204: DEPARTAMENTO | G204: PUESTO | H204: SUEDO NETO | I204: FIRMA
A205: 1 | B205: Jaime Sandoval Godínez | E205: 2025-04-28 | F205: Dirección de Maquinaria Pesada | G205: Director de Maquinaria | H205: $16,000.00
A206: 2 | B206: Mauro Nieto Martínez | E206: 2025-03-31 | F206: Dirección de Maquinaria Pesada | G206: Operador de Màquinaria | H206: $16,000.00
A207: 3 | B207: MOYSES NOE GOMEZ MARTINEZ | E207: 2026-03-01 | F207: Dirección de Maquinaria Pesada | G207: Ayudante de Maquinaria | H207: $8,000.00
E210: TOTAL GENERAL | H210: =SUM(H205:H209) -> $40,000.00
B213: HISEL GONZALEZ MENDOZA | G213: EDUARDO ROLON CHAVEZ
B214: PRESIDENTA | G214: TESORERO MUNICIPAL
B215: H. AYUNTAMIENTO DE JILOTLAN DE LOS DOLORES | G215: H. AYUNTAMIENTO DE JILOTLAN DE LOS DOLORES
A226: MUNICIPIO DE JILOTLÁN DE LOS DOLORES, JALISCO
A227: LISTA DE RAYA
A228: PERIODO 07 DEL 01 DE JULIO AL 31 DE JULIO 2026
A230: NO EMPLEADO | B230: NOMBRE | E230: FECHA DE INGRESO | F230: DEPARTAMENTO | G230: PUESTO | H230: SUELDO NETO | I230: FIRMA
A231: 1 | B231: J. Jesús Martínez Castrejón | E231: 2025-12-01 | F231: Dirección de Rastro Municipal | G231: Auxiliar | H231: $13,000.00
E232: TOTAL GENERAL | H232: =SUM(H231:H231) -> $13,000.00
B235: HISEL GONZALEZ MENDOZA | G235: EDUARDO ROLON CHAVEZ
B236: PRESIDENTA | G236: TESORERO MUNICIPAL
B237: H. AYUNTAMIENTO DE JILOTLAN DE LOS DOLORES | G237: H. AYUNTAMIENTO DE JILOTLAN DE LOS DOLORES
A250: LISTA DE RAYA
A251: PERIODO 07 DEL 01 DE JULIO AL 31 DE JULIO 2026
A252: MUNICIPIO JILOTLAN DE LOS DOLORES, JALISCO
A254: NO EMPLEADO | B254: NOMBRE | E254: FECHA DE INGRESO | F254: DEPARTAMENTO | G254: PUESTO | H254: SUELDO NETO | I254: FIRMA
A255: 1 | B255: Yuliana Margarita Moreno Gonzalez | E255: 2024-10-15 | F255: Direcciòn de Turismo | G255: Ayudante | H255: $7,000.00
E256: TOTAL GENERAL | H256: =SUM(H255) -> $7,000.00
B259: HISEL GONZALEZ MENDOZA | F259: EDUARDO ROLON CHAVEZ
B260: PRESIDENTA | F260: TESORERO MUNCIPAL
B261: H.AYUNTAMIENTO JILOTLAN DE LOS DOLORES | F261: H.AYUNTAMIENTO DE JILOTLAN DE LOS DOLORES
A269: MUNICIPIO DE JILOTLÁN DE LOS DOLORES, JALISCO
A270: LISTA DE RAYA
A271: PERIODO 07 DEL 01 DE JULIO AL 31 DE JULIO 2026
A273: NO EMPLEADO | B273: NOMBRE | E273: FECHA DE INGRESO | F273: DEPARTAMENTO | G273: PUESTO | H273: SUELDO NETO | I273: FIRMA
A274: 1 | B274: Jonathan Michel Vera Beltran | E274: 2026-03-15 | F274: Sindicatura | G274: Asesor Juridico | H274: $16,000.00
A275: 2 | B275: Otoniel Macias vargas | E275: 2026-03-15 | F275: Sindicatura | G275: Multifuncional | H275: $10,000.00
E276: TOTAL GENERAL | H276: =SUM(H274:H275) -> $26,000.00
B279: HISEL GONZALEZ MENDOZA | G279: EDUARDO ROLON CHAVEZ
B280: PRESIDENTA | G280: TESORERO MUNICIPAL
B281: H. AYUNTAMIENTO DE JILOTLAN DE LOS DOLORES | G281: H. AYUNTAMIENTO DE JILOTLAN DE LOS DOLORES
A288: MUNICIPIO DE JILOTLÁN DE LOS DOLORES, JALISCO
A289: LISTA DE RAYA
A290: PERIODO 07 DEL 01 DE JULIO AL 31 DE JULIO 2026
A292: NO EMPLEADO | B292: NOMBRE | E292: FECHA DE INGRESO | F292: DEPARTAMENTO | G292: PUESTO | H292: SUELDO NETO | I292: FIRMA
A293: 1 | B293: Jose Adan Ramirez Montiel | E293: 2026-05-01 | F293: Presidencia | G293: Asesor | H293: $15,000.00
H294: =SUM(H293:H293) -> $15,000.00
B297: HISEL GONZALEZ MENDOZA | G297: EDUARDO ROLON CHAVEZ
B298: PRESIDENTA | G298: TESORERO MUNICIPAL
B299: H. AYUNTAMIENTO DE JILOTLAN DE LOS DOLORES | G299: H. AYUNTAMIENTO DE JILOTLAN DE LOS DOLORES

Sheet Choferes
A3: LISTA DE RAYA
A4: PERIODO 07 DEL 01 DE JULIO AL 31 DE JULIO 2026
A5: MUNICIPIO JILOTLAN DE LOS DOLORES, JALISCO
A6: NO EMPLEADO | B6: NOMBRE | E6: FECHA DE INGRESO | F6: DEPARTAMENTO | G6: PUESTO | H6: SUEDO NETO | I6: FIRMA
A7: 1 | B7: Elías Mendoza Godínez | E7: 2024-10-01 | F7: Choferes Municipales | G7: Las Higueras | H7: $7,000.00
A8: 2 | B8: J. Jesùs Perez Mendoza | E8: 2024-10-01 | F8: Choferes Municipales | G8: Jilotlán | H8: $7,000.00
E9: TOTAL GENERAL | H9: =SUM(H7:H8) -> $14,000.00
B12: HISEL GONZALEZ MENDOZA | F12: EDUARDO ROLON CHAVEZ
B13: PRESIDENTA | F13: TESORERO MUNICIPAL
B14: H.AYUNTAMIENTO JILOTLAN DE LOS DOLORES | F14: H. AUNTAMIENTO DE JILOTLAN DE LOS DOLORES

Sheet PAGO DE TRANSFERENCIA
A4: PAGO DE TRANSFERENCIA
A5: PERIODO 07 DEL 01 DE JULIO AL 31 DE JULIO 2026
A6: MUNICIPIO JILOTLAN DE LOS DOLORES, JALISCO
A7: NO EMPLEADO | B7: NOMBRE | E7: FECHA DE INGRESO | F7: DEPARTAMENTO | G7: PUESTO | H7: SUELDO NETO | I7: FIRMA
A8: 1 | B8: Fernando Rodrìguez Valencia | E8: 2024-10-01 | F8: Direcciòn de Servicios Pùblicos | G8: Director | H8: $15,000.00
A9: 2 | B9: Pablo Garibay Melendrez | E9: 2024-10-15 | F9: Direcciòn de Servicios Pùblicos | G9: Chofer | H9: $10,000.00
A10: 3 | B10: Patricia Alejandra Lòpez Garcìa | E10: 2024-10-01 | F10: Direcciòn de Servicios Pùblicos | G10: Ayudante Administrativo | H10: $8,000.00
A11: 4 | B11: Edgar Alejandro Orozco Garibay | E11: 2024-10-02 | F11: Direcciòn de Servicios Pùblicos | G11: Aùxiliar | H11: $8,000.00
A12: 5 | B12: Cesar Jose Ortega Rodriguez | E12: 2024-10-15 | F12: Direcciòn de Servicios Pùblicos | G12: Auxiliar | H12: $7,000.00
A13: 6 | B13: Isidro Cardenas Garcia | E13: 2024-10-15 | F13: Direcciòn de Servicios Pùblicos | G13: Auxiliar | H13: $8,000.00
A14: 7 | B14: Victor Roberto Valencia Avina | E14: 2024-10-15 | F14: Dirección de Servicios Públicos | G14: Auxiliar | H14: $7,000.00
A15: 8 | B15: Mayra Sarely Mendoza Mendoza | E15: 2024-10-01 | F15: Dirección de Catastro | G15: Directora | H15: $13,000.00
A16: 9 | B16: Yessenia Rodrìguez Rodrìguez | E16: 2024-10-15 | F16: Dirección de Catastro | G16: Secretaria | H16: $10,000.00
A17: 10 | B17: Eduardo Mèndoza Sandoval | E17: 2024-10-01 | F17: Dirección de Catastro | G17: Ayudante | H17: $10,000.00
A18: 11 | B18: Josè Angel Orozco Martìnez | E18: 2024-10-01 | F18: Direcciòn de Deportes | G18: Director | H18: $10,000.00
A19: 12 | B19: Alfonso Sandoval Mendoza | E19: 2024-10-01 | F19: Direcciòn de Deportes | G19: Sub-director | H19: $10,000.00
A20: 13 | B20: Sandra Fabiola Serrano Farìas | E20: 2024-10-01 | F20: Direcciòn de Deportes | G20: Ayudante | H20: $7,000.00
A21: 14 | B21: Jesùs Eduardo Gònzalez Medina | E21: 2024-10-01 | F21: Direcciòn de Desarrollo Econòmico | G21: Director | H21: $12,000.00
A22: 15 | B22: Alberto Sanchez Mendoza | E22: 2024-10-15 | F22: Direcciòn de Desarrollo Econòmico | G22: Ayudante | H22: $7,000.00
A23: 16 | B23: Mayra Guadalupe Martinez Orozco | E23: 2024-10-01 | F23: Direcciòn de Ecologìa | G23: Directora | H23: $13,000.00
A24: 17 | B24: Yulissa Marlen Valencia Aviña | E24: 2024-10-15 | F24: Direcciòn de Ecologìa | G24: Ayudante | H24: $7,000.00
A25: 18 | B25: Javier Mendoza Orozco | E25: 2024-10-01 | F25: Direcciòn de Educaciòn | G25: Director | H25: $15,000.00
A26: 19 | B26: Elda Edith Martìnez Zepeda | E26: 2024-10-02 | F26: Direcciòn de Educaciòn | G26: Auxiliar | H26: $10,000.00
A27: 20 | B27: DALILA SÁNCHEZ MORFIN | E27: 2025-07-16 | F27: Educación | G27: Asesor Educativo | H27: $7,000.00
A28: 21 | B28: Irma Julissa Orozco Diaz | E28: 2024-10-01 | F28: Direcciòn de Educaciòn | G28: Ayudante | H28: $7,000.00
A29: 22 | B29: Jonatan Emanuel Montes de Oca Moreno | E29: 2024-10-01 | F29: Contraloria | G29: Encargado de Despacho | H29: $18,000.00
A30: 23 | B30: Viridiana de Jesùs Quiroz Nuñez | E30: 2024-10-01 | F30: Contraloria | G30: Auxiliar | H30: $10,000.00
A31: 24 | B31: Marìa Guadalupe Navarro Martìnez | E31: 2024-10-01 | F31: Direcciòn de Registro Civil | G31: Directora | H31: $12,000.00
A32: 25 | B32: Diana Laura Mèndoza Ràmos | E32: 2024-10-01 | F32: Direcciòn de Registro Civil | G32: Auxiliar Administrativo | H32: $11,000.00
A33: 26 | B33: Josseline Licea Silva | E33: 2024-10-15 | F33: Direccion de Registro Civil | G33: Ayudante | H33: $9,000.00
A34: 27 | B34: Sandra Luz Sandoval Isaìs | E34: 2024-10-01 | F34: Direcciòn de Turismo | G34: Directora | H34: $10,000.00
A35: 28 | B35: Julisa Garcìa Sandoval | E35: 2024-10-01 | F35: Direcciòn de Participaciòn Ciudadana | G35: Directora | H35: $10,000.00
A36: 29 | B36: Maria Esmeralda Navarro Orozco | E36: 2025-01-15 | F36: Direcciòn de Participaciòn Ciudadana | G36: Auxiliar | H36: $7,000.00
A37: 30 | B37: Ma del Carmèn Sandoval Vargas | E37: 2024-10-01 | F37: Eventos | G37: Directora | H37: $12,000.00
A38: 31 | B38: Ma. Guadalupe Alcaraz Cortes | E38: 2025-05-02 | F38: Eventos | G38: Auxiliar | H38: $8,000.00
A39: 32 | B39: Yoana Rolon Lopez | E39: 2024-10-15 | F39: Eventos | G39: Auxiliar | H39: $7,000.00
A40: 33 | B40: Ana Maria Jimenez Vaca | E40: 2024-10-01 | F40: Direcciòn Desarrollo Rural | G40: Directora | H40: $10,000.00
A41: 34 | B41: Miriam Mayte Cuevas Sandoval | E41: 2024-10-01 | F41: Direcciòn de Obras Pùblicas | G41: Subdirectora | H41: $15,000.00
A42: 35 | B42: Jorge Muñoz Mendoza | E42: 2025-09-01 | F42: Direcciòn de Obras Pùblicas | G42: Ayudante | H42: $10,000.00
A43: 36 | B43: Juan Pablo Martinez Mendoza | E43: 2026-02-16 | F43: Direcciòn de Obras Pùblicas | G43: Supervisor | H43: $10,000.00
A44: 37 | B44: Alejandro Cobián López | E44: 2024-10-01 | F44: Direcciòn de Obras Pùblicas | G44: Secretario | H44: $9,000.00
A45: 38 | B45: Candelario Aguilar Mendoza | E45: 2024-10-22 | F45: Direcciòn de Obras Pùblicas | G45: Albañil | H45: $8,000.00
A46: 39 | B46: Vanessa Alcaraz Sanchez | E46: 2024-10-01 | F46: Recepción y correos | G46: Encargada | H46: $8,000.00
A47: 40 | B47: Luis Manuel Contreras Barràgan | E47: 2024-10-01 | F47: Secretaria General | G47: Secretario General | H47: $20,000.00
A48: 41 | B48: Maria Karen Farias Cardenas | E48: 2024-10-01 | F48: Secretaria General | G48: Auxiliar Administrativo | H48: $11,500.00
A49: 42 | B49: Miguel Torres Mendoza | E49: 2024-10-01 | F49: Sistemas | G49: Encargado | H49: $12,000.00
A50: 43 | B50: Yudziman Alejandra Guillen Nuñez | E50: 2025-07-16 | F50: Sistemas | G50: Auxiliar | H50: $7,000.00
A51: 44 | B51: Gustavo Sànchez de Jesùs | E51: 2026-01-19 | F51: Sistemas | G51: Auxiliar | H51: $10,000.00
A52: 45 | B52: Veronica Alejandra Diaz Venegas | E52: 2024-10-01 | F52: Todos los Departamentos | G52: Multifuncionales | H52: $10,000.00
A53: 46 | B53: Miguel Alcaraz Cortes | E53: 2024-10-01 | F53: Todos los Departamentos | G53: Multifuncionales | H53: $10,000.00
A54: 47 | B54: Hermila cardenas Cardenas | E54: 2024-10-01 | F54: Presidencia | G54: AUX. Presidencia | H54: $10,000.00
A55: 48 | B55: Berenisse Garibay castro | E55: 2024-10-01 | F55: Presidencia | G55: Recepcionista | H55: $10,000.00
A56: 49 | B56: Christian Allan Robledo Orozco | E56: 2024-10-01 | F56: Presidencia | G56: Chofer Ayuntamiento | H56: $13,000.00
A57: 50 | B57: Jose Guadalupe Medrano Arias | E57: 2024-10-01 | F57: Presidencia | G57: Chofer Ayuntamiento | H57: $10,000.00
A58: 51 | B58: Zuleima Guadalupe Licea Losoya | E58: 2024-10-01 | F58: Presidencia | G58: Auxiliar | H58: $8,000.00
A59: 52 | B59: Nidia Veronica Torres Sandoval | E59: 2024-10-01 | F59: Atención a la Mujer e Igualdad Sustantiva | G59: Directora | H59: $12,000.00
A60: 53 | B60: Ana Mendoza Sandoval | E60: 2024-11-01 | F60: Atención a la Mujer e Igualdad Sustantiva | G60: Subdirectora | H60: $12,000.00
A61: 54 | B61: Oswaldo Guadalupe Sandoval Llamas | E61: 2024-10-01 | F61: Reclutamiento | G61: Ayudante de Reclutamiento | H61: $10,000.00
A62: 55 | B62: Mara Gabriela Alcaraz Farias | E62: 2024-10-01 | F62: Instancia de la Juventud | G62: Directora | H62: $10,000.00
A63: 56 | B63: Adriana Elizabeth Cuevas Mendoza | E63: 2025-10-01 | F63: Instancia de la Juventud | G63: Auxiliar | H63: $10,000.00
A64: 57 | B64: Emerita Cecilia Garcia Sandoval | E64: 2026-02-09 | F64: Proveduria | G64: Encargada | H64: $8,000.00
A65: 58 | B65: Rogelio Orozco Serrano | E65: 2024-10-01 | F65: Bodega Municipal | G65: Encargado | H65: $8,500.00
A66: 59 | B66: Zabdiel Torres Gonzalez | E66: 2024-10-01 | F66: Dirección de Comunicación | G66: Director | H66: $12,000.00
A67: 60 | B67: Isaac Rodriguez Llamas | E67: 2024-10-01 | F67: Cultura | G67: Director | H67: $12,000.00
A68: 61 | B68: Ma. Guadalupe Cortes Barocio | E68: 2024-10-01 | F68: Cultura | G68: Ayudante | H68: $8,000.00
A69: 62 | B69: Leticia Sandoval Mendoza | E69: 2024-10-15 | F69: Cultura | G69: Ayudante | H69: $9,000.00
A70: 63 | B70: Elizabeth Serrano Mendoza | E70: 2024-10-15 | F70: Cultura | G70: Ayudante | H70: $7,000.00
A71: 64 | B71: Alicia Rodriguez Mendoza | E71: 2025-10-01 | F71: Cultura | G71: Ayudante | H71: $8,000.00
A72: 65 | B72: Mario Meléndez Mendoza | E72: 2024-10-01 | F72: Jefatura de Agua Potable | G72: Director | H72: $12,000.00
A73: 66 | B73: Pedro Gonzalez Mendoza | E73: 2024-10-01 | F73: Jefatura de Agua Potable | G73: Auxiliar | H73: $11,000.00
A74: 67 | B74: Briseyda Lizbeth Valencia Aviña | E74: 2026-02-09 | F74: Jefatura de Agua Potable | G74: Auxiliar | H74: $10,000.00
A75: 68 | B75: Maria Guadalupe Bravo Pozos | E75: 2024-10-01 | F75: Jefatura de Agua Potable | G75: Secretaria | H75: $9,000.00
A76: 69 | B76: Jesús Rodriguez Mendoza | E76: 2024-10-01 | F76: Jefatura de Agua Potable | G76: Ayudante | H76: $9,000.00
A77: 70 | B77: Armando Vargas Juárez | E77: 2024-10-01 | F77: Jefatura de Agua Potable | G77: Ayudante | H77: $8,000.00
A78: 71 | B78: José Mendoza Silva | E78: 2025-06-19 | F78: Jefatura de Agua Potable | G78: Encargado de planta tratadora | H78: $8,000.00
A79: 72 | B79: José Alfredo Orozco Godinez | E79: 2024-10-01 | F79: Jefatura de Agua Potable | G79: Ayudante | H79: $9,000.00
A80: 73 | B80: Brian Juan Carlos Martinez Orozco | E80: 2024-10-01 | F80: Jefatura de Agua Potable | G80: Ayudante | H80: $9,000.00
A81: 74 | B81: Jose Manuel Zepeda Gonzalez | E81: 2024-10-01 | F81: Dirección de Proteccion Civil | G81: Director | H81: $14,000.00
A82: 75 | B82: Luis Fernando Nava Solorzano | E82: 2024-10-01 | F82: Dirección de Proteccion Civil | G82: Subdirector | H82: $14,000.00
A83: 76 | B83: Miguel Orozco Ortega | E83: 2024-10-01 | F83: Dirección de Proteccion Civil | G83: Auxiliar | H83: $14,000.00
A84: 77 | B84: Carlos Manuel Zepeda Mendoza | E84: 2024-10-01 | F84: Dirección de Proteccion Civil | G84: Auxiliar | H84: $12,000.00
A85: 78 | B85: Alejandra Gonzalez Gónzalez | E85: 2024-10-01 | F85: Jefatura de Sericios Generales Y Cultura de Agua | G85: Directora | H85: $10,000.00
A86: 79 | B86: Eusebia Alcaraz Garibay | E86: 2025-07-02 | F86: Jefatura de Sericios Generales Y Cultura de Agua | G86: Auxiliar | H86: $10,500.00
A87: 80 | B87: Roberto Licea Ruiz | E87: 2024-10-01 | F87: Jefatura de Sericios Generales Y Cultura de Agua | G87: Multifuncional | H87: $11,200.00
A88: 81 | B88: Maria Teresa Garcia Ruiz | E88: 2024-10-15 | F88: Jefatura de Servicios Generales Y Cultura de Agua | G88: Auxiliar | H88: $8,000.00
A89: 82 | B89: Francisco Moreno Flores | E89: 2024-10-01 | F89: Jefatura de Sericios Generales Y Cultura de Agua | G89: Recolector de Basura | H89: $9,000.00
A90: 83 | B90: Jose Magaña Orozco | E90: 2024-10-01 | F90: Jefatura de Sericios Generales Y Cultura de Agua | G90: Recolector de Basura | H90: $9,000.00
A91: 84 | B91: Miguel Angel Rodriguez Valencia | E91: 15/102024 | F91: Jefatura de Sericios Generales Y Cultura de Agua | G91: Ayudante | H91: $7,000.00
A92: 85 | B92: Pablo Mendoza Rodrigez | E92: 2024-10-01 | F92: Jefatura de Parques y Jardines | G92: Pintor | H92: $12,000.00
A93: 86 | B93: José Ángel Garcia Lopez | E93: 2024-10-01 | F93: Jefatura de Parques y Jardines | G93: Jardinero Municipal | H93: $9,000.00
A94: 87 | B94: Jesùs Alexander Santillan Garcia | E94: 2024-10-15 | F94: Jefatura de Parques y Jardines | G94: Auxiliar | H94: $7,000.00
A95: 88 | B95: Nicanor Sandoval Aguilar | E95: 2025-03-01 | F95: Jefatura de Parques y Jardines | G95: Auxiliar | H95: $7,000.00
A96: 89 | B96: Patricia Adilene Guzman Licea | E96: 2024-10-15 | F96: Jefatura de Parques y Jardines | G96: Ayudante | H96: $7,000.00
A97: 90 | B97: Ramona Itzel Orozco Diaz | E97: 2024-10-15 | F97: Jefatura de Parques y Jardines | G97: Ayudante | H97: $7,000.00
A98: 91 | B98: Juan Manuel Torres Magaña | E98: 2024-10-01 | F98: Jefatura del rastro Municipal | G98: Director | H98: $12,000.00
A99: 92 | B99: Abelino Diaz Venegas | E99: 2024-10-01 | F99: Jefatura del rastro Municipal | G99: Supervisor | H99: $14,000.00
A100: 93 | B100: Juan Carlos Sánchez Martínez | E100: 2025-08-01 | F100: Dirección de Rastro Municipal | G100: Auxiliar | H100: $13,000.00
A101: 94 | B101: Eliseo Larios Soto | E101: 2024-10-01 | F101: Jefatura del rastro Municipal | G101: Medico Veterinario | H101: $10,000.00
A102: 95 | B102: Evelia Juárez Madrigal | E102: 2024-10-15 | F102: Jefatura del rastro Municipal | G102: Secretaria | H102: $7,000.00
A103: 96 | B103: Thalía Giselle Alcaraz Sandoval | E103: 2024-10-01 | F103: Dirección de Desarrollo social | G103: Directora | H103: $10,000.00
A104: 97 | B104: Miguel Angel Salcedo Ceja | E104: 2025-07-16 | F104: Dirección de Desarrollo social | G104: Sbdirector | H104: $10,000.00
A105: 98 | B105: Maricela Sandoval Godinez | E105: 2024-10-01 | F105: Dirección de Desarrollo social | G105: Encargada de Asilo | H105: $12,000.00
A106: 99 | B106: Gina Jacquelinne Castro López | E106: 2024-10-15 | F106: Dirección de Desarrollo social | G106: REGULARIZACION DE PREDIOS | H106: $9,000.00
A107: 100 | B107: Erika García Losoya | E107: 2024-10-01 | F107: Transparencia | G107: Directora | H107: $14,000.00
A108: 101 | B108: Nayeli Guadalupe Orozco Mendoza | E108: 2024-10-01 | F108: Transparencia | G108: Auxiliar | H108: $12,000.00
A109: 102 | B109: Cesar Raymundo Llamas del Toro | E109: 2024-10-01 | F109: Oficilia Mayor | G109: Oficial Mayor | H109: $18,000.00
A110: 103 | B110: Jobana Elizabeth Arias González | E110: 2024-10-01 | F110: Oficilia Mayor | G110: Encargada de Recursos Humanos | H110: $13,000.00
A111: 104 | B111: Mario Santiago Sandoval Rosales | E111: 2024-10-01 | F111: Sindicatura | G111: Sindico | H111: $25,000.00
A112: 105 | B112: Briseyda María Cárdenas Losoya | E112: 2024-10-01 | F112: Sindicatura | G112: Auxiliar | H112: $10,000.00
A113: 106 | B113: Héctor Manuel Garibay Castañeda | E113: 2024-10-01 | F113: Centro de Salud | G113: Chofer Ambulancia | H113: $12,500.00
A114: 107 | B114: Juan Carlos Sandoval Martinez | E114: 2024-11-15 | F114: Centro de Salud | G114: Chofer | H114: $12,500.00
A115: 108 | B115: Cesar Javier Valencia Licea | E115: 2026-02-02 | F115: Centro de Salud | G115: Chofer | H115: $8,000.00
A116: 109 | B116: Sergio Israel Godinez Lucatero | E116: 2024-11-01 | F116: Direccion de Atenciòn al Migrante | G116: Encargado | H116: $14,000.00
A117: 110 | B117: Eduardo Rolon Chavez | E117: 2024-10-01 | F117: Hacienda Municipal | G117: Encargado de Hacienda | H117: $22,000.00
A118: 111 | B118: Maria de Jesùs Lopèz Alcaràz | E118: 2024-10-01 | F118: Hacienda Municipal | G118: Encargada de Egresos | H118: $14,000.00
A119: 112 | B119: Ma del Carmen Torres Sandoval | E119: 2024-10-01 | F119: Hacienda Municipal | G119: Auxiliar de Egresos | H119: $14,000.00
A120: 113 | B120: Yessika Jazmin Mendoza Uribe | E120: 2024-10-01 | F120: Hacienda Municipal | G120: Encargada de Ingresos | H120: $14,000.00
A121: 114 | B121: Yesenia Valencia Martinez | E121: 2024-12-16 | F121: Hacienda Municipal | G121: Auxiliar Administrativo | H121: $14,000.00
A122: 115 | B122: Jose Luis Valencia Macias | E122: 2024-10-01 | F122: Dirección de Maquinaria Pesada | G122: Operador de Màquinaria | H122: $16,000.00
A123: 116 | B123: Mario Mendoza Vargas | E123: 2026-04-16 | F123: Dirección de Maquinaria Pesada | G123: Operador de Màquinaria | H123: $16,000.00
A124: 117 | B124: Santos Garcia Montoya | E124: 2025-03-14 | F124: Dirección de Maquinaria Pesada | G124: Operador de Màquinaria | H124: $14,000.00
A125: 118 | B125: Saùl Medrano Arias | E125: 2025-10-08 | F125: Direcciòn de Maquinaria Pesada | G125: Operador Camiòn Volteo | H125: $10,000.00
A126: 119 | B126: Daisy Valencia Aviña | E126: 2025-05-02 | F126: Dirección de Maquinaria Pesada | G126: Secretaria | H126: $8,000.00
A127: 120 | B127: J.Jesùs Mèndoza Zepeda | E127: 2024-10-01 | F127: Dirección de Maquinaria Pesada | G127: Ayudante de Maquinaria | H127: $11,000.00
A128: 121 | B128: Hisel Gonzalez Mendoza | E128: 2024-10-01 | F128: Presidenta | G128: Presidenta | H128: $35,000.00
A129: 122 | B129: Fernando Guiltron Garcia | E129: 2024-10-01 | F129: Sala de Cabildo | G129: Regidor | H129: $17,000.00
A130: 123 | B130: Alejandra Hinostroza Esquivel | E130: 2024-10-01 | F130: Sala de Cabildo | G130: Regidor | H130: $17,000.00
A131: 124 | B131: Maritza Jaquelin Sanchez Lopez | E131: 2024-10-01 | F131: Sala de Cabildo | G131: Regidor | H131: $17,000.00
A132: 125 | B132: Heriberto Domingo Orozco Sanchez | E132: 2024-10-01 | F132: Sala de Cabildo | G132: Regidor | H132: $17,000.00
A133: 126 | B133: Leonardo valencia Valencia | E133: 2024-10-01 | F133: Sala de Cabildo | G133: Regidor | H133: $17,000.00
A134: 127 | B134: Juan Pablo Panduro Soto | E134: 2024-10-01 | F134: Sala de Cabildo | G134: Regidor | H134: $17,000.00
A135: 128 | B135: Elia Lopéz Torres | E135: 2024-10-01 | F135: Seguridad publica Municipal | G135: Policia de Linea | H135: $14,000.00
A136: 129 | B136: Ma. Isabel Wiltron Cardenas | E136: 2024-10-01 | F136: Seguridad publica Municipal | G136: Policia de Linea | H136: $14,000.00
A137: 130 | B137: Oscar Flores Lara | E137: 2024-10-01 | F137: Seguridad publica Municipal | G137: Policia de Linea | H137: $14,000.00
A138: 131 | B138: J. Jesus Rodriguez Losoya | E138: 2026-05-01 | F138: Seguridad publica Municipal | G138: Policia de Linea | H138: $14,000.00
A139: 132 | B139: Francisco Llamas Godínez | E139: 2025-04-30 | F139: Seguridad publica Municipal | G139: Policia de Linea | H139: $14,000.00
A140: 133 | B140: Isaias Santillan Ortega | E140: 2024-10-01 | F140: Seguridad publica Municipal | G140: Policia de Linea | H140: $14,000.00
A141: 134 | B141: Briselda Orozco Sanchez | E141: 2024-10-01 | F141: Seguridad publica Municipal | G141: Secretaria | H141: $8,000.00
A142: 135 | B142: Alma Noritza Licea Gonzalez | E142: 2024-10-01 | F142: Seguridad publica Municipal | G142: Secretaria | H142: $10,000.00
A143: 136 | B143: Lorena de Jesús Bernal | E143: 2024-10-01 | F143: Medico Municipal | G143: Doctora Municipal | H143: $15,000.00
A144: 137 | B144: Leonel Sandoval Garcia | E144: 2024-10-01 | F144: Parque Vehicular | G144: Encargado | H144: $10,000.00
A145: 138 | B145: Miguel Alcaraz Mendoza | E145: 2025-03-01 | F145: Parque Vehicular | G145: Mecanico | H145: $12,000.00
A146: 139 | B146: Pablo Rodriguez Mendoza | E146: 2024-10-01 | F146: Choferes Municipales | G146: Jilotlán | H146: $9,000.00
A147: 140 | B147: Nazario Losoya Sanchez | E147: 2024-10-01 | F147: Choferes Municipales | G147: El rodeo | H147: $7,000.00
A148: 141 | B148: Francisco Mendoza Godinez | E148: 2020-10-01 | F148: Multifuncionales | G148: Auxiliar General | H148: $8,000.00
A149: 142 | B149: Mayra Cristina Cuevas Mendoza | E149: 2024-10-01 | F149: Multifuncionales | G149: Auxiliar General | H149: $10,000.00
A150: 143 | B150: Ana Gabriela vargas Magaña | E150: 2024-10-01 | F150: Multifuncionales | G150: Auxiliar General | H150: $8,000.00
A151: 144 | B151: Francisca Alondra Magaña Garcia | E151: 2024-10-01 | F151: Multifuncionales | G151: Auxiliar General | H151: $8,000.00
A152: 145 | B152: Juvenal Sanchez Magaña | E152: 2024-10-15 | F152: Multifuncionales | G152: Auxiliar General | H152: $7,500.00
A153: 146 | B153: Juana Alacaraz Torres | E153: 2024-10-15 | F153: Multifuncionales | G153: Auxiliar General | H153: $7,500.00
E154: TOTAL GENERAL | H154: =SUM(H8:H151) -> $1,610,700.00
B160: HISEL GONZALEZ MENDOZA | F160: EDUARDO ROLON CHAVEZ
B161: PRESIDENTA | F161: TESORERO MUNICIPAL
B162: H.AYUNTAMIENTO JILOTLAN DE LOS DOLORES | F162: H. AUNTAMIENTO DE JILOTLAN DE LOS DOLORES
A173: LISTA DE RAYA
A174: PERIODO 07 DEL 01 DE JULIO AL 31 DE JULIO 2026
A175: MUNICIPIO JILOTLAN DE LOS DOLORES, JALISCO
A177: NO EMPLEADO | B177: NOMBRE | E177: FECHA DE INGRESO | F177: DEPARTAMENTO | G177: PUESTO | H177: SUELDO NETO | I177: FIRMA
A178: 1 | B178: Irma Thelma Vonludwitz Ponce | E178: 2025-08-01 | F178: Sindicatura | G178: Asesor Juridico | H178: $15,000.00
E180: TOTAL GENERAL | H180: =SUM(H177:H179) -> $15,000.00
B183: HISEL GONZALEZ MENDOZA | F183: EDUARDO ROLON CHAVEZ
B184: PRESIDENTA | F184: TESORERO MUNCIPAL
B185: H.AYUNTAMIENTO JILOTLAN DE LOS DOLORES | F185: H. AUNTAMIENTO DE JILOTLAN DE LOS DOLORES
A192: PAGO DE TRANSFERENCIA
A193: PERIODO 07 DEL 01 DE JULIO AL 31 DE JULIO 2026
A194: MUNICIPIO JILOTLAN DE LOS DOLORES, JALISCO
A196: NO EMPLEADO | B196: NOMBRE | E196: FECHA DE INGRESO | F196: DEPARTAMENTO | G196: PUESTO | H196: SUELDO NETO | I196: FIRMA
A197: 1 | B197: Amelia Cristina Uriarte Guerrero | E197: 2024-10-01 | F197: Direcciòn de Turismo | G197: Subdirectora | H197: $10,000.00
E199: TOTAL GENERAL | H199: =SUM(H196:H198) -> $10,000.00
B202: HISEL GONZALEZ MENDOZA | F202: EDUARDO ROLON CHAVEZ
B203: PRESIDENTA | F203: TESORERO MUNCIPAL
B204: H.AYUNTAMIENTO JILOTLAN DE LOS DOLORES | F204: H. AUNTAMIENTO DE JILOTLAN DE LOS DOLORES
A217: PAGO DE TRANSFERENCIA
A218: PERIODO 07 DEL 01 DE JULIO AL 31 DE JULIO 2026
A219: MUNICIPIO JILOTLAN DE LOS DOLORES, JALISCO
A220: NO EMPLEADO | B220: NOMBRE | E220: FECHA DE INGRESO | F220: DEPARTAMENTO | G220: PUESTO | H220: SUELDO NETO | I220: FIRMA
A221: 1 | B221: Maria Gricelda Valdovinos Preciado | E221: 2024-10-15 | F221: Direcciòn de Desarrollo Agropecuario | G221: Directora | H221: $12,000.00
A222: 2 | B222: Francisco Javier Sanchez Cobian | E222: 2024-10-01 | F222: Todos los Departamentos | G222: Multifuncionales | H222: $10,000.00
A223: 3 | B223: Gustavo Castro Melendez | E223: 2025-06-04 | F223: Alumbrado Publico | G223: Supervisor Tecnico | H223: $15,000.00
A224: 4 | B224: Gumersindo Anaya Lòpez | E224: 2024-10-01 | F224: Dirección de Maquinaria Pesada | G224: Operador de Màquinaria | H224: $17,000.00
A225: 5 | B225: Daniel Garcia Perez | E225: 2024-10-02 | F225: Dirección de Maquinaria Pesada | G225: Operador de Màquinaria | H225: $16,000.00
A226: 6 | B226: Nazario Arias Torres | E226: 2025-10-01 | F226: Choferes Municipales | G226: El Riyito | H226: $7,000.00
A227: 7 | B227: J. Jesús Zepeda Chavez | E227: 2025-10-01 | F227: Seguridad publica Municipal | G227: Comisario | H227: $17,000.00
A228: 8 | B228: Carlos Manuel Flores Lara | E228: 2024-10-01 | F228: Seguridad publica Municipal | G228: Encargado de Grupo | H228: $15,000.00
A229: 9 | B229: Rodrigo Losoya Sanchez | E229: 2024-10-01 | F229: Seguridad publica Municipal | G229: Encargado de Grupo | H229: $15,000.00
A230: 10 | B230: Gloria Cruz Estrada | E230: 2024-10-01 | F230: Seguridad publica Municipal | G230: Intendente | H230: $6,000.00
A231: 11 | B231: Sandra Lucia Ramirez Chavez | E231: 2024-10-01 | F231: Multifuncionales | G231: Auxiliar General | H231: $8,000.00
E232: TOTAL GENERAL | H232: =SUM(H221:H231) -> $138,000.00
B237: HISEL GONZALEZ MENDOZA | F237: EDUARDO ROLON CHAVEZ
B238: PRESIDENTA | F238: TESORERO MUNICIPAL
B239: H.AYUNTAMIENTO JILOTLAN DE LOS DOLORES | F239: H. AUNTAMIENTO DE JILOTLAN DE LOS DOLORES

Sheet Multifuncionales
A7: MUNICIPIO DE JILOTLÁN DE LOS DOLORES, JALISCO
A8: LISTA DE RAYA
A9: PERIODO 07 DEL 01 DE JULIO AL 31 DE JULIO 2026
A11: NO EMPLEADO | B11: NOMBRE | E11: FECHA DE INGRESO | F11: DEPARTAMENTO | G11: PUESTO | H11: SUELDO NETO | I11: FIRMA
A12: 1 | B12: Moises Arias Sandoval | E12: 2024-10-01 | F12: Multifuncionales | G12: Auxiliar General | H12: $10,000.00
A13: 2 | B13: Jesús Alvarez Vargas | E13: 2024-10-01 | F13: Multifuncionales | G13: Auxiliar General | H13: $8,000.00
E14: TOTAL GENERAL | H14: =SUM(H11:H13) -> $18,000.00
B17: HISEL GONZALEZ MENDOZA | G17: EDUARDO ROLON CHAVEZ
B18: PRESIDENTA | G18: TESORERO MUNICIPAL
B19: H. AYUNTAMIENTO DE JILOTLAN DE LOS DOLORES | G19: H. AYUNTAMIENTO DE JILOTLAN DE LOS DOLORES
A29: MUNICIPIO DE JILOTLÁN DE LOS DOLORES, JALISCO
A30: LISTA DE RAYA
A31: PERIODO 07 DEL 01 DE JULIO AL 31 DE JULIO 2026
A33: NO EMPLEADO | B33: NOMBRE | E33: FECHA DE INGRESO | F33: DEPARTAMENTO | G33: PUESTO | H33: SUELDO NETO | I33: FIRMA
A34: 1 | B34: Cipriano Mendoza Valdovinos | E34: 2024-11-01 | F34: Multifuncionales | G34: Auxiliar General | H34: $10,000.00
E36: TOTAL GENERAL | H36: =SUM(H29:H35) -> $10,000.00
B39: HISEL GONZALEZ MENDOZA | G39: EDUARDO ROLON CHAVEZ
B40: PRESIDENTA | G40: TESORERO MUNICIPAL
B41: H. AYUNTAMIENTO DE JILOTLAN DE LOS DOLORES | G41: H. AYUNTAMIENTO DE JILOTLAN DE LOS DOLORES
A46: MUNICIPIO DE JILOTLÁN DE LOS DOLORES, JALISCO
A47: LISTA DE RAYA
A48: PERIODO 07 DEL 01 DE JULIO AL 31 DE JULIO 2026
A50: NO EMPLEADO | B50: NOMBRE | E50: FECHA DE INGRESO | F50: DEPARTAMENTO | G50: PUESTO | H50: SUELDO NETO | I50: FIRMA
A51: 1 | B51: Norma Sandoval Godinez | E51: 2024-11-01 | F51: Multifuncionales | G51: Auxiliar General | H51: $10,000.00
E53: TOTAL GENERAL | H53: =SUM(H46:H52) -> $10,000.00
B56: HISEL GONZALEZ MENDOZA | G56: EDUARDO ROLON CHAVEZ
B57: PRESIDENTA | G57: TESORERO MUNICIPAL
B58: H. AYUNTAMIENTO DE JILOTLAN DE LOS DOLORES | G58: H. AYUNTAMIENTO DE JILOTLAN DE LOS DOLORES

Sheet Regidores
A2: MUNICIPIO DE JILOTLÁN DE LOS DOLORES, JALISCO
A3: LISTA DE RAYA
A4: PERIODO 07 DEL 01 DE JULIO AL 31 DE JULIO 2026
A6: NO EMPLEADO | B6: NOMBRE | E6: FECHA DE INGRESO | F6: DEPARTAMENTO | G6: PUESTO | H6: SUELDO NETO | I6: FIRMA
A7: 1 | B7: Huber ortega Padilla | E7: 2024-10-01 | F7: Sala de Cabildo | G7: Regidor | H7: $17,000.00
E8: TOTAL GENERAL | H8: =SUM(H3:H7) -> $17,000.00
B13: HISEL GONZALEZ MENDOZA | G13: EDUARDO ROLON CHAVEZ
B14: PRESIDENTA | G14: TESORERO MUNICIPAL
B15: H. AYUNTAMIENTO DE JILOTLAN DE LOS DOLORES | G15: H. AYUNTAMIENTO DE JILOTLAN DE LOS DOLORES

Sheet Las Lomas
A2: LISTA DE RAYA: DELEGACION LA LOMA
A3: PERIODO 07 DEL 01 DE JULIO AL 31 DE JULIO 2026
A4: MUNICIPIO DE JILOTLAN DE LOS DOLORES,JALISCO
A6: NO EMPLEADO | B6: NOMBRE | C6: FECHA | D6: DELEGACIÓN | E6: PUESTO | F6: SUELDO | G6: FIRMA
A7: 1 | B7: Antonio Gonzalez Orozco | C7: 2024-10-01 | D7: Las Lomas | E7: Auxiliar de Delegado | F7: $6,000
A8: 2 | B8: Norma Elizabeth Cespedes Lara | C8: 2024-10-01 | D8: Las Lomas | E8: Encargada de Rejistro Civil | F8: $6,000
A9: 3 | B9: Ana Laura Chavez Contreras | C9: 2024-10-01 | D9: Las Lomas | E9: Encargada de Castro | F9: $6,000
A10: 4 | B10: Pedro González Cobián | C10: 2026-05-01 | D10: Las Lomas | E10: Encargado de Agua Potable | F10: $6,000
A11: 5 | B11: J. Jesus Garcìa Torres | C11: 2024-10-01 | D11: Las Lomas | E11: Chofer de Estudiantes de Nivel Primaria y Secundaria | F11: $5,000
A12: 6 | B12: Antonio Escalera Reyes | C12: 2024-10-01 | D12: Las Lomas | E12: Chofer de Ambulancia | F12: $4,600
A13: 7 | B13: Andrea Garcia Sanchez | C13: 2024-10-01 | D13: Las Lomas | E13: Encargada de la Ganadera | F13: $4,000
A14: 8 | B14: Elpidia Hernandez Reyes | C14: 2024-10-01 | D14: Las Lomas | E14: Intendente Plaza Principal | F14: $4,000
A15: 9 | B15: Isrrael Medina Escalera | C15: 2024-10-01 | D15: Las Lomas | E15: Chofer de Camioneta del Aseo Pùblico | F15: $3,870
A16: 10 | B16: Javier Barajas Solorio | C16: 2026-05-01 | D16: Las Lomas | E16: Recolector | F16: $3,300
A17: 11 | B17: Ana Marìa Carranza Martìnez | C17: 2024-10-01 | D17: Las Lomas | E17: Encargada de Panteon | F17: $2,300
A18: 12 | B18: Rogelio Reyes Sanchez | C18: 2024-10-01 | D18: Las Lomas | E18: Intendente de Baños Pùblicos | F18: $2,000
A19: 13 | B19: Socorro Salcedo Escalera | C19: 2024-10-01 | D19: Las Lomas | E19: Intendente de Parque | F19: $2,000
A20: 14 | B20: Maria Trinidad Fernandez Magallon | C20: 2024-10-01 | D20: Las Lomas | E20: Intendente de Cancha de Limoncito | F20: $3,000
A21: 15 | B21: Amalia Reyes Reyes | C21: 2024-10-01 | D21: Las Lomas | E21: Intendente de Cancha de Playa Colorada | F21: $2,000
A22: 16 | B22: Salvador Mendoza Barragan | C22: 2024-10-01 | D22: Las Lomas | E22: Encargado de Agua Potable de Limoncito | F22: $4,000
A23: 17 | B23: Graciela Barajas Garcìa | C23: 2024-10-01 | D23: Las Lomas | E23: Intendente de Centro de Salud | F23: $2,000
A24: 18 | B24: Miguel Tavera Escalera | C24: 2026-05-01 | D24: Las Lomas | E24: Intendente de Camellones | F24: $2,000
A25: 19 | B25: Jose Madrigal Salcedo | C25: 2025-03-15 | D25: Las Lomas | E25: Intendente del Parque | F25: $2,000
A26: 20 | B26: Lourdes Sanchez Barragan | C26: 2025-02-15 | D26: Las Lomas | E26: Ayudante de cocina de la Esc. Prim. Miguel Hidalgo | F26: 4,000
C28: TOTAL GENERAL | F28: =SUM(F7:F27) -> $74,070
B32: ______________________________________ | F32: ___________________________________________
B33: HISEL GONZALEZ MENDOZA | F33: EDURDO ROLON CHAVEZ
B34: PRESIDENTA | F34: ENCARGADO DE HACIENDA
B35: H. AYUNTAMIENTO JILOTLAN DE LOS DOLORES | F35: H. AYUNTAMIENTO JILOTLAN DE LOS DOLORES
A41: LISTA DE RAYA: DELEGACION LA LOMA TRANFERENCIA
A42: PERIODO 07 DEL 01 DE JULIO AL 31 DE JULIO 2026
A43: MUNICIPIO DE JILOTLAN DE LOS DOLORES,JALISCO
A45: NO EMPLEADO | B45: NOMBRE | C45: FECHA | D45: DELEGACIÓN | E45: PUESTO | F45: SUELDO | G45: FIRMA
A47: 1 | B47: Antonio Bernal Torres | C47: 2024-10-01 | D47: Las Lomas | E47: Delegado | F47: $10,000
A48: 2 | B48: Lorena Erika Navarro Arroyo | C48: 2025-10-01 | D48: Las Lomas | E48: Regidora | F48: $17,000
C49: TOTAL GENERAL | F49: =SUM(F47:F48) -> $27,000 | NL49: =SUM(NZ28:NZ47) -> $0 | NQ49: TOTAL GENERAL | NT49: =SUM(OH28:OH47) -> $0 | NY49: TOTAL GENERAL | OB49: =SUM(OP28:OP43) -> $0 | OG49: TOTAL GENERAL | OJ49: =SUM(OX28:OX43) -> $0 | OM49: TOTAL GENERAL | OP49: =SUM(EYP28:EYP47) -> $0 | OU49: TOTAL GENERAL | OX49: =SUM(EYX28:EYX47) -> $0 | PC49: TOTAL GENERAL | PF49: =SUM(EZF28:EZF47) -> $0 | PK49: TOTAL GENERAL | PN49: =SUM(EZN28:EZN47) -> $0 | PS49: TOTAL GENERAL | PV49: =SUM(EZV28:EZV47) -> $0 | QA49: TOTAL GENERAL | QD49: =SUM(FAD28:FAD47) -> $0 | RG49: TOTAL GENERAL | RJ49: =SUM(FBJ28:FBJ47) -> $0 | RO49: TOTAL GENERAL | RR49: =SUM(FBR28:FBR47) -> $0 | RW49: TOTAL GENERAL | RZ49: =SUM(FBZ28:FBZ47) -> $0 | SE49: TOTAL GENERAL | SH49: =SUM(FCH28:FCH47) -> $0 | SM49: TOTAL GENERAL | SP49: =SUM(FCP28:FCP47) -> $0 | SU49: TOTAL GENERAL | SX49: =SUM(FCX28:FCX47) -> $0 | TC49: TOTAL GENERAL | TF49: =SUM(FDF28:FDF47) -> $0 | TK49: TOTAL GENERAL | TN49: =SUM(FDN28:FDN47) -> $0 | TS49: TOTAL GENERAL | TV49: =SUM(FDV28:FDV47) -> $0 | UA49: TOTAL GENERAL | UD49: =SUM(FED28:FED47) -> $0 | UI49: TOTAL GENERAL | UL49: =SUM(FEL28:FEL47) -> $0 | UQ49: TOTAL GENERAL | UT49: =SUM(FET28:FET47) -> $0 | VR49: =SUM(FFR28:FFR47) -> $0 | VW49: TOTAL GENERAL | VZ49: =SUM(FFZ28:FFZ47) -> $0 | WE49: TOTAL GENERAL | WH49: =SUM(FGH28:FGH47) -> $0 | WM49: TOTAL GENERAL | WP49: =SUM(FGP28:FGP47) -> $0 | WU49: TOTAL GENERAL | WX49: =SUM(FGX28:FGX47) -> $0 | XC49: TOTAL GENERAL | XF49: =SUM(FHF28:FHF47) -> $0 | XK49: TOTAL GENERAL | XN49: =SUM(FHN28:FHN47) -> $0 | XS49: TOTAL GENERAL | XV49: =SUM(FHV28:FHV47) -> $0 | YA49: TOTAL GENERAL | YD49: =SUM(FID28:FID47) -> $0 | YI49: TOTAL GENERAL | YL49: =SUM(FIL28:FIL47) -> $0 | YQ49: TOTAL GENERAL | YT49: =SUM(FIT28:FIT47) -> $0 | YY49: TOTAL GENERAL | ZB49: =SUM(FJB28:FJB47) -> $0 | ZG49: TOTAL GENERAL | ZJ49: =SUM(FJJ28:FJJ47) -> $0 | ZO49: TOTAL GENERAL | ZR49: =SUM(FJR28:FJR47) -> $0 | ZW49: TOTAL GENERAL | ZZ49: =SUM(FJZ28:FJZ47) -> $0 | AAE49: TOTAL GENERAL | AAH49: =SUM(FKH28:FKH47) -> $0 | ADR49: =SUM(FNR28:FNR47) -> $0 | ADW49: TOTAL GENERAL | ADZ49: =SUM(FNZ28:FNZ47) -> $0 | AEE49: TOTAL GENERAL | AEH49: =SUM(FOH28:FOH47) -> $0 | AEM49: TOTAL GENERAL | AEP49: =SUM(FOP28:FOP47) -> $0 | AFS49: TOTAL GENERAL | AFV49: =SUM(FPV28:FPV47) -> $0 | AGA49: TOTAL GENERAL | AGD49: =SUM(FQD28:FQD47) -> $0 | AGI49: TOTAL GENERAL | AGL49: =SUM(FQL28:FQL47) -> $0 | AGQ49: TOTAL GENERAL | AGT49: =SUM(FQT28:FQT47) -> $0 | AGY49: TOTAL GENERAL | AHW49: TOTAL GENERAL | AHZ49: =SUM(FRZ28:FRZ47) -> $0 | AIE49: TOTAL GENERAL | AIH49: =SUM(FSH28:FSH47) -> $0 | AIM49: TOTAL GENERAL | AIP49: =SUM(FSP28:FSP47) -> $0 | AIU49: TOTAL GENERAL | AIX49: =SUM(FSX28:FSX47) -> $0 | AJC49: TOTAL GENERAL | AJF49: =SUM(FTF28:FTF47) -> $0 | AJK49: TOTAL GENERAL | AJN49: =SUM(FTN28:FTN47) -> $0 | AJS49: TOTAL GENERAL | AJV49: =SUM(FTV28:FTV47) -> $0 | AKA49: TOTAL GENERAL | AKD49: =SUM(FUD28:FUD47) -> $0 | AKI49: TOTAL GENERAL | AKL49: =SUM(FUL28:FUL47) -> $0 | APB49: =SUM(FZB28:FZB47) -> $0 | APG49: TOTAL GENERAL | APJ49: =SUM(FZJ28:FZJ47) -> $0 | APO49: TOTAL GENERAL | APR49: =SUM(FZR28:FZR47) -> $0 | APW49: TOTAL GENERAL | APZ49: =SUM(FZZ28:FZZ47) -> $0 | AQE49: TOTAL GENERAL | AQH49: =SUM(GAH28:GAH47) -> $0 | AQM49: TOTAL GENERAL | AQP49: =SUM(GAP28:GAP47) -> $0 | AQU49: TOTAL GENERAL | AQX49: =SUM(GAX28:GAX47) -> $0 | ARC49: TOTAL GENERAL | ARF49: =SUM(GBF28:GBF47) -> $0 | ARK49: TOTAL GENERAL | ARN49: =SUM(GBN28:GBN47) -> $0 | ARS49: TOTAL GENERAL | ARV49: =SUM(GBV28:GBV47) -> $0 | ASA49: TOTAL GENERAL | ASD49: =SUM(GCD28:GCD47) -> $0 | ASI49: TOTAL GENERAL | ASL49: =SUM(GCL28:GCL47) -> $0 | ASQ49: TOTAL GENERAL | AST49: =SUM(GCT28:GCT47) -> $0 | ASY49: TOTAL GENERAL | ATB49: =SUM(GDB28:GDB47) -> $0 | ATG49: TOTAL GENERAL | ATJ49: =SUM(GDJ28:GDJ47) -> $0 | ATO49: TOTAL GENERAL | ATR49: =SUM(GDR28:GDR47) -> $0 | ATW49: TOTAL GENERAL | ATZ49: =SUM(GDZ28:GDZ47) -> $0 | AUE49: TOTAL GENERAL | AUH49: =SUM(GEH28:GEH47) -> $0 | AUM49: TOTAL GENERAL | AUP49: =SUM(GEP28:GEP47) -> $0 | AUU49: TOTAL GENERAL | AUX49: =SUM(GEX28:GEX47) -> $0 | AVC49: TOTAL GENERAL | AVF49: =SUM(GFF28:GFF47) -> $0 | AVK49: TOTAL GENERAL | AVN49: =SUM(GFN28:GFN47) -> $0 | AVS49: TOTAL GENERAL | AVV49: =SUM(GFV28:GFV47) -> $0 | AWA49: TOTAL GENERAL | AWD49: =SUM(GGD28:GGD47) -> $0 | AWI49: TOTAL GENERAL | AWL49: =SUM(GGL28:GGL47) -> $0 | AWQ49: TOTAL GENERAL | AWT49: =SUM(GGT28:GGT47) -> $0 | AWY49: TOTAL GENERAL | AXB49: =SUM(GHB28:GHB47) -> $0 | AXG49: TOTAL GENERAL | AXJ49: =SUM(GHJ28:GHJ47) -> $0 | AXO49: TOTAL GENERAL | AXR49: =SUM(GHR28:GHR47) -> $0 | AXW49: TOTAL GENERAL | AXZ49: =SUM(GHZ28:GHZ47) -> $0 | AYE49: TOTAL GENERAL | AYH49: =SUM(GIH28:GIH47) -> $0 | AYM49: TOTAL GENERAL | AYP49: =SUM(GIP28:GIP47) -> $0 | AYU49: TOTAL GENERAL | AYX49: =SUM(GIX28:GIX47) -> $0 | AZC49: TOTAL GENERAL | AZF49: =SUM(GJF28:GJF47) -> $0 | AZK49: TOTAL GENERAL | AZN49: =SUM(GJN28:GJN47) -> $0 | AZS49: TOTAL GENERAL | AZV49: =SUM(GJV28:GJV47) -> $0 | BAA49: TOTAL GENERAL | BAD49: =SUM(GKD28:GKD47) -> $0 | BAI49: TOTAL GENERAL | BAL49: =SUM(GKL28:GKL47) -> $0 | BAQ49: TOTAL GENERAL | BAT49: =SUM(GKT28:GKT47) -> $0 | BAY49: TOTAL GENERAL | BBB49: =SUM(GLB28:GLB47) -> $0 | BBG49: TOTAL GENERAL | BBJ49: =SUM(GLJ28:GLJ47) -> $0 | BBO49: TOTAL GENERAL | BBR49: =SUM(GLR28:GLR47) -> $0 | BBW49: TOTAL GENERAL | BBZ49: =SUM(GLZ28:GLZ47) -> $0 | BCE49: TOTAL GENERAL | BCH49: =SUM(GMH28:GMH47) -> $0 | BCM49: TOTAL GENERAL | BCP49: =SUM(GMP28:GMP47) -> $0 | BCU49: TOTAL GENERAL | BCX49: =SUM(GMX28:GMX47) -> $0 | BDC49: TOTAL GENERAL | BDF49: =SUM(GNF28:GNF47) -> $0 | BDK49: TOTAL GENERAL | BDN49: =SUM(GNN28:GNN47) -> $0 | BDS49: TOTAL GENERAL | BDV49: =SUM(GNV28:GNV47) -> $0 | BEA49: TOTAL GENERAL | BED49: =SUM(GOD28:GOD47) -> $0 | BEI49: TOTAL GENERAL | BEL49: =SUM(GOL28:GOL47) -> $0 | BEQ49: TOTAL GENERAL | BET49: =SUM(GOT28:GOT47) -> $0 | BEY49: TOTAL GENERAL | BFB49: =SUM(GPB28:GPB47) -> $0 | BFG49: TOTAL GENERAL | BFJ49: =SUM(GPJ28:GPJ47) -> $0 | BFO49: TOTAL GENERAL | BFR49: =SUM(GPR28:GPR47) -> $0 | BFW49: TOTAL GENERAL | BFZ49: =SUM(GPZ28:GPZ47) -> $0 | BGE49: TOTAL GENERAL | BGH49: =SUM(GQH28:GQH47) -> $0 | BGM49: TOTAL GENERAL | BGP49: =SUM(GQP28:GQP47) -> $0 | BHN49: =SUM(GRN28:GRN47) -> $0 | BHS49: TOTAL GENERAL | BHV49: =SUM(GRV28:GRV47) -> $0 | BIA49: TOTAL GENERAL | BID49: =SUM(GSD28:GSD47) -> $0 | BII49: TOTAL GENERAL | BIL49: =SUM(GSL28:GSL47) -> $0 | BIQ49: TOTAL GENERAL | BIT49: =SUM(GST28:GST47) -> $0 | BIY49: TOTAL GENERAL | BJB49: =SUM(GTB28:GTB47) -> $0 | BJG49: TOTAL GENERAL | BJJ49: =SUM(GTJ28:GTJ47) -> $0 | BJO49: TOTAL GENERAL | BJR49: =SUM(GTR28:GTR47) -> $0 | BJW49: TOTAL GENERAL | BJZ49: =SUM(GTZ28:GTZ47) -> $0 | BKE49: TOTAL GENERAL | BKH49: =SUM(GUH28:GUH47) -> $0 | BKM49: TOTAL GENERAL | BKP49: =SUM(GUP28:GUP47) -> $0 | BKU49: TOTAL GENERAL | BKX49: =SUM(GUX28:GUX47) -> $0 | BLC49: TOTAL GENERAL | BLF49: =SUM(GVF28:GVF47) -> $0 | BLK49: TOTAL GENERAL | BLN49: =SUM(GVN28:GVN47) -> $0 | BLS49: TOTAL GENERAL | BLV49: =SUM(GVV28:GVV47) -> $0 | BMA49: TOTAL GENERAL | BMD49: =SUM(GWD28:GWD47) -> $0 | BMI49: TOTAL GENERAL | BML49: =SUM(GWL28:GWL47) -> $0 | BMQ49: TOTAL GENERAL | BMT49: =SUM(GWT28:GWT47) -> $0 | BMY49: TOTAL GENERAL | BNB49: =SUM(GXB28:GXB47) -> $0 | BNG49: TOTAL GENERAL | BNJ49: =SUM(GXJ28:GXJ47) -> $0 | BNO49: TOTAL GENERAL | BNR49: =SUM(GXR28:GXR47) -> $0 | BNW49: TOTAL GENERAL | BNZ49: =SUM(GXZ28:GXZ47) -> $0 | BOE49: TOTAL GENERAL | BOH49: =SUM(GYH28:GYH47) -> $0 | BOM49: TOTAL GENERAL | BOP49: =SUM(GYP28:GYP47) -> $0 | BOU49: TOTAL GENERAL | BOX49: =SUM(GYX28:GYX47) -> $0 | BPC49: TOTAL GENERAL | BPF49: =SUM(GZF28:GZF47) -> $0 | BPK49: TOTAL GENERAL | BPN49: =SUM(GZN28:GZN47) -> $0 | BPS49: TOTAL GENERAL | BPV49: =SUM(GZV28:GZV47) -> $0 | BQA49: TOTAL GENERAL | BQD49: =SUM(HAD28:HAD47) -> $0 | BQI49: TOTAL GENERAL | BQL49: =SUM(HAL28:HAL47) -> $0 | BQQ49: TOTAL GENERAL | BQT49: =SUM(HAT28:HAT47) -> $0 | BQY49: TOTAL GENERAL | BRB49: =SUM(HBB28:HBB47) -> $0 | BRG49: TOTAL GENERAL | BRJ49: =SUM(HBJ28:HBJ47) -> $0 | BRO49: TOTAL GENERAL | BRR49: =SUM(HBR28:HBR47) -> $0 | BRW49: TOTAL GENERAL | BRZ49: =SUM(HBZ28:HBZ47) -> $0 | BSE49: TOTAL GENERAL | BSH49: =SUM(HCH28:HCH47) -> $0 | BSM49: TOTAL GENERAL | BSP49: =SUM(HCP28:HCP47) -> $0 | BSU49: TOTAL GENERAL | BSX49: =SUM(HCX28:HCX47) -> $0 | BTC49: TOTAL GENERAL | BTF49: =SUM(HDF28:HDF47) -> $0 | BTK49: TOTAL GENERAL | BTN49: =SUM(HDN28:HDN47) -> $0 | BTS49: TOTAL GENERAL | BTV49: =SUM(HDV28:HDV47) -> $0 | BUA49: TOTAL GENERAL | BUD49: =SUM(HED28:HED47) -> $0 | BUI49: TOTAL GENERAL | BUL49: =SUM(HEL28:HEL47) -> $0 | BUQ49: TOTAL GENERAL | BUT49: =SUM(HET28:HET47) -> $0 | BUY49: TOTAL GENERAL | BVB49: =SUM(HFB28:HFB47) -> $0 | BVG49: TOTAL GENERAL | BVJ49: =SUM(HFJ28:HFJ47) -> $0 | BVO49: TOTAL GENERAL | BVR49: =SUM(HFR28:HFR47) -> $0 | BVW49: TOTAL GENERAL | BVZ49: =SUM(HFZ28:HFZ47) -> $0 | BWE49: TOTAL GENERAL | BWH49: =SUM(HGH28:HGH47) -> $0 | BWM49: TOTAL GENERAL | BWP49: =SUM(HGP28:HGP47) -> $0 | BWU49: TOTAL GENERAL | BWX49: =SUM(HGX28:HGX47) -> $0 | BXC49: TOTAL GENERAL | BXF49: =SUM(HHF28:HHF47) -> $0 | BXK49: TOTAL GENERAL | BXN49: =SUM(HHN28:HHN47) -> $0 | BXS49: TOTAL GENERAL | BXV49: =SUM(HHV28:HHV47) -> $0 | BYA49: TOTAL GENERAL | BYD49: =SUM(HID28:HID47) -> $0 | BYI49: TOTAL GENERAL | BYL49: =SUM(HIL28:HIL47) -> $0 | BYQ49: TOTAL GENERAL | BYT49: =SUM(HIT28:HIT47) -> $0 | BYY49: TOTAL GENERAL | BZB49: =SUM(HJB28:HJB47) -> $0 | BZG49: TOTAL GENERAL | BZJ49: =SUM(HJJ28:HJJ47) -> $0 | BZO49: TOTAL GENERAL | BZR49: =SUM(HJR28:HJR47) -> $0 | BZW49: TOTAL GENERAL | BZZ49: =SUM(HJZ28:HJZ47) -> $0 | CAE49: TOTAL GENERAL | CAH49: =SUM(HKH28:HKH47) -> $0 | CBF49: =SUM(HLF28:HLF47) -> $0 | CBK49: TOTAL GENERAL | CBN49: =SUM(HLN28:HLN47) -> $0 | CBS49: TOTAL GENERAL | CBV49: =SUM(HLV28:HLV47) -> $0 | CCA49: TOTAL GENERAL | CCD49: =SUM(HMD28:HMD47) -> $0 | CCI49: TOTAL GENERAL | CCL49: =SUM(HML28:HML47) -> $0 | CCQ49: TOTAL GENERAL | CCT49: =SUM(HMT28:HMT47) -> $0 | CCY49: TOTAL GENERAL | CDB49: =SUM(HNB28:HNB47) -> $0 | CDG49: TOTAL GENERAL | CDJ49: =SUM(HNJ28:HNJ47) -> $0 | CDO49: TOTAL GENERAL | CDR49: =SUM(HNR28:HNR47) -> $0 | CDW49: TOTAL GENERAL | CDZ49: =SUM(HNZ28:HNZ47) -> $0 | CEE49: TOTAL GENERAL | CEH49: =SUM(HOH28:HOH47) -> $0 | CEM49: TOTAL GENERAL | CEP49: =SUM(HOP28:HOP47) -> $0 | CEU49: TOTAL GENERAL | CEX49: =SUM(HOX28:HOX47) -> $0 | CFC49: TOTAL GENERAL | CFF49: =SUM(HPF28:HPF47) -> $0 | CFK49: TOTAL GENERAL | CFN49: =SUM(HPN28:HPN47) -> $0 | CFS49: TOTAL GENERAL | CFV49: =SUM(HPV28:HPV47) -> $0 | CGA49: TOTAL GENERAL | CGD49: =SUM(HQD28:HQD47) -> $0 | CGI49: TOTAL GENERAL | CGL49: =SUM(HQL28:HQL47) -> $0 | CGQ49: TOTAL GENERAL | CGT49: =SUM(HQT28:HQT47) -> $0 | CGY49: TOTAL GENERAL | CHB49: =SUM(HRB28:HRB47) -> $0 | CHG49: TOTAL GENERAL | CHJ49: =SUM(HRJ28:HRJ47) -> $0 | CHO49: TOTAL GENERAL | CHR49: =SUM(HRR28:HRR47) -> $0 | CHW49: TOTAL GENERAL | CHZ49: =SUM(HRZ28:HRZ47) -> $0 | CIE49: TOTAL GENERAL | CIH49: =SUM(HSH28:HSH47) -> $0 | CIM49: TOTAL GENERAL | CIP49: =SUM(HSP28:HSP47) -> $0 | CIU49: TOTAL GENERAL | CIX49: =SUM(HSX28:HSX47) -> $0 | CJC49: TOTAL GENERAL | CJF49: =SUM(HTF28:HTF47) -> $0 | CJK49: TOTAL GENERAL | CJN49: =SUM(HTN28:HTN47) -> $0 | CKI49: TOTAL GENERAL | CKL49: =SUM(HUL28:HUL47) -> $0 | CKQ49: TOTAL GENERAL | CKT49: =SUM(HUT28:HUT47) -> $0 | CKY49: TOTAL GENERAL | CLB49: =SUM(HVB28:HVB47) -> $0 | CLG49: TOTAL GENERAL | CLJ49: =SUM(HVJ28:HVJ47) -> $0 | CLO49: TOTAL GENERAL | CLR49: =SUM(HVR28:HVR47) -> $0 | CLW49: TOTAL GENERAL | CLZ49: =SUM(HVZ28:HVZ47) -> $0 | CME49: TOTAL GENERAL | CMH49: =SUM(HWH28:HWH47) -> $0 | CMM49: TOTAL GENERAL | CMP49: =SUM(HWP28:HWP47) -> $0 | CMU49: TOTAL GENERAL | CMX49: =SUM(HWX28:HWX47) -> $0 | CNC49: TOTAL GENERAL | CNF49: =SUM(HXF28:HXF47) -> $0 | CNK49: TOTAL GENERAL | CNN49: =SUM(HXN28:HXN47) -> $0 | CNS49: TOTAL GENERAL | CNV49: =SUM(HXV28:HXV47) -> $0 | COA49: TOTAL GENERAL | COD49: =SUM(HYD28:HYD47) -> $0 | COI49: TOTAL GENERAL | COL49: =SUM(HYL28:HYL47) -> $0 | COQ49: TOTAL GENERAL | COT49: =SUM(HYT28:HYT47) -> $0 | COY49: TOTAL GENERAL | CPB49: =SUM(HZB28:HZB47) -> $0 | CPG49: TOTAL GENERAL | CPJ49: =SUM(HZJ28:HZJ47) -> $0 | CPO49: TOTAL GENERAL | CPR49: =SUM(HZR28:HZR47) -> $0 | CPW49: TOTAL GENERAL | CPZ49: =SUM(HZZ28:HZZ47) -> $0 | CQE49: TOTAL GENERAL | CQH49: =SUM(IAH28:IAH47) -> $0 | CQM49: TOTAL GENERAL | CQP49: =SUM(IAP28:IAP47) -> $0 | CQU49: TOTAL GENERAL | CQX49: =SUM(IAX28:IAX47) -> $0 | CRC49: TOTAL GENERAL | CRF49: =SUM(IBF28:IBF47) -> $0 | CRK49: TOTAL GENERAL | CRN49: =SUM(IBN28:IBN47) -> $0 | CRS49: TOTAL GENERAL | CRV49: =SUM(IBV28:IBV47) -> $0 | CSA49: TOTAL GENERAL | CSD49: =SUM(ICD28:ICD47) -> $0 | CSI49: TOTAL GENERAL | CSL49: =SUM(ICL28:ICL47) -> $0 | CSQ49: TOTAL GENERAL | CST49: =SUM(ICT28:ICT47) -> $0 | CSY49: TOTAL GENERAL | CTB49: =SUM(IDB28:IDB47) -> $0 | CTG49: TOTAL GENERAL | CTJ49: =SUM(IDJ28:IDJ47) -> $0 | CTO49: TOTAL GENERAL | CTR49: =SUM(IDR28:IDR47) -> $0 | CTW49: TOTAL GENERAL | CTZ49: =SUM(IDZ28:IDZ47) -> $0 | CUE49: TOTAL GENERAL | CUH49: =SUM(IEH28:IEH47) -> $0 | CUM49: TOTAL GENERAL | CUP49: =SUM(IEP28:IEP47) -> $0 | CUU49: TOTAL GENERAL | CUX49: =SUM(IEX28:IEX47) -> $0 | CVC49: TOTAL GENERAL | CVF49: =SUM(IFF28:IFF47) -> $0 | CVK49: TOTAL GENERAL | CVN49: =SUM(IFN28:IFN47) -> $0 | CVS49: TOTAL GENERAL | CVV49: =SUM(IFV28:IFV47) -> $0 | CWA49: TOTAL GENERAL | CWD49: =SUM(IGD28:IGD47) -> $0 | CWI49: TOTAL GENERAL | CWL49: =SUM(IGL28:IGL47) -> $0 | CWQ49: TOTAL GENERAL | CWT49: =SUM(IGT28:IGT47) -> $0 | CWY49: TOTAL GENERAL | CXB49: =SUM(IHB28:IHB47) -> $0 | CXG49: TOTAL GENERAL | CXJ49: =SUM(IHJ28:IHJ47) -> $0 | CXO49: TOTAL GENERAL | CXR49: =SUM(IHR28:IHR47) -> $0 | CXW49: TOTAL GENERAL | CXZ49: =SUM(IHZ28:IHZ47) -> $0 | CYE49: TOTAL GENERAL | CYH49: =SUM(IIH28:IIH47) -> $0 | CYM49: TOTAL GENERAL | CYP49: =SUM(IIP28:IIP47) -> $0 | CYU49: TOTAL GENERAL | CYX49: =SUM(IIX28:IIX47) -> $0 | CZC49: TOTAL GENERAL | CZF49: =SUM(IJF28:IJF47) -> $0 | CZK49: TOTAL GENERAL | CZN49: =SUM(IJN28:IJN47) -> $0 | CZS49: TOTAL GENERAL | CZV49: =SUM(IJV28:IJV47) -> $0 | DAA49: TOTAL GENERAL | DAD49: =SUM(IKD28:IKD47) -> $0 | DAI49: TOTAL GENERAL | DAL49: =SUM(IKL28:IKL47) -> $0 | DAQ49: TOTAL GENERAL | DAT49: =SUM(IKT28:IKT47) -> $0 | DAY49: TOTAL GENERAL | DBB49: =SUM(ILB28:ILB47) -> $0 | DBG49: TOTAL GENERAL | DBJ49: =SUM(ILJ28:ILJ47) -> $0 | DBO49: TOTAL GENERAL | DBR49: =SUM(ILR28:ILR47) -> $0 | DBW49: TOTAL GENERAL | DBZ49: =SUM(ILZ28:ILZ47) -> $0 | DCE49: TOTAL GENERAL | DCH49: =SUM(IMH28:IMH47) -> $0 | DCM49: TOTAL GENERAL | DCP49: =SUM(IMP28:IMP47) -> $0 | DCU49: TOTAL GENERAL | DCX49: =SUM(IMX28:IMX47) -> $0 | DDC49: TOTAL GENERAL | DDF49: =SUM(INF28:INF47) -> $0 | DDK49: TOTAL GENERAL | DDN49: =SUM(INN28:INN47) -> $0 | DDS49: TOTAL GENERAL | DDV49: =SUM(INV28:INV47) -> $0 | DEA49: TOTAL GENERAL | DED49: =SUM(IOD28:IOD47) -> $0 | DEI49: TOTAL GENERAL | DEL49: =SUM(IOL28:IOL47) -> $0 | DEQ49: TOTAL GENERAL | DET49: =SUM(IOT28:IOT47) -> $0 | DEY49: TOTAL GENERAL | DFB49: =SUM(IPB28:IPB47) -> $0 | DFG49: TOTAL GENERAL | DFJ49: =SUM(IPJ28:IPJ47) -> $0 | DFO49: TOTAL GENERAL | DFR49: =SUM(IPR28:IPR47) -> $0 | DFW49: TOTAL GENERAL | DFZ49: =SUM(IPZ28:IPZ47) -> $0 | DGE49: TOTAL GENERAL | DGH49: =SUM(IQH28:IQH47) -> $0 | DGM49: TOTAL GENERAL | DGP49: =SUM(IQP28:IQP47) -> $0 | DGU49: TOTAL GENERAL | DGX49: =SUM(IQX28:IQX47) -> $0 | DHC49: TOTAL GENERAL | DHF49: =SUM(IRF28:IRF47) -> $0 | DHK49: TOTAL GENERAL | DHN49: =SUM(IRN28:IRN47) -> $0 | DHS49: TOTAL GENERAL | DHV49: =SUM(IRV28:IRV47) -> $0 | DIA49: TOTAL GENERAL | DID49: =SUM(ISD28:ISD47) -> $0 | DII49: TOTAL GENERAL | DIL49: =SUM(ISL28:ISL47) -> $0 | DIQ49: TOTAL GENERAL | DIT49: =SUM(IST28:IST47) -> $0 | DIY49: TOTAL GENERAL | DJB49: =SUM(ITB28:ITB47) -> $0 | DJG49: TOTAL GENERAL | DJJ49: =SUM(ITJ28:ITJ47) -> $0 | DJO49: TOTAL GENERAL | DJR49: =SUM(ITR28:ITR47) -> $0 | DJW49: TOTAL GENERAL | DJZ49: =SUM(ITZ28:ITZ47) -> $0 | DKE49: TOTAL GENERAL | DKH49: =SUM(IUH28:IUH47) -> $0 | DKM49: TOTAL GENERAL | DKP49: =SUM(IUP28:IUP47) -> $0 | DKU49: TOTAL GENERAL | DKX49: =SUM(IUX28:IUX47) -> $0 | DLC49: TOTAL GENERAL | DLF49: =SUM(IVF28:IVF47) -> $0 | DLK49: TOTAL GENERAL | DLN49: =SUM(IVN28:IVN47) -> $0 | DLS49: TOTAL GENERAL | DLV49: =SUM(IVV28:IVV47) -> $0 | DMA49: TOTAL GENERAL | DMD49: =SUM(IWD28:IWD47) -> $0 | DMI49: TOTAL GENERAL | DML49: =SUM(IWL28:IWL47) -> $0 | DMQ49: TOTAL GENERAL | DMT49: =SUM(IWT28:IWT47) -> $0 | DMY49: TOTAL GENERAL | DNB49: =SUM(IXB28:IXB47) -> $0 | DNG49: TOTAL GENERAL | DNJ49: =SUM(IXJ28:IXJ47) -> $0 | DNO49: TOTAL GENERAL | DNR49: =SUM(IXR28:IXR47) -> $0 | DNW49: TOTAL GENERAL | DNZ49: =SUM(IXZ28:IXZ47) -> $0 | DOE49: TOTAL GENERAL | DOH49: =SUM(IYH28:IYH47) -> $0 | DOM49: TOTAL GENERAL | DOP49: =SUM(IYP28:IYP47) -> $0 | DOU49: TOTAL GENERAL | DOX49: =SUM(IYX28:IYX47) -> $0 | DPC49: TOTAL GENERAL | DPF49: =SUM(IZF28:IZF47) -> $0 | DPK49: TOTAL GENERAL | DPN49: =SUM(IZN28:IZN47) -> $0 | DPS49: TOTAL GENERAL | DPV49: =SUM(IZV28:IZV47) -> $0 | DQA49: TOTAL GENERAL | DQD49: =SUM(JAD28:JAD47) -> $0 | DQI49: TOTAL GENERAL | DQL49: =SUM(JAL28:JAL47) -> $0 | DQQ49: TOTAL GENERAL | DQT49: =SUM(JAT28:JAT47) -> $0 | DQY49: TOTAL GENERAL | DRB49: =SUM(JBB28:JBB47) -> $0 | DRG49: TOTAL GENERAL | DRJ49: =SUM(JBJ28:JBJ47) -> $0 | DRO49: TOTAL GENERAL | DRR49: =SUM(JBR28:JBR47) -> $0 | DRW49: TOTAL GENERAL | DRZ49: =SUM(JBZ28:JBZ47) -> $0 | DSE49: TOTAL GENERAL | DSH49: =SUM(JCH28:JCH47) -> $0 | DSM49: TOTAL GENERAL | DSP49: =SUM(JCP28:JCP47) -> $0 | DSU49: TOTAL GENERAL | DSX49: =SUM(JCX28:JCX47) -> $0 | DUD49: =SUM(JED28:JED47) -> $0 | DUI49: TOTAL GENERAL | DUL49: =SUM(JEL28:JEL47) -> $0 | DUQ49: TOTAL GENERAL | DUT49: =SUM(JET28:JET47) -> $0 | DUY49: TOTAL GENERAL | DVB49: =SUM(JFB28:JFB47) -> $0 | DVG49: TOTAL GENERAL | DVJ49: =SUM(JFJ28:JFJ47) -> $0 | DVO49: TOTAL GENERAL | DVR49: =SUM(JFR28:JFR47) -> $0 | DVW49: TOTAL GENERAL | DVZ49: =SUM(JFZ28:JFZ47) -> $0 | DWE49: TOTAL GENERAL | DWH49: =SUM(JGH28:JGH47) -> $0 | DWM49: TOTAL GENERAL | DWP49: =SUM(JGP28:JGP47) -> $0 | DWU49: TOTAL GENERAL | DWX49: =SUM(JGX28:JGX47) -> $0 | DXC49: TOTAL GENERAL | DXF49: =SUM(JHF28:JHF47) -> $0 | DXK49: TOTAL GENERAL | DXN49: =SUM(JHN28:JHN47) -> $0 | DXS49: TOTAL GENERAL | DXV49: =SUM(JHV28:JHV47) -> $0 | DYA49: TOTAL GENERAL | DYD49: =SUM(JID28:JID47) -> $0 | DYI49: TOTAL GENERAL | DYL49: =SUM(JIL28:JIL47) -> $0 | DYQ49: TOTAL GENERAL | DYT49: =SUM(JIT28:JIT47) -> $0 | DYY49: TOTAL GENERAL | DZB49: =SUM(JJB28:JJB47) -> $0 | DZG49: TOTAL GENERAL | DZJ49: =SUM(JJJ28:JJJ47) -> $0 | DZO49: TOTAL GENERAL | DZR49: =SUM(JJR28:JJR47) -> $0 | DZW49: TOTAL GENERAL | DZZ49: =SUM(JJZ28:JJZ47) -> $0 | EAE49: TOTAL GENERAL | EAH49: =SUM(JKH28:JKH47) -> $0 | EAM49: TOTAL GENERAL | EAP49: =SUM(JKP28:JKP47) -> $0 | EAU49: TOTAL GENERAL | EAX49: =SUM(JKX28:JKX47) -> $0 | EBC49: TOTAL GENERAL | EBF49: =SUM(JLF28:JLF47) -> $0 | EBK49: TOTAL GENERAL | EBN49: =SUM(JLN28:JLN47) -> $0 | EBS49: TOTAL GENERAL | EBV49: =SUM(JLV28:JLV47) -> $0 | ECA49: TOTAL GENERAL | ECD49: =SUM(JMD28:JMD47) -> $0 | ECI49: TOTAL GENERAL | ECL49: =SUM(JML28:JML47) -> $0 | ECQ49: TOTAL GENERAL | ECT49: =SUM(JMT28:JMT47) -> $0 | ECY49: TOTAL GENERAL | EDB49: =SUM(JNB28:JNB47) -> $0 | EDG49: TOTAL GENERAL | EDJ49: =SUM(JNJ28:JNJ47) -> $0 | EDO49: TOTAL GENERAL | EDR49: =SUM(JNR28:JNR47) -> $0 | EDW49: TOTAL GENERAL | EDZ49: =SUM(JNZ28:JNZ47) -> $0 | EEE49: TOTAL GENERAL | EEH49: =SUM(JOH28:JOH47) -> $0 | EEM49: TOTAL GENERAL | EEP49: =SUM(JOP28:JOP47) -> $0 | EEU49: TOTAL GENERAL | EEX49: =SUM(JOX28:JOX47) -> $0 | EFC49: TOTAL GENERAL | EFF49: =SUM(JPF28:JPF47) -> $0 | EFK49: TOTAL GENERAL | EFN49: =SUM(JPN28:JPN47) -> $0 | EFS49: TOTAL GENERAL | EFV49: =SUM(JPV28:JPV47) -> $0 | EGA49: TOTAL GENERAL | EGD49: =SUM(JQD28:JQD47) -> $0 | EGI49: TOTAL GENERAL | EGL49: =SUM(JQL28:JQL47) -> $0 | EGQ49: TOTAL GENERAL | EGT49: =SUM(JQT28:JQT47) -> $0 | EGY49: TOTAL GENERAL | EHB49: =SUM(JRB28:JRB47) -> $0 | EHG49: TOTAL GENERAL | EHJ49: =SUM(JRJ28:JRJ47) -> $0 | EHO49: TOTAL GENERAL | EHR49: =SUM(JRR28:JRR47) -> $0 | EHW49: TOTAL GENERAL | EHZ49: =SUM(JRZ28:JRZ47) -> $0 | EIE49: TOTAL GENERAL | EIH49: =SUM(JSH28:JSH47) -> $0 | EIM49: TOTAL GENERAL | EIP49: =SUM(JSP28:JSP47) -> $0 | EIU49: TOTAL GENERAL | EIX49: =SUM(JSX28:JSX47) -> $0 | EJC49: TOTAL GENERAL | EJF49: =SUM(JTF28:JTF47) -> $0 | EJK49: TOTAL GENERAL | EJN49: =SUM(JTN28:JTN47) -> $0 | EJS49: TOTAL GENERAL | EJV49: =SUM(JTV28:JTV47) -> $0 | EKA49: TOTAL GENERAL | EKD49: =SUM(JUD28:JUD47) -> $0 | EKI49: TOTAL GENERAL | EKL49: =SUM(JUL28:JUL47) -> $0 | EKQ49: TOTAL GENERAL | EKT49: =SUM(JUT28:JUT47) -> $0 | EKY49: TOTAL GENERAL | ELB49: =SUM(JVB28:JVB47) -> $0 | ELG49: TOTAL GENERAL | ELJ49: =SUM(JVJ28:JVJ47) -> $0 | ELO49: TOTAL GENERAL | ELR49: =SUM(JVR28:JVR47) -> $0 | ELW49: TOTAL GENERAL | ELZ49: =SUM(JVZ28:JVZ47) -> $0 | EME49: TOTAL GENERAL | EMH49: =SUM(JWH28:JWH47) -> $0 | EMM49: TOTAL GENERAL | EMP49: =SUM(JWP28:JWP47) -> $0 | EMU49: TOTAL GENERAL | EMX49: =SUM(JWX28:JWX47) -> $0 | ENC49: TOTAL GENERAL | ENF49: =SUM(JXF28:JXF47) -> $0 | ENK49: TOTAL GENERAL | ENN49: =SUM(JXN28:JXN47) -> $0 | ENS49: TOTAL GENERAL | ENV49: =SUM(JXV28:JXV47) -> $0 | EOA49: TOTAL GENERAL | EOD49: =SUM(JYD28:JYD47) -> $0 | EOI49: TOTAL GENERAL | EOL49: =SUM(JYL28:JYL47) -> $0 | EOQ49: TOTAL GENERAL | EOT49: =SUM(JYT28:JYT47) -> $0 | EOY49: TOTAL GENERAL | EPB49: =SUM(JZB28:JZB47) -> $0 | EPG49: TOTAL GENERAL | EPJ49: =SUM(JZJ28:JZJ47) -> $0 | EPO49: TOTAL GENERAL | EPR49: =SUM(JZR28:JZR47) -> $0 | EPW49: TOTAL GENERAL | EPZ49: =SUM(JZZ28:JZZ47) -> $0 | EQE49: TOTAL GENERAL | EQH49: =SUM(KAH28:KAH47) -> $0 | EQM49: TOTAL GENERAL | EQP49: =SUM(KAP28:KAP47) -> $0 | EQU49: TOTAL GENERAL | EQX49: =SUM(KAX28:KAX47) -> $0 | ERC49: TOTAL GENERAL | ERF49: =SUM(KBF28:KBF47) -> $0 | ERK49: TOTAL GENERAL | ERN49: =SUM(KBN28:KBN47) -> $0 | ERS49: TOTAL GENERAL | ERV49: =SUM(KBV28:KBV47) -> $0 | ESA49: TOTAL GENERAL | ESD49: =SUM(KCD28:KCD47) -> $0 | ESI49: TOTAL GENERAL | ESL49: =SUM(KCL28:KCL47) -> $0 | ESQ49: TOTAL GENERAL | EST49: =SUM(KCT28:KCT47) -> $0 | ESY49: TOTAL GENERAL | ETB49: =SUM(KDB28:KDB47) -> $0 | ETG49: TOTAL GENERAL | ETJ49: =SUM(KDJ28:KDJ47) -> $0 | ETO49: TOTAL GENERAL | ETR49: =SUM(KDR28:KDR47) -> $0 | ETW49: TOTAL GENERAL | ETZ49: =SUM(KDZ28:KDZ47) -> $0 | EUE49: TOTAL GENERAL | EUH49: =SUM(KEH28:KEH47) -> $0 | EUM49: TOTAL GENERAL | EUP49: =SUM(KEP28:KEP47) -> $0 | EUU49: TOTAL GENERAL | EUX49: =SUM(KEX28:KEX47) -> $0 | EVC49: TOTAL GENERAL | EVF49: =SUM(KFF28:KFF47) -> $0 | EVK49: TOTAL GENERAL | EVN49: =SUM(KFN28:KFN47) -> $0 | EVS49: TOTAL GENERAL | EVV49: =SUM(KFV28:KFV47) -> $0 | EWA49: TOTAL GENERAL | EWD49: =SUM(KGD28:KGD47) -> $0 | EWI49: TOTAL GENERAL | EWL49: =SUM(KGL28:KGL47) -> $0 | EWQ49: TOTAL GENERAL | EWT49: =SUM(KGT28:KGT47) -> $0 | EWY49: TOTAL GENERAL | EXB49: =SUM(KHB28:KHB47) -> $0 | EXG49: TOTAL GENERAL | EXJ49: =SUM(KHJ28:KHJ47) -> $0 | EXO49: TOTAL GENERAL | EXR49: =SUM(KHR28:KHR47) -> $0 | EXW49: TOTAL GENERAL | EXZ49: =SUM(KHZ28:KHZ47) -> $0 | EYE49: TOTAL GENERAL | EYH49: =SUM(KIH28:KIH47) -> $0 | EYM49: TOTAL GENERAL | EYP49: =SUM(KIP28:KIP47) -> $0 | EYU49: TOTAL GENERAL | EYX49: =SUM(KIX28:KIX47) -> $0 | EZC49: TOTAL GENERAL | EZF49: =SUM(KJF28:KJF47) -> $0 | EZK49: TOTAL GENERAL | EZN49: =SUM(KJN28:KJN47) -> $0 | EZS49: TOTAL GENERAL | EZV49: =SUM(KJV28:KJV47) -> $0 | FAA49: TOTAL GENERAL | FAD49: =SUM(KKD28:KKD47) -> $0 | FAI49: TOTAL GENERAL | FAL49: =SUM(KKL28:KKL47) -> $0 | FAQ49: TOTAL GENERAL | FAT49: =SUM(KKT28:KKT47) -> $0 | FAY49: TOTAL GENERAL | FBB49: =SUM(KLB28:KLB47) -> $0 | FBG49: TOTAL GENERAL | FBJ49: =SUM(KLJ28:KLJ47) -> $0 | FBO49: TOTAL GENERAL | FBR49: =SUM(KLR28:KLR47) -> $0 | FBW49: TOTAL GENERAL | FBZ49: =SUM(KLZ28:KLZ47) -> $0 | FCE49: TOTAL GENERAL | FCH49: =SUM(KMH28:KMH47) -> $0 | FCM49: TOTAL GENERAL | FCP49: =SUM(KMP28:KMP47) -> $0 | FCU49: TOTAL GENERAL | FCX49: =SUM(KMX28:KMX47) -> $0 | FDC49: TOTAL GENERAL | FDF49: =SUM(KNF28:KNF47) -> $0 | FDK49: TOTAL GENERAL | FDN49: =SUM(KNN28:KNN47) -> $0 | FDS49: TOTAL GENERAL | FDV49: =SUM(KNV28:KNV47) -> $0 | FEA49: TOTAL GENERAL | FED49: =SUM(KOD28:KOD47) -> $0 | FEI49: TOTAL GENERAL | FEL49: =SUM(KOL28:KOL47) -> $0 | FEQ49: TOTAL GENERAL | FET49: =SUM(KOT28:KOT47) -> $0 | FEY49: TOTAL GENERAL | FFB49: =SUM(KPB28:KPB47) -> $0 | FFG49: TOTAL GENERAL | FFJ49: =SUM(KPJ28:KPJ47) -> $0 | FFO49: TOTAL GENERAL | FFR49: =SUM(KPR28:KPR47) -> $0 | FFW49: TOTAL GENERAL | FFZ49: =SUM(KPZ28:KPZ47) -> $0 | FGE49: TOTAL GENERAL | FGH49: =SUM(KQH28:KQH47) -> $0 | FGM49: TOTAL GENERAL | FGP49: =SUM(KQP28:KQP47) -> $0 | FGU49: TOTAL GENERAL | FGX49: =SUM(KQX28:KQX47) -> $0 | FHC49: TOTAL GENERAL | FHF49: =SUM(KRF28:KRF47) -> $0 | FHK49: TOTAL GENERAL | FHN49: =SUM(KRN28:KRN47) -> $0 | FHS49: TOTAL GENERAL | FHV49: =SUM(KRV28:KRV47) -> $0 | FIA49: TOTAL GENERAL | FID49: =SUM(KSD28:KSD47) -> $0 | FII49: TOTAL GENERAL | FIL49: =SUM(KSL28:KSL47) -> $0 | FIQ49: TOTAL GENERAL | FIT49: =SUM(KST28:KST47) -> $0 | FIY49: TOTAL GENERAL | FJB49: =SUM(KTB28:KTB47) -> $0 | FJG49: TOTAL GENERAL | FJJ49: =SUM(KTJ28:KTJ47) -> $0 | FJO49: TOTAL GENERAL | FJR49: =SUM(KTR28:KTR47) -> $0 | FJW49: TOTAL GENERAL | FJZ49: =SUM(KTZ28:KTZ47) -> $0 | FKE49: TOTAL GENERAL | FKH49: =SUM(KUH28:KUH47) -> $0 | FKM49: TOTAL GENERAL | FKP49: =SUM(KUP28:KUP47) -> $0 | FKU49: TOTAL GENERAL | FKX49: =SUM(KUX28:KUX47) -> $0 | FLC49: TOTAL GENERAL | FLF49: =SUM(KVF28:KVF47) -> $0 | FLK49: TOTAL GENERAL | FLN49: =SUM(KVN28:KVN47) -> $0 | FLS49: TOTAL GENERAL | FLV49: =SUM(KVV28:KVV47) -> $0 | FMA49: TOTAL GENERAL | FMD49: =SUM(KWD28:KWD47) -> $0 | FMI49: TOTAL GENERAL | FML49: =SUM(KWL28:KWL47) -> $0 | FMQ49: TOTAL GENERAL | FMT49: =SUM(KWT28:KWT47) -> $0 | FMY49: TOTAL GENERAL | FNB49: =SUM(KXB28:KXB47) -> $0 | FNG49: TOTAL GENERAL | FNJ49: =SUM(KXJ28:KXJ47) -> $0 | FNO49: TOTAL GENERAL | FNR49: =SUM(KXR28:KXR47) -> $0 | FNW49: TOTAL GENERAL | FNZ49: =SUM(KXZ28:KXZ47) -> $0 | FOE49: TOTAL GENERAL | FOH49: =SUM(KYH28:KYH47) -> $0 | FOM49: TOTAL GENERAL | FOP49: =SUM(KYP28:KYP47) -> $0 | FOU49: TOTAL GENERAL | FOX49: =SUM(KYX28:KYX47) -> $0 | FPC49: TOTAL GENERAL | FPF49: =SUM(KZF28:KZF47) -> $0 | FPK49: TOTAL GENERAL | FPN49: =SUM(KZN28:KZN47) -> $0 | FPS49: TOTAL GENERAL | FPV49: =SUM(KZV28:KZV47) -> $0 | FQA49: TOTAL GENERAL | FQD49: =SUM(LAD28:LAD47) -> $0 | FQI49: TOTAL GENERAL | FQL49: =SUM(LAL28:LAL47) -> $0 | FQQ49: TOTAL GENERAL | FQT49: =SUM(LAT28:LAT47) -> $0 | FQY49: TOTAL GENERAL | FRB49: =SUM(LBB28:LBB47) -> $0 | FRG49: TOTAL GENERAL | FRJ49: =SUM(LBJ28:LBJ47) -> $0 | FRO49: TOTAL GENERAL | FRR49: =SUM(LBR28:LBR47) -> $0 | FRW49: TOTAL GENERAL | FRZ49: =SUM(LBZ28:LBZ47) -> $0 | FSE49: TOTAL GENERAL | FSH49: =SUM(LCH28:LCH47) -> $0 | FSM49: TOTAL GENERAL | FSP49: =SUM(LCP28:LCP47) -> $0 | FSU49: TOTAL GENERAL | FSX49: =SUM(LCX28:LCX47) -> $0 | FTC49: TOTAL GENERAL | FTF49: =SUM(LDF28:LDF47) -> $0 | FTK49: TOTAL GENERAL | FTN49: =SUM(LDN28:LDN47) -> $0 | FTS49: TOTAL GENERAL | FTV49: =SUM(LDV28:LDV47) -> $0 | FUA49: TOTAL GENERAL | FUD49: =SUM(LED28:LED47) -> $0 | FUI49: TOTAL GENERAL | FUL49: =SUM(LEL28:LEL47) -> $0 | FUQ49: TOTAL GENERAL | FUT49: =SUM(LET28:LET47) -> $0 | FUY49: TOTAL GENERAL | FVB49: =SUM(LFB28:LFB47) -> $0 | FVG49: TOTAL GENERAL | FVJ49: =SUM(LFJ28:LFJ47) -> $0 | FVO49: TOTAL GENERAL | FVR49: =SUM(LFR28:LFR47) -> $0 | FVW49: TOTAL GENERAL | FVZ49: =SUM(LFZ28:LFZ47) -> $0 | FWE49: TOTAL GENERAL | FWH49: =SUM(LGH28:LGH47) -> $0 | FWM49: TOTAL GENERAL | FWP49: =SUM(LGP28:LGP47) -> $0 | FWU49: TOTAL GENERAL | FWX49: =SUM(LGX28:LGX47) -> $0 | FXC49: TOTAL GENERAL | FXF49: =SUM(LHF28:LHF47) -> $0 | FXK49: TOTAL GENERAL | FXN49: =SUM(LHN28:LHN47) -> $0 | FXS49: TOTAL GENERAL | FXV49: =SUM(LHV28:LHV47) -> $0 | FYA49: TOTAL GENERAL | FYD49: =SUM(LID28:LID47) -> $0 | FYI49: TOTAL GENERAL | FYL49: =SUM(LIL28:LIL47) -> $0 | FYQ49: TOTAL GENERAL | FYT49: =SUM(LIT28:LIT47) -> $0 | FYY49: TOTAL GENERAL | FZB49: =SUM(LJB28:LJB47) -> $0 | FZG49: TOTAL GENERAL | FZJ49: =SUM(LJJ28:LJJ47) -> $0 | FZO49: TOTAL GENERAL | FZR49: =SUM(LJR28:LJR47) -> $0 | FZW49: TOTAL GENERAL | FZZ49: =SUM(LJZ28:LJZ47) -> $0 | GAE49: TOTAL GENERAL | GAH49: =SUM(LKH28:LKH47) -> $0 | GAM49: TOTAL GENERAL | GAP49: =SUM(LKP28:LKP47) -> $0 | GAU49: TOTAL GENERAL | GAX49: =SUM(LKX28:LKX47) -> $0 | GBC49: TOTAL GENERAL | GBF49: =SUM(LLF28:LLF47) -> $0 | GBK49: TOTAL GENERAL | GBN49: =SUM(LLN28:LLN47) -> $0 | GBS49: TOTAL GENERAL | GBV49: =SUM(LLV28:LLV47) -> $0 | GCA49: TOTAL GENERAL | GCD49: =SUM(LMD28:LMD47) -> $0 | GCI49: TOTAL GENERAL | GCL49: =SUM(LML28:LML47) -> $0 | GCQ49: TOTAL GENERAL | GCT49: =SUM(LMT28:LMT47) -> $0 | GCY49: TOTAL GENERAL | GDB49: =SUM(LNB28:LNB47) -> $0 | GDG49: TOTAL GENERAL | GDJ49: =SUM(LNJ28:LNJ47) -> $0 | GDO49: TOTAL GENERAL | GDR49: =SUM(LNR28:LNR47) -> $0 | GDW49: TOTAL GENERAL | GDZ49: =SUM(LNZ28:LNZ47) -> $0 | GEE49: TOTAL GENERAL | GEH49: =SUM(LOH28:LOH47) -> $0 | GEM49: TOTAL GENERAL | GEP49: =SUM(LOP28:LOP47) -> $0 | GEU49: TOTAL GENERAL | GEX49: =SUM(LOX28:LOX47) -> $0 | GFC49: TOTAL GENERAL | GFF49: =SUM(LPF28:LPF47) -> $0 | GFK49: TOTAL GENERAL | GFN49: =SUM(LPN28:LPN47) -> $0 | GFS49: TOTAL GENERAL | GFV49: =SUM(LPV28:LPV47) -> $0 | GGA49: TOTAL GENERAL | GGD49: =SUM(LQD28:LQD47) -> $0 | GGI49: TOTAL GENERAL | GGL49: =SUM(LQL28:LQL47) -> $0 | GGQ49: TOTAL GENERAL | GGT49: =SUM(LQT28:LQT47) -> $0 | GGY49: TOTAL GENERAL | GHB49: =SUM(LRB28:LRB47) -> $0 | GHG49: TOTAL GENERAL | GHJ49: =SUM(LRJ28:LRJ47) -> $0 | GHO49: TOTAL GENERAL | GHR49: =SUM(LRR28:LRR47) -> $0 | GHW49: TOTAL GENERAL | GHZ49: =SUM(LRZ28:LRZ47) -> $0 | GIE49: TOTAL GENERAL | GIH49: =SUM(LSH28:LSH47) -> $0 | GIM49: TOTAL GENERAL | GIP49: =SUM(LSP28:LSP47) -> $0 | GIU49: TOTAL GENERAL | GIX49: =SUM(LSX28:LSX47) -> $0 | GJC49: TOTAL GENERAL | GJF49: =SUM(LTF28:LTF47) -> $0 | GJK49: TOTAL GENERAL | GJN49: =SUM(LTN28:LTN47) -> $0 | GJS49: TOTAL GENERAL | GJV49: =SUM(LTV28:LTV47) -> $0 | GKA49: TOTAL GENERAL | GKD49: =SUM(LUD28:LUD47) -> $0 | GKI49: TOTAL GENERAL | GKL49: =SUM(LUL28:LUL47) -> $0 | GKQ49: TOTAL GENERAL | GKT49: =SUM(LUT28:LUT47) -> $0 | GKY49: TOTAL GENERAL | GLB49: =SUM(LVB28:LVB47) -> $0 | GLG49: TOTAL GENERAL | GLJ49: =SUM(LVJ28:LVJ47) -> $0 | GLO49: TOTAL GENERAL | GLR49: =SUM(LVR28:LVR47) -> $0 | GLW49: TOTAL GENERAL | GLZ49: =SUM(LVZ28:LVZ47) -> $0 | GME49: TOTAL GENERAL | GMH49: =SUM(LWH28:LWH47) -> $0 | GMM49: TOTAL GENERAL | GMP49: =SUM(LWP28:LWP47) -> $0 | GMU49: TOTAL GENERAL | GMX49: =SUM(LWX28:LWX47) -> $0 | GNC49: TOTAL GENERAL | GNF49: =SUM(LXF28:LXF47) -> $0 | GNK49: TOTAL GENERAL | GNN49: =SUM(LXN28:LXN47) -> $0 | GNS49: TOTAL GENERAL | GNV49: =SUM(LXV28:LXV47) -> $0 | GOA49: TOTAL GENERAL | GOD49: =SUM(LYD28:LYD47) -> $0 | GOI49: TOTAL GENERAL | GOL49: =SUM(LYL28:LYL47) -> $0 | GOQ49: TOTAL GENERAL | GOT49: =SUM(LYT28:LYT47) -> $0 | GOY49: TOTAL GENERAL | GPB49: =SUM(LZB28:LZB47) -> $0 | GPG49: TOTAL GENERAL | GPJ49: =SUM(LZJ28:LZJ47) -> $0 | GPO49: TOTAL GENERAL | GPR49: =SUM(LZR28:LZR47) -> $0 | GPW49: TOTAL GENERAL | GPZ49: =SUM(LZZ28:LZZ47) -> $0 | GQE49: TOTAL GENERAL | GQH49: =SUM(MAH28:MAH47) -> $0 | GQM49: TOTAL GENERAL | GQP49: =SUM(MAP28:MAP47) -> $0 | GQU49: TOTAL GENERAL | GQX49: =SUM(MAX28:MAX47) -> $0 | GRC49: TOTAL GENERAL | GRF49: =SUM(MBF28:MBF47) -> $0 | GRK49: TOTAL GENERAL | GRN49: =SUM(MBN28:MBN47) -> $0 | GRS49: TOTAL GENERAL | GRV49: =SUM(MBV28:MBV47) -> $0 | GSA49: TOTAL GENERAL | GSD49: =SUM(MCD28:MCD47) -> $0 | GSI49: TOTAL GENERAL | GSL49: =SUM(MCL28:MCL47) -> $0 | GSQ49: TOTAL GENERAL | GST49: =SUM(MCT28:MCT47) -> $0 | GSY49: TOTAL GENERAL | GTB49: =SUM(MDB28:MDB47) -> $0 | GTG49: TOTAL GENERAL | GTJ49: =SUM(MDJ28:MDJ47) -> $0 | GTO49: TOTAL GENERAL | GTR49: =SUM(MDR28:MDR47) -> $0 | GTW49: TOTAL GENERAL | GTZ49: =SUM(MDZ28:MDZ47) -> $0 | GUE49: TOTAL GENERAL | GUH49: =SUM(MEH28:MEH47) -> $0 | GUM49: TOTAL GENERAL | GUP49: =SUM(MEP28:MEP47) -> $0 | GUU49: TOTAL GENERAL | GUX49: =SUM(MEX28:MEX47) -> $0 | GVC49: TOTAL GENERAL | GVF49: =SUM(MFF28:MFF47) -> $0 | GVK49: TOTAL GENERAL | GVN49: =SUM(MFN28:MFN47) -> $0 | GVS49: TOTAL GENERAL | GVV49: =SUM(MFV28:MFV47) -> $0 | GWA49: TOTAL GENERAL | GWD49: =SUM(MGD28:MGD47) -> $0 | GWI49: TOTAL GENERAL | GWL49: =SUM(MGL28:MGL47) -> $0 | GWQ49: TOTAL GENERAL | GWT49: =SUM(MGT28:MGT47) -> $0 | GWY49: TOTAL GENERAL | GXB49: =SUM(MHB28:MHB47) -> $0 | GXG49: TOTAL GENERAL | GXJ49: =SUM(MHJ28:MHJ47) -> $0 | GXO49: TOTAL GENERAL | GXR49: =SUM(MHR28:MHR47) -> $0 | GXW49: TOTAL GENERAL | GXZ49: =SUM(MHZ28:MHZ47) -> $0 | GYE49: TOTAL GENERAL | GYH49: =SUM(MIH28:MIH47) -> $0 | GYM49: TOTAL GENERAL | GYP49: =SUM(MIP28:MIP47) -> $0 | GYU49: TOTAL GENERAL | GYX49: =SUM(MIX28:MIX47) -> $0 | GZC49: TOTAL GENERAL | GZF49: =SUM(MJF28:MJF47) -> $0 | GZK49: TOTAL GENERAL | GZN49: =SUM(MJN28:MJN47) -> $0 | GZS49: TOTAL GENERAL | GZV49: =SUM(MJV28:MJV47) -> $0 | HAA49: TOTAL GENERAL | HAD49: =SUM(MKD28:MKD47) -> $0 | HAI49: TOTAL GENERAL | HAL49: =SUM(MKL28:MKL47) -> $0 | HAQ49: TOTAL GENERAL | HAT49: =SUM(MKT28:MKT47) -> $0 | HAY49: TOTAL GENERAL | HBB49: =SUM(MLB28:MLB47) -> $0 | HBG49: TOTAL GENERAL | HBJ49: =SUM(MLJ28:MLJ47) -> $0 | HBO49: TOTAL GENERAL | HBR49: =SUM(MLR28:MLR47) -> $0 | HBW49: TOTAL GENERAL | HBZ49: =SUM(MLZ28:MLZ47) -> $0 | HCE49: TOTAL GENERAL | HCH49: =SUM(MMH28:MMH47) -> $0 | HCM49: TOTAL GENERAL | HCP49: =SUM(MMP28:MMP47) -> $0 | HCU49: TOTAL GENERAL | HCX49: =SUM(MMX28:MMX47) -> $0 | HDC49: TOTAL GENERAL | HDF49: =SUM(MNF28:MNF47) -> $0 | HDK49: TOTAL GENERAL | HDN49: =SUM(MNN28:MNN47) -> $0 | HDS49: TOTAL GENERAL | HDV49: =SUM(MNV28:MNV47) -> $0 | HEA49: TOTAL GENERAL | HED49: =SUM(MOD28:MOD47) -> $0 | HEI49: TOTAL GENERAL | HEL49: =SUM(MOL28:MOL47) -> $0 | HEQ49: TOTAL GENERAL | HET49: =SUM(MOT28:MOT47) -> $0 | HEY49: TOTAL GENERAL | HFB49: =SUM(MPB28:MPB47) -> $0 | HFG49: TOTAL GENERAL | HFJ49: =SUM(MPJ28:MPJ47) -> $0 | HFO49: TOTAL GENERAL | HFR49: =SUM(MPR28:MPR47) -> $0 | HFW49: TOTAL GENERAL | HFZ49: =SUM(MPZ28:MPZ47) -> $0 | HGE49: TOTAL GENERAL | HGH49: =SUM(MQH28:MQH47) -> $0 | HGM49: TOTAL GENERAL | HGP49: =SUM(MQP28:MQP47) -> $0 | HGU49: TOTAL GENERAL | HGX49: =SUM(MQX28:MQX47) -> $0 | HHC49: TOTAL GENERAL | HHF49: =SUM(MRF28:MRF47) -> $0 | HHK49: TOTAL GENERAL | HHN49: =SUM(MRN28:MRN47) -> $0 | HHS49: TOTAL GENERAL | HHV49: =SUM(MRV28:MRV47) -> $0 | HIA49: TOTAL GENERAL | HID49: =SUM(MSD28:MSD47) -> $0 | HII49: TOTAL GENERAL | HIL49: =SUM(MSL28:MSL47) -> $0 | HIQ49: TOTAL GENERAL | HIT49: =SUM(MST28:MST47) -> $0 | HIY49: TOTAL GENERAL | HJB49: =SUM(MTB28:MTB47) -> $0 | HJG49: TOTAL GENERAL | HJJ49: =SUM(MTJ28:MTJ47) -> $0 | HJO49: TOTAL GENERAL | HJR49: =SUM(MTR28:MTR47) -> $0 | HJW49: TOTAL GENERAL | HJZ49: =SUM(MTZ28:MTZ47) -> $0 | HKE49: TOTAL GENERAL | HKH49: =SUM(MUH28:MUH47) -> $0 | HKM49: TOTAL GENERAL | HKP49: =SUM(MUP28:MUP47) -> $0 | HKU49: TOTAL GENERAL | HKX49: =SUM(MUX28:MUX47) -> $0 | HLC49: TOTAL GENERAL | HLF49: =SUM(MVF28:MVF47) -> $0 | HLK49: TOTAL GENERAL | HLN49: =SUM(MVN28:MVN47) -> $0 | HLS49: TOTAL GENERAL | HLV49: =SUM(MVV28:MVV47) -> $0 | HMA49: TOTAL GENERAL | HMD49: =SUM(MWD28:MWD47) -> $0 | HMI49: TOTAL GENERAL | HML49: =SUM(MWL28:MWL47) -> $0 | HMQ49: TOTAL GENERAL | HMT49: =SUM(MWT28:MWT47) -> $0 | HMY49: TOTAL GENERAL | HNB49: =SUM(MXB28:MXB47) -> $0 | HNG49: TOTAL GENERAL | HNJ49: =SUM(MXJ28:MXJ47) -> $0 | HNO49: TOTAL GENERAL | HNR49: =SUM(MXR28:MXR47) -> $0 | HNW49: TOTAL GENERAL | HNZ49: =SUM(MXZ28:MXZ47) -> $0 | HOE49: TOTAL GENERAL | HOH49: =SUM(MYH28:MYH47) -> $0 | HOM49: TOTAL GENERAL | HOP49: =SUM(MYP28:MYP47) -> $0 | HOU49: TOTAL GENERAL | HOX49: =SUM(MYX28:MYX47) -> $0 | HPC49: TOTAL GENERAL | HPF49: =SUM(MZF28:MZF47) -> $0 | HPK49: TOTAL GENERAL | HPN49: =SUM(MZN28:MZN47) -> $0 | HPS49: TOTAL GENERAL | HPV49: =SUM(MZV28:MZV47) -> $0 | HQA49: TOTAL GENERAL | HQD49: =SUM(NAD28:NAD47) -> $0 | HQI49: TOTAL GENERAL | HQL49: =SUM(NAL28:NAL47) -> $0 | HQQ49: TOTAL GENERAL | HQT49: =SUM(NAT28:NAT47) -> $0 | HQY49: TOTAL GENERAL | HRB49: =SUM(NBB28:NBB47) -> $0 | HRG49: TOTAL GENERAL | HRJ49: =SUM(NBJ28:NBJ47) -> $0 | HRO49: TOTAL GENERAL | HRR49: =SUM(NBR28:NBR47) -> $0 | HRW49: TOTAL GENERAL | HRZ49: =SUM(NBZ28:NBZ47) -> $0 | HSE49: TOTAL GENERAL | HSH49: =SUM(NCH28:NCH47) -> $0 | HSM49: TOTAL GENERAL | HSP49: =SUM(NCP28:NCP47) -> $0 | HSU49: TOTAL GENERAL | HSX49: =SUM(NCX28:NCX47) -> $0 | HTC49: TOTAL GENERAL | HTF49: =SUM(NDF28:NDF47) -> $0 | HTK49: TOTAL GENERAL | HTN49: =SUM(NDN28:NDN47) -> $0 | HTS49: TOTAL GENERAL | HTV49: =SUM(NDV28:NDV47) -> $0 | HUA49: TOTAL GENERAL | HUD49: =SUM(NED28:NED47) -> $0 | HUI49: TOTAL GENERAL | HUL49: =SUM(NEL28:NEL47) -> $0 | HUQ49: TOTAL GENERAL | HUT49: =SUM(NET28:NET47) -> $0 | HUY49: TOTAL GENERAL | HVB49: =SUM(NFB28:NFB47) -> $0 | HVG49: TOTAL GENERAL | HVJ49: =SUM(NFJ28:NFJ47) -> $0 | HVO49: TOTAL GENERAL | HVR49: =SUM(NFR28:NFR47) -> $0 | HVW49: TOTAL GENERAL | HVZ49: =SUM(NFZ28:NFZ47) -> $0 | HWE49: TOTAL GENERAL | HWH49: =SUM(NGH28:NGH47) -> $0 | HWM49: TOTAL GENERAL | HWP49: =SUM(NGP28:NGP47) -> $0 | HWU49: TOTAL GENERAL | HWX49: =SUM(NGX28:NGX47) -> $0 | HXC49: TOTAL GENERAL | HXF49: =SUM(NHF28:NHF47) -> $0 | HXK49: TOTAL GENERAL | HXN49: =SUM(NHN28:NHN47) -> $0 | HXS49: TOTAL GENERAL | HXV49: =SUM(NHV28:NHV47) -> $0 | HYA49: TOTAL GENERAL | HYD49: =SUM(NID28:NID47) -> $0 | HYI49: TOTAL GENERAL | HYL49: =SUM(NIL28:NIL47) -> $0 | HYQ49: TOTAL GENERAL | HYT49: =SUM(NIT28:NIT47) -> $0 | HYY49: TOTAL GENERAL | HZB49: =SUM(NJB28:NJB47) -> $0 | HZG49: TOTAL GENERAL | HZJ49: =SUM(NJJ28:NJJ47) -> $0 | HZO49: TOTAL GENERAL | HZR49: =SUM(NJR28:NJR47) -> $0 | HZW49: TOTAL GENERAL | HZZ49: =SUM(NJZ28:NJZ47) -> $0 | IAE49: TOTAL GENERAL | IAH49: =SUM(NKH28:NKH47) -> $0 | IAM49: TOTAL GENERAL | IAP49: =SUM(NKP28:NKP47) -> $0 | IAU49: TOTAL GENERAL | IAX49: =SUM(NKX28:NKX47) -> $0 | IBC49: TOTAL GENERAL | IBF49: =SUM(NLF28:NLF47) -> $0 | IBK49: TOTAL GENERAL | IBN49: =SUM(NLN28:NLN47) -> $0 | IBS49: TOTAL GENERAL | IBV49: =SUM(NLV28:NLV47) -> $0 | ICA49: TOTAL GENERAL | ICD49: =SUM(NMD28:NMD47) -> $0 | ICI49: TOTAL GENERAL | ICL49: =SUM(NML28:NML47) -> $0 | ICQ49: TOTAL GENERAL | ICT49: =SUM(NMT28:NMT47) -> $0 | ICY49: TOTAL GENERAL | IDB49: =SUM(NNB28:NNB47) -> $0 | IDG49: TOTAL GENERAL | IDJ49: =SUM(NNJ28:NNJ47) -> $0 | IDO49: TOTAL GENERAL | IDR49: =SUM(NNR28:NNR47) -> $0 | IDW49: TOTAL GENERAL | IDZ49: =SUM(NNZ28:NNZ47) -> $0 | IEE49: TOTAL GENERAL | IEH49: =SUM(NOH28:NOH47) -> $0 | IEM49: TOTAL GENERAL | IEP49: =SUM(NOP28:NOP47) -> $0 | IEU49: TOTAL GENERAL | IEX49: =SUM(NOX28:NOX47) -> $0 | IFC49: TOTAL GENERAL | IFF49: =SUM(NPF28:NPF47) -> $0 | IFK49: TOTAL GENERAL | IFN49: =SUM(NPN28:NPN47) -> $0 | IFS49: TOTAL GENERAL | IFV49: =SUM(NPV28:NPV47) -> $0 | IGA49: TOTAL GENERAL | IGD49: =SUM(NQD28:NQD47) -> $0 | IGI49: TOTAL GENERAL | IGL49: =SUM(NQL28:NQL47) -> $0 | IGQ49: TOTAL GENERAL | IGT49: =SUM(NQT28:NQT47) -> $0 | IGY49: TOTAL GENERAL | IHB49: =SUM(NRB28:NRB47) -> $0 | IHG49: TOTAL GENERAL | IHJ49: =SUM(NRJ28:NRJ47) -> $0 | IHO49: TOTAL GENERAL | IHR49: =SUM(NRR28:NRR47) -> $0 | IHW49: TOTAL GENERAL | IHZ49: =SUM(NRZ28:NRZ47) -> $0 | IIE49: TOTAL GENERAL | IIH49: =SUM(NSH28:NSH47) -> $0 | IIM49: TOTAL GENERAL | IIP49: =SUM(NSP28:NSP47) -> $0 | IIU49: TOTAL GENERAL | IIX49: =SUM(NSX28:NSX47) -> $0 | IJC49: TOTAL GENERAL | IJF49: =SUM(NTF28:NTF47) -> $0 | IJK49: TOTAL GENERAL | IJN49: =SUM(NTN28:NTN47) -> $0 | IJS49: TOTAL GENERAL | IJV49: =SUM(NTV28:NTV47) -> $0 | IKA49: TOTAL GENERAL | IKD49: =SUM(NUD28:NUD47) -> $0 | IKI49: TOTAL GENERAL | IKL49: =SUM(NUL28:NUL47) -> $0 | IKQ49: TOTAL GENERAL | IKT49: =SUM(NUT28:NUT47) -> $0 | IKY49: TOTAL GENERAL | ILB49: =SUM(NVB28:NVB47) -> $0 | ILG49: TOTAL GENERAL | ILJ49: =SUM(NVJ28:NVJ47) -> $0 | ILO49: TOTAL GENERAL | ILR49: =SUM(NVR28:NVR47) -> $0 | ILW49: TOTAL GENERAL | ILZ49: =SUM(NVZ28:NVZ47) -> $0 | IME49: TOTAL GENERAL | IMH49: =SUM(NWH28:NWH47) -> $0 | IMM49: TOTAL GENERAL | IMP49: =SUM(NWP28:NWP47) -> $0 | IMU49: TOTAL GENERAL | IMX49: =SUM(NWX28:NWX47) -> $0 | INC49: TOTAL GENERAL | INF49: =SUM(NXF28:NXF47) -> $0 | INK49: TOTAL GENERAL | INN49: =SUM(NXN28:NXN47) -> $0 | INS49: TOTAL GENERAL | INV49: =SUM(NXV28:NXV47) -> $0 | IOA49: TOTAL GENERAL | IOD49: =SUM(NYD28:NYD47) -> $0 | IOI49: TOTAL GENERAL | IOL49: =SUM(NYL28:NYL47) -> $0 | IOQ49: TOTAL GENERAL | IOT49: =SUM(NYT28:NYT47) -> $0 | IOY49: TOTAL GENERAL | IPB49: =SUM(NZB28:NZB47) -> $0 | IPG49: TOTAL GENERAL | IPJ49: =SUM(NZJ28:NZJ47) -> $0 | IPO49: TOTAL GENERAL | IPR49: =SUM(NZR28:NZR47) -> $0 | IPW49: TOTAL GENERAL | IPZ49: =SUM(NZZ28:NZZ47) -> $0 | IQE49: TOTAL GENERAL | IQH49: =SUM(OAH28:OAH47) -> $0 | IQM49: TOTAL GENERAL | IQP49: =SUM(OAP28:OAP47) -> $0 | IQU49: TOTAL GENERAL | IQX49: =SUM(OAX28:OAX47) -> $0 | IRC49: TOTAL GENERAL | IRF49: =SUM(OBF28:OBF47) -> $0 | IRK49: TOTAL GENERAL | IRN49: =SUM(OBN28:OBN47) -> $0 | IRS49: TOTAL GENERAL | IRV49: =SUM(OBV28:OBV47) -> $0 | ISA49: TOTAL GENERAL | ISD49: =SUM(OCD28:OCD47) -> $0 | ISI49: TOTAL GENERAL | ISL49: =SUM(OCL28:OCL47) -> $0 | ISQ49: TOTAL GENERAL | IST49: =SUM(OCT28:OCT47) -> $0 | ISY49: TOTAL GENERAL | ITB49: =SUM(ODB28:ODB47) -> $0 | ITG49: TOTAL GENERAL | ITJ49: =SUM(ODJ28:ODJ47) -> $0 | ITO49: TOTAL GENERAL | ITR49: =SUM(ODR28:ODR47) -> $0 | ITW49: TOTAL GENERAL | ITZ49: =SUM(ODZ28:ODZ47) -> $0 | IUE49: TOTAL GENERAL | IUH49: =SUM(OEH28:OEH47) -> $0 | IUM49: TOTAL GENERAL | IUP49: =SUM(OEP28:OEP47) -> $0 | IUU49: TOTAL GENERAL | IUX49: =SUM(OEX28:OEX47) -> $0 | IVC49: TOTAL GENERAL | IVF49: =SUM(OFF28:OFF47) -> $0 | IVK49: TOTAL GENERAL | IVN49: =SUM(OFN28:OFN47) -> $0 | IVS49: TOTAL GENERAL | IVV49: =SUM(OFV28:OFV47) -> $0 | IWA49: TOTAL GENERAL | IWD49: =SUM(OGD28:OGD47) -> $0 | IWI49: TOTAL GENERAL | IWL49: =SUM(OGL28:OGL47) -> $0 | IWQ49: TOTAL GENERAL | IWT49: =SUM(OGT28:OGT47) -> $0 | IWY49: TOTAL GENERAL | IXB49: =SUM(OHB28:OHB47) -> $0 | IXG49: TOTAL GENERAL | IXJ49: =SUM(OHJ28:OHJ47) -> $0 | IXO49: TOTAL GENERAL | IXR49: =SUM(OHR28:OHR47) -> $0 | IXW49: TOTAL GENERAL | IXZ49: =SUM(OHZ28:OHZ47) -> $0 | IYE49: TOTAL GENERAL | IYH49: =SUM(OIH28:OIH47) -> $0 | IYM49: TOTAL GENERAL | IYP49: =SUM(OIP28:OIP47) -> $0 | IYU49: TOTAL GENERAL | IYX49: =SUM(OIX28:OIX47) -> $0 | IZC49: TOTAL GENERAL | IZF49: =SUM(OJF28:OJF47) -> $0 | IZK49: TOTAL GENERAL | IZN49: =SUM(OJN28:OJN47) -> $0 | IZS49: TOTAL GENERAL | IZV49: =SUM(OJV28:OJV47) -> $0 | JAA49: TOTAL GENERAL | JAD49: =SUM(OKD28:OKD47) -> $0 | JAI49: TOTAL GENERAL | JAL49: =SUM(OKL28:OKL47) -> $0 | JAQ49: TOTAL GENERAL | JAT49: =SUM(OKT28:OKT47) -> $0 | JAY49: TOTAL GENERAL | JBB49: =SUM(OLB28:OLB47) -> $0 | JBG49: TOTAL GENERAL | JBJ49: =SUM(OLJ28:OLJ47) -> $0 | JBO49: TOTAL GENERAL | JBR49: =SUM(OLR28:OLR47) -> $0 | JBW49: TOTAL GENERAL | JBZ49: =SUM(OLZ28:OLZ47) -> $0 | JCE49: TOTAL GENERAL | JCH49: =SUM(OMH28:OMH47) -> $0 | JCM49: TOTAL GENERAL | JCP49: =SUM(OMP28:OMP47) -> $0 | JCU49: TOTAL GENERAL | JCX49: =SUM(OMX28:OMX47) -> $0 | JDC49: TOTAL GENERAL | JDF49: =SUM(ONF28:ONF47) -> $0 | JDK49: TOTAL GENERAL | JDN49: =SUM(ONN28:ONN47) -> $0 | JDS49: TOTAL GENERAL | JDV49: =SUM(ONV28:ONV47) -> $0 | JEA49: TOTAL GENERAL | JED49: =SUM(OOD28:OOD47) -> $0 | JEI49: TOTAL GENERAL | JEL49: =SUM(OOL28:OOL47) -> $0 | JEQ49: TOTAL GENERAL | JET49: =SUM(OOT28:OOT47) -> $0 | JEY49: TOTAL GENERAL | JFB49: =SUM(OPB28:OPB47) -> $0 | JFG49: TOTAL GENERAL | JFJ49: =SUM(OPJ28:OPJ47) -> $0 | JFO49: TOTAL GENERAL | JFR49: =SUM(OPR28:OPR47) -> $0 | JFW49: TOTAL GENERAL | JFZ49: =SUM(OPZ28:OPZ47) -> $0 | JGE49: TOTAL GENERAL | JGH49: =SUM(OQH28:OQH47) -> $0 | JGM49: TOTAL GENERAL | JGP49: =SUM(OQP28:OQP47) -> $0 | JGU49: TOTAL GENERAL | JGX49: =SUM(OQX28:OQX47) -> $0 | JHC49: TOTAL GENERAL | JHF49: =SUM(ORF28:ORF47) -> $0 | JHK49: TOTAL GENERAL | JHN49: =SUM(ORN28:ORN47) -> $0 | JHS49: TOTAL GENERAL | JHV49: =SUM(ORV28:ORV47) -> $0 | JIA49: TOTAL GENERAL | JID49: =SUM(OSD28:OSD47) -> $0 | JII49: TOTAL GENERAL | JIL49: =SUM(OSL28:OSL47) -> $0 | JIQ49: TOTAL GENERAL | JIT49: =SUM(OST28:OST47) -> $0 | JIY49: TOTAL GENERAL | JJB49: =SUM(OTB28:OTB47) -> $0 | JJG49: TOTAL GENERAL | JJJ49: =SUM(OTJ28:OTJ47) -> $0 | JJO49: TOTAL GENERAL | JJR49: =SUM(OTR28:OTR47) -> $0 | JJW49: TOTAL GENERAL | JJZ49: =SUM(OTZ28:OTZ47) -> $0 | JKE49: TOTAL GENERAL | JKH49: =SUM(OUH28:OUH47) -> $0 | JKM49: TOTAL GENERAL | JKP49: =SUM(OUP28:OUP47) -> $0 | JKU49: TOTAL GENERAL | JKX49: =SUM(OUX28:OUX47) -> $0 | JLC49: TOTAL GENERAL | JLF49: =SUM(OVF28:OVF47) -> $0 | JLK49: TOTAL GENERAL | JLN49: =SUM(OVN28:OVN47) -> $0 | JLS49: TOTAL GENERAL | JLV49: =SUM(OVV28:OVV47) -> $0 | JMA49: TOTAL GENERAL | JMD49: =SUM(OWD28:OWD47) -> $0 | JMI49: TOTAL GENERAL | JML49: =SUM(OWL28:OWL47) -> $0 | JMQ49: TOTAL GENERAL | JMT49: =SUM(OWT28:OWT47) -> $0 | JMY49: TOTAL GENERAL | JNB49: =SUM(OXB28:OXB47) -> $0 | JNG49: TOTAL GENERAL | JNJ49: =SUM(OXJ28:OXJ47) -> $0 | JNO49: TOTAL GENERAL | JNR49: =SUM(OXR28:OXR47) -> $0 | JNW49: TOTAL GENERAL | JNZ49: =SUM(OXZ28:OXZ47) -> $0 | JOE49: TOTAL GENERAL | JOH49: =SUM(OYH28:OYH47) -> $0 | JOM49: TOTAL GENERAL | JOP49: =SUM(OYP28:OYP47) -> $0 | JOU49: TOTAL GENERAL | JOX49: =SUM(OYX28:OYX47) -> $0 | JPC49: TOTAL GENERAL | JPF49: =SUM(OZF28:OZF47) -> $0 | JPK49: TOTAL GENERAL | JPN49: =SUM(OZN28:OZN47) -> $0 | JPS49: TOTAL GENERAL | JPV49: =SUM(OZV28:OZV47) -> $0 | JQA49: TOTAL GENERAL | JQD49: =SUM(PAD28:PAD47) -> $0 | JQI49: TOTAL GENERAL | JQL49: =SUM(PAL28:PAL47) -> $0 | JQQ49: TOTAL GENERAL | JQT49: =SUM(PAT28:PAT47) -> $0 | JQY49: TOTAL GENERAL | JRB49: =SUM(PBB28:PBB47) -> $0 | JRG49: TOTAL GENERAL | JRJ49: =SUM(PBJ28:PBJ47) -> $0 | JRO49: TOTAL GENERAL | JRR49: =SUM(PBR28:PBR47) -> $0 | JRW49: TOTAL GENERAL | JRZ49: =SUM(PBZ28:PBZ47) -> $0 | JSE49: TOTAL GENERAL | JSH49: =SUM(PCH28:PCH47) -> $0 | JSM49: TOTAL GENERAL | JSP49: =SUM(PCP28:PCP47) -> $0 | JSU49: TOTAL GENERAL | JSX49: =SUM(PCX28:PCX47) -> $0 | JTC49: TOTAL GENERAL | JTF49: =SUM(PDF28:PDF47) -> $0 | JTK49: TOTAL GENERAL | JTN49: =SUM(PDN28:PDN45) -> $0 | JTS49: TOTAL GENERAL | JTV49: =SUM(PDV28:PDV45) -> $0 | JUA49: TOTAL GENERAL | JUD49: =SUM(PED28:PED45) -> $0 | JUI49: TOTAL GENERAL | JUL49: =SUM(PEL28:PEL45) -> $0 | JUQ49: TOTAL GENERAL | JUT49: =SUM(PET28:PET45) -> $0 | JUY49: TOTAL GENERAL | JVB49: =SUM(PFB28:PFB45) -> $0 | JVG49: TOTAL GENERAL | JVJ49: =SUM(PFJ28:PFJ45) -> $0 | JVO49: TOTAL GENERAL | JVR49: =SUM(PFR28:PFR45) -> $0 | JVW49: TOTAL GENERAL | JVZ49: =SUM(PFZ28:PFZ45) -> $0 | JWE49: TOTAL GENERAL | JWH49: =SUM(PGH28:PGH45) -> $0 | JWM49: TOTAL GENERAL | JWP49: =SUM(PGP28:PGP45) -> $0 | JWU49: TOTAL GENERAL | JWX49: =SUM(PGX28:PGX45) -> $0 | JXC49: TOTAL GENERAL | JXF49: =SUM(PHF28:PHF45) -> $0 | JXK49: TOTAL GENERAL | JXN49: =SUM(PHN28:PHN45) -> $0 | JXS49: TOTAL GENERAL | JXV49: =SUM(PHV28:PHV45) -> $0 | JYA49: TOTAL GENERAL | JYD49: =SUM(PID28:PID45) -> $0 | JYI49: TOTAL GENERAL | JYL49: =SUM(PIL28:PIL45) -> $0 | JYQ49: TOTAL GENERAL | JYT49: =SUM(PIT28:PIT45) -> $0 | JYY49: TOTAL GENERAL | JZB49: =SUM(PJB28:PJB45) -> $0 | JZG49: TOTAL GENERAL | JZJ49: =SUM(PJJ28:PJJ45) -> $0 | JZO49: TOTAL GENERAL | JZR49: =SUM(PJR28:PJR45) -> $0 | JZW49: TOTAL GENERAL | JZZ49: =SUM(PJZ28:PJZ45) -> $0 | KAE49: TOTAL GENERAL | KAH49: =SUM(PKH28:PKH45) -> $0 | KAM49: TOTAL GENERAL | KAP49: =SUM(PKP28:PKP45) -> $0 | KAU49: TOTAL GENERAL | KAX49: =SUM(PKX28:PKX45) -> $0 | KBC49: TOTAL GENERAL | KBF49: =SUM(PLF28:PLF45) -> $0 | KBK49: TOTAL GENERAL | KBN49: =SUM(PLN28:PLN45) -> $0 | KBS49: TOTAL GENERAL | KBV49: =SUM(PLV28:PLV45) -> $0 | KCA49: TOTAL GENERAL | KCD49: =SUM(PMD28:PMD45) -> $0 | KCI49: TOTAL GENERAL | KCL49: =SUM(PML28:PML45) -> $0 | KCQ49: TOTAL GENERAL | KCT49: =SUM(PMT28:PMT45) -> $0 | KCY49: TOTAL GENERAL | KDB49: =SUM(PNB28:PNB45) -> $0 | KDG49: TOTAL GENERAL | KDJ49: =SUM(PNJ28:PNJ45) -> $0 | KDO49: TOTAL GENERAL | KDR49: =SUM(PNR28:PNR45) -> $0 | KDW49: TOTAL GENERAL | KDZ49: =SUM(PNZ28:PNZ45) -> $0 | KEE49: TOTAL GENERAL | KEH49: =SUM(POH28:POH45) -> $0 | KEM49: TOTAL GENERAL | KEP49: =SUM(POP28:POP45) -> $0 | KEU49: TOTAL GENERAL | KEX49: =SUM(POX28:POX45) -> $0 | KFC49: TOTAL GENERAL | KFF49: =SUM(PPF28:PPF45) -> $0 | KFK49: TOTAL GENERAL | KFN49: =SUM(PPN28:PPN45) -> $0 | KFS49: TOTAL GENERAL | KFV49: =SUM(PPV28:PPV45) -> $0 | KGA49: TOTAL GENERAL | KGD49: =SUM(PQD28:PQD45) -> $0 | KGI49: TOTAL GENERAL | KGL49: =SUM(PQL28:PQL45) -> $0 | KGQ49: TOTAL GENERAL | KGT49: =SUM(PQT28:PQT45) -> $0 | KGY49: TOTAL GENERAL | KHB49: =SUM(PRB28:PRB45) -> $0 | KHG49: TOTAL GENERAL | KHJ49: =SUM(PRJ28:PRJ45) -> $0 | KHO49: TOTAL GENERAL | KHR49: =SUM(PRR28:PRR45) -> $0 | KHW49: TOTAL GENERAL | KHZ49: =SUM(PRZ28:PRZ45) -> $0 | KIE49: TOTAL GENERAL | KIH49: =SUM(PSH28:PSH45) -> $0 | KIM49: TOTAL GENERAL | KIP49: =SUM(PSP28:PSP45) -> $0 | KIU49: TOTAL GENERAL | KIX49: =SUM(PSX28:PSX45) -> $0 | KJC49: TOTAL GENERAL | KJF49: =SUM(PTF28:PTF45) -> $0 | KJK49: TOTAL GENERAL | KJN49: =SUM(PTN28:PTN45) -> $0 | KJS49: TOTAL GENERAL | KJV49: =SUM(PTV28:PTV45) -> $0 | KKA49: TOTAL GENERAL | KKD49: =SUM(PUD28:PUD45) -> $0 | KKI49: TOTAL GENERAL | KKL49: =SUM(PUL28:PUL45) -> $0 | KKQ49: TOTAL GENERAL | KKT49: =SUM(PUT28:PUT45) -> $0 | KKY49: TOTAL GENERAL | KLB49: =SUM(PVB28:PVB45) -> $0 | KLG49: TOTAL GENERAL | KLJ49: =SUM(PVJ28:PVJ45) -> $0 | KLO49: TOTAL GENERAL | KLR49: =SUM(PVR28:PVR45) -> $0 | KLW49: TOTAL GENERAL | KLZ49: =SUM(PVZ28:PVZ45) -> $0 | KME49: TOTAL GENERAL | KMH49: =SUM(PWH28:PWH45) -> $0 | KMM49: TOTAL GENERAL | KMP49: =SUM(PWP28:PWP45) -> $0 | KMU49: TOTAL GENERAL | KMX49: =SUM(PWX28:PWX45) -> $0 | KNC49: TOTAL GENERAL | KNF49: =SUM(PXF28:PXF45) -> $0 | KNK49: TOTAL GENERAL | KNN49: =SUM(PXN28:PXN45) -> $0 | KNS49: TOTAL GENERAL | KNV49: =SUM(PXV28:PXV45) -> $0 | KOA49: TOTAL GENERAL | KOD49: =SUM(PYD28:PYD45) -> $0 | KOI49: TOTAL GENERAL | KOL49: =SUM(PYL28:PYL45) -> $0 | KOQ49: TOTAL GENERAL | KOT49: =SUM(PYT28:PYT45) -> $0 | KOY49: TOTAL GENERAL | KPB49: =SUM(PZB28:PZB45) -> $0 | KPG49: TOTAL GENERAL | KPJ49: =SUM(PZJ28:PZJ45) -> $0 | KPO49: TOTAL GENERAL | KPR49: =SUM(PZR28:PZR45) -> $0 | KPW49: TOTAL GENERAL | KPZ49: =SUM(PZZ28:PZZ45) -> $0 | KQE49: TOTAL GENERAL | KQH49: =SUM(QAH28:QAH45) -> $0 | KQM49: TOTAL GENERAL | KQP49: =SUM(QAP28:QAP45) -> $0 | KQU49: TOTAL GENERAL | KQX49: =SUM(QAX28:QAX45) -> $0 | KRC49: TOTAL GENERAL | KRF49: =SUM(QBF28:QBF45) -> $0 | KRK49: TOTAL GENERAL | KRN49: =SUM(QBN28:QBN45) -> $0 | KRS49: TOTAL GENERAL | KRV49: =SUM(QBV28:QBV45) -> $0 | KSA49: TOTAL GENERAL | KSD49: =SUM(QCD28:QCD45) -> $0 | KSI49: TOTAL GENERAL | KSL49: =SUM(QCL28:QCL45) -> $0 | KSQ49: TOTAL GENERAL | KST49: =SUM(QCT28:QCT45) -> $0 | KSY49: TOTAL GENERAL | KTB49: =SUM(QDB28:QDB45) -> $0 | KTG49: TOTAL GENERAL | KTJ49: =SUM(QDJ28:QDJ45) -> $0 | KTO49: TOTAL GENERAL | KTR49: =SUM(QDR28:QDR45) -> $0 | KTW49: TOTAL GENERAL | KTZ49: =SUM(QDZ28:QDZ45) -> $0 | KUE49: TOTAL GENERAL | KUH49: =SUM(QEH28:QEH45) -> $0 | KUM49: TOTAL GENERAL | KUP49: =SUM(QEP28:QEP45) -> $0 | KUU49: TOTAL GENERAL | KUX49: =SUM(QEX28:QEX45) -> $0 | KVC49: TOTAL GENERAL | KVF49: =SUM(QFF28:QFF45) -> $0 | KVK49: TOTAL GENERAL | KVN49: =SUM(QFN28:QFN45) -> $0 | KVS49: TOTAL GENERAL | KVV49: =SUM(QFV28:QFV45) -> $0 | KWA49: TOTAL GENERAL | KWD49: =SUM(QGD28:QGD45) -> $0 | KWI49: TOTAL GENERAL | KWL49: =SUM(QGL28:QGL45) -> $0 | KWQ49: TOTAL GENERAL | KWT49: =SUM(QGT28:QGT45) -> $0 | KWY49: TOTAL GENERAL | KXB49: =SUM(QHB28:QHB45) -> $0 | KXG49: TOTAL GENERAL | KXJ49: =SUM(QHJ28:QHJ45) -> $0 | KXO49: TOTAL GENERAL | KXR49: =SUM(QHR28:QHR45) -> $0 | KXW49: TOTAL GENERAL | KXZ49: =SUM(QHZ28:QHZ45) -> $0 | KYE49: TOTAL GENERAL | KYH49: =SUM(QIH28:QIH45) -> $0 | KYM49: TOTAL GENERAL | KYP49: =SUM(QIP28:QIP45) -> $0 | KYU49: TOTAL GENERAL | KYX49: =SUM(QIX28:QIX45) -> $0 | KZC49: TOTAL GENERAL | KZF49: =SUM(QJF28:QJF45) -> $0 | KZK49: TOTAL GENERAL | KZN49: =SUM(QJN28:QJN45) -> $0 | KZS49: TOTAL GENERAL | KZV49: =SUM(QJV28:QJV45) -> $0 | LAA49: TOTAL GENERAL | LAD49: =SUM(QKD28:QKD45) -> $0 | LAI49: TOTAL GENERAL | LAL49: =SUM(QKL28:QKL45) -> $0 | LAQ49: TOTAL GENERAL | LAT49: =SUM(QKT28:QKT45) -> $0 | LAY49: TOTAL GENERAL | LBB49: =SUM(QLB28:QLB45) -> $0 | LBG49: TOTAL GENERAL | LBJ49: =SUM(QLJ28:QLJ45) -> $0 | LBO49: TOTAL GENERAL | LBR49: =SUM(QLR28:QLR45) -> $0 | LBW49: TOTAL GENERAL | LBZ49: =SUM(QLZ28:QLZ45) -> $0 | LCE49: TOTAL GENERAL | LCH49: =SUM(QMH28:QMH45) -> $0 | LCM49: TOTAL GENERAL | LCP49: =SUM(QMP28:QMP45) -> $0 | LCU49: TOTAL GENERAL | LCX49: =SUM(QMX28:QMX45) -> $0 | LDC49: TOTAL GENERAL | LDF49: =SUM(QNF28:QNF45) -> $0 | LDK49: TOTAL GENERAL | LDN49: =SUM(QNN28:QNN45) -> $0 | LDS49: TOTAL GENERAL | LDV49: =SUM(QNV28:QNV45) -> $0 | LEA49: TOTAL GENERAL | LED49: =SUM(QOD28:QOD45) -> $0 | LEI49: TOTAL GENERAL | LEL49: =SUM(QOL28:QOL45) -> $0 | LEQ49: TOTAL GENERAL | LET49: =SUM(QOT28:QOT45) -> $0 | LEY49: TOTAL GENERAL | LFB49: =SUM(QPB28:QPB45) -> $0 | LFG49: TOTAL GENERAL | LFJ49: =SUM(QPJ28:QPJ45) -> $0 | LFO49: TOTAL GENERAL | LFR49: =SUM(QPR28:QPR45) -> $0 | LFW49: TOTAL GENERAL | LFZ49: =SUM(QPZ28:QPZ45) -> $0 | LGE49: TOTAL GENERAL | LGH49: =SUM(QQH28:QQH45) -> $0 | LGM49: TOTAL GENERAL | LGP49: =SUM(QQP28:QQP45) -> $0 | LGU49: TOTAL GENERAL | LGX49: =SUM(QQX28:QQX45) -> $0 | LHC49: TOTAL GENERAL | LHF49: =SUM(QRF28:QRF45) -> $0 | LHK49: TOTAL GENERAL | LHN49: =SUM(QRN28:QRN45) -> $0 | LHS49: TOTAL GENERAL | LHV49: =SUM(QRV28:QRV45) -> $0 | LIA49: TOTAL GENERAL | LID49: =SUM(QSD28:QSD45) -> $0 | LII49: TOTAL GENERAL | LIL49: =SUM(QSL28:QSL45) -> $0 | LIQ49: TOTAL GENERAL | LIT49: =SUM(QST28:QST45) -> $0 | LIY49: TOTAL GENERAL | LJB49: =SUM(QTB28:QTB45) -> $0 | LJG49: TOTAL GENERAL | LJJ49: =SUM(QTJ28:QTJ45) -> $0 | LJO49: TOTAL GENERAL | LJR49: =SUM(QTR28:QTR45) -> $0 | LJW49: TOTAL GENERAL | LJZ49: =SUM(QTZ28:QTZ44) -> $0 | LKD49: =SUM(REL28:REL45) -> $0 | LKI49: TOTAL GENERAL | LKL49: =SUM(RET28:RET45) -> $0 | LKQ49: TOTAL GENERAL | LKT49: =SUM(RFB28:RFB45) -> $0 | LKY49: TOTAL GENERAL | LLB49: =SUM(RFJ28:RFJ45) -> $0 | LLG49: TOTAL GENERAL | LLJ49: =SUM(RFR28:RFR45) -> $0 | LLO49: TOTAL GENERAL | LLR49: =SUM(RFZ28:RFZ45) -> $0 | LLW49: TOTAL GENERAL | LLZ49: =SUM(RGH28:RGH45) -> $0 | LME49: TOTAL GENERAL | LMH49: =SUM(RGP28:RGP45) -> $0 | LMM49: TOTAL GENERAL | LMP49: =SUM(RGX28:RGX45) -> $0 | LMU49: TOTAL GENERAL | LMX49: =SUM(RHF28:RHF45) -> $0 | LNC49: TOTAL GENERAL | LNF49: =SUM(RHN28:RHN45) -> $0 | LNK49: TOTAL GENERAL | LNN49: =SUM(RHV28:RHV45) -> $0 | LNS49: TOTAL GENERAL | LNV49: =SUM(RID28:RID45) -> $0 | LOA49: TOTAL GENERAL | LOD49: =SUM(RIL28:RIL45) -> $0 | LOI49: TOTAL GENERAL | LOL49: =SUM(RIT28:RIT45) -> $0 | LOQ49: TOTAL GENERAL | LOT49: =SUM(RJB28:RJB45) -> $0 | LOY49: TOTAL GENERAL | LPB49: =SUM(RJJ28:RJJ45) -> $0 | LPG49: TOTAL GENERAL | LPJ49: =SUM(RJR28:RJR45) -> $0 | LPO49: TOTAL GENERAL | LPR49: =SUM(RJZ28:RJZ45) -> $0 | LPW49: TOTAL GENERAL | LPZ49: =SUM(RKH28:RKH45) -> $0 | LQE49: TOTAL GENERAL | LQH49: =SUM(RKP28:RKP45) -> $0 | LQM49: TOTAL GENERAL | LQP49: =SUM(RKX28:RKX47) -> $0 | LQU49: TOTAL GENERAL | LQX49: =SUM(RLF28:RLF47) -> $0 | LRC49: TOTAL GENERAL | LRF49: =SUM(RLN28:RLN47) -> $0 | LRK49: TOTAL GENERAL | LRN49: =SUM(RLV28:RLV47) -> $0 | LRS49: TOTAL GENERAL | LRV49: =SUM(RMD28:RMD47) -> $0 | LSA49: TOTAL GENERAL | LSD49: =SUM(RML28:RML47) -> $0 | LSI49: TOTAL GENERAL | LSL49: =SUM(RMT28:RMT47) -> $0 | LSQ49: TOTAL GENERAL | LST49: =SUM(RNB28:RNB47) -> $0 | LSY49: TOTAL GENERAL | LTB49: =SUM(RNJ28:RNJ47) -> $0 | LTG49: TOTAL GENERAL | LTJ49: =SUM(RNR28:RNR47) -> $0 | LTO49: TOTAL GENERAL | LTR49: =SUM(RNZ28:RNZ47) -> $0 | LTW49: TOTAL GENERAL | LTZ49: =SUM(ROH28:ROH47) -> $0 | LUE49: TOTAL GENERAL | LUH49: =SUM(ROP28:ROP47) -> $0 | LUM49: TOTAL GENERAL | LUP49: =SUM(ROX28:ROX47) -> $0 | LUU49: TOTAL GENERAL | LUX49: =SUM(RPF28:RPF47) -> $0 | LVC49: TOTAL GENERAL | LVF49: =SUM(RPN28:RPN47) -> $0 | LVK49: TOTAL GENERAL | LVN49: =SUM(RPV28:RPV47) -> $0 | LVS49: TOTAL GENERAL | LVV49: =SUM(RQD28:RQD47) -> $0 | LWA49: TOTAL GENERAL | LWD49: =SUM(RQL28:RQL47) -> $0 | LWI49: TOTAL GENERAL | LWL49: =SUM(RQT28:RQT47) -> $0 | LWQ49: TOTAL GENERAL | LWT49: =SUM(RRB28:RRB47) -> $0 | LWY49: TOTAL GENERAL | LXB49: =SUM(RRJ28:RRJ47) -> $0 | LXG49: TOTAL GENERAL | LXJ49: =SUM(RRR28:RRR47) -> $0 | LXO49: TOTAL GENERAL | LXR49: =SUM(RRZ28:RRZ47) -> $0 | LXW49: TOTAL GENERAL | LXZ49: =SUM(RSH28:RSH47) -> $0 | LYE49: TOTAL GENERAL | LYH49: =SUM(RSP28:RSP47) -> $0 | LYM49: TOTAL GENERAL | LYP49: =SUM(RSX28:RSX47) -> $0 | LYU49: TOTAL GENERAL | LYX49: =SUM(RTF28:RTF47) -> $0 | LZC49: TOTAL GENERAL | LZF49: =SUM(RTN28:RTN47) -> $0 | LZK49: TOTAL GENERAL | LZN49: =SUM(RTV28:RTV47) -> $0 | LZS49: TOTAL GENERAL | LZV49: =SUM(RUD28:RUD47) -> $0 | MAA49: TOTAL GENERAL | MAD49: =SUM(RUL28:RUL47) -> $0 | MAI49: TOTAL GENERAL | MAL49: =SUM(RUT28:RUT47) -> $0 | MAQ49: TOTAL GENERAL | MAT49: =SUM(RVB28:RVB47) -> $0 | MAY49: TOTAL GENERAL | MBB49: =SUM(RVJ28:RVJ47) -> $0 | MBG49: TOTAL GENERAL | MBJ49: =SUM(RVR28:RVR47) -> $0 | MBO49: TOTAL GENERAL | MBR49: =SUM(RVZ28:RVZ47) -> $0 | MBW49: TOTAL GENERAL | MBZ49: =SUM(RWH28:RWH47) -> $0 | MCE49: TOTAL GENERAL | MCH49: =SUM(RWP28:RWP47) -> $0 | MCM49: TOTAL GENERAL | MCP49: =SUM(RWX28:RWX47) -> $0 | MCU49: TOTAL GENERAL | MCX49: =SUM(RXF28:RXF47) -> $0 | MDC49: TOTAL GENERAL | MDF49: =SUM(RXN28:RXN47) -> $0 | MDK49: TOTAL GENERAL | MDN49: =SUM(RXV28:RXV47) -> $0 | MDS49: TOTAL GENERAL | MDV49: =SUM(RYD28:RYD47) -> $0 | MEA49: TOTAL GENERAL | MED49: =SUM(RYL28:RYL47) -> $0 | MEI49: TOTAL GENERAL | MEL49: =SUM(RYT28:RYT47) -> $0 | MEQ49: TOTAL GENERAL | MET49: =SUM(RZB28:RZB47) -> $0 | MEY49: TOTAL GENERAL | MFB49: =SUM(RZJ28:RZJ47) -> $0 | MFG49: TOTAL GENERAL | MFJ49: =SUM(RZR28:RZR47) -> $0 | MFO49: TOTAL GENERAL | MFR49: =SUM(RZZ28:RZZ47) -> $0 | MFW49: TOTAL GENERAL | MFZ49: =SUM(SAH28:SAH47) -> $0 | MGE49: TOTAL GENERAL | MGH49: =SUM(SAP28:SAP47) -> $0 | MGM49: TOTAL GENERAL | MGP49: =SUM(SAX28:SAX47) -> $0 | MGU49: TOTAL GENERAL | MGX49: =SUM(SBF28:SBF47) -> $0 | MHC49: TOTAL GENERAL | MHF49: =SUM(SBN28:SBN47) -> $0 | MHK49: TOTAL GENERAL | MHN49: =SUM(SBV28:SBV47) -> $0 | MHS49: TOTAL GENERAL | MHV49: =SUM(SCD28:SCD47) -> $0 | MIA49: TOTAL GENERAL | MID49: =SUM(SCL28:SCL47) -> $0 | MII49: TOTAL GENERAL | MIL49: =SUM(SCT28:SCT47) -> $0 | MIQ49: TOTAL GENERAL | MIT49: =SUM(SDB28:SDB47) -> $0 | MIY49: TOTAL GENERAL | MJB49: =SUM(SDJ28:SDJ47) -> $0 | MJG49: TOTAL GENERAL | MJJ49: =SUM(SDR28:SDR47) -> $0 | MJO49: TOTAL GENERAL | MJR49: =SUM(SDZ28:SDZ47) -> $0 | MJW49: TOTAL GENERAL | MJZ49: =SUM(SEH28:SEH47) -> $0 | MKE49: TOTAL GENERAL | MKH49: =SUM(SEP28:SEP47) -> $0 | MKM49: TOTAL GENERAL | MKP49: =SUM(SEX28:SEX47) -> $0 | MKU49: TOTAL GENERAL | MKX49: =SUM(SFF28:SFF47) -> $0 | MLC49: TOTAL GENERAL | MLF49: =SUM(SFN28:SFN47) -> $0 | MLK49: TOTAL GENERAL | MLN49: =SUM(SFV28:SFV47) -> $0 | MLS49: TOTAL GENERAL | MLV49: =SUM(SGD28:SGD47) -> $0 | MMA49: TOTAL GENERAL | MMD49: =SUM(SGL28:SGL47) -> $0 | MMI49: TOTAL GENERAL | MML49: =SUM(SGT28:SGT47) -> $0 | MMQ49: TOTAL GENERAL | MMT49: =SUM(SHB28:SHB47) -> $0 | MMY49: TOTAL GENERAL | MNB49: =SUM(SHJ28:SHJ47) -> $0 | MNG49: TOTAL GENERAL | MNJ49: =SUM(SHR28:SHR47) -> $0 | MNO49: TOTAL GENERAL | MNR49: =SUM(SHZ28:SHZ47) -> $0 | MNW49: TOTAL GENERAL | MNZ49: =SUM(SIH28:SIH47) -> $0 | MOE49: TOTAL GENERAL | MOH49: =SUM(SIP28:SIP47) -> $0 | MOM49: TOTAL GENERAL | MOP49: =SUM(SIX28:SIX47) -> $0 | MOU49: TOTAL GENERAL | MOX49: =SUM(SJF28:SJF47) -> $0 | MPC49: TOTAL GENERAL | MPF49: =SUM(SJN28:SJN47) -> $0 | MPK49: TOTAL GENERAL | MPN49: =SUM(SJV28:SJV47) -> $0 | MPS49: TOTAL GENERAL | MPV49: =SUM(SKD28:SKD47) -> $0 | MQA49: TOTAL GENERAL | MQD49: =SUM(SKL28:SKL47) -> $0 | MQI49: TOTAL GENERAL | MQL49: =SUM(SKT28:SKT47) -> $0 | MQQ49: TOTAL GENERAL | MQT49: =SUM(SLB28:SLB47) -> $0 | MQY49: TOTAL GENERAL | MRB49: =SUM(SLJ28:SLJ47) -> $0 | MRG49: TOTAL GENERAL | MRJ49: =SUM(SLR28:SLR47) -> $0 | MRO49: TOTAL GENERAL | MRR49: =SUM(SLZ28:SLZ47) -> $0 | MRW49: TOTAL GENERAL | MRZ49: =SUM(SMH28:SMH47) -> $0 | MSE49: TOTAL GENERAL | MSH49: =SUM(SMP28:SMP47) -> $0 | MSM49: TOTAL GENERAL | MSP49: =SUM(SMX28:SMX47) -> $0 | MSU49: TOTAL GENERAL | MSX49: =SUM(SNF28:SNF47) -> $0 | MTC49: TOTAL GENERAL | MTF49: =SUM(SNN28:SNN47) -> $0 | MTK49: TOTAL GENERAL | MTN49: =SUM(SNV28:SNV47) -> $0 | MTS49: TOTAL GENERAL | MTV49: =SUM(SOD28:SOD47) -> $0 | MUA49: TOTAL GENERAL | MUD49: =SUM(SOL28:SOL47) -> $0 | MUI49: TOTAL GENERAL | MUL49: =SUM(SOT28:SOT47) -> $0 | MUQ49: TOTAL GENERAL | MUT49: =SUM(SPB28:SPB47) -> $0 | MUY49: TOTAL GENERAL | MVB49: =SUM(SPJ28:SPJ47) -> $0 | MVG49: TOTAL GENERAL | MVJ49: =SUM(SPR28:SPR47) -> $0 | MVO49: TOTAL GENERAL | MVR49: =SUM(SPZ28:SPZ47) -> $0 | MVW49: TOTAL GENERAL | MVZ49: =SUM(SQH28:SQH47) -> $0 | MWE49: TOTAL GENERAL | MWH49: =SUM(SQP28:SQP47) -> $0 | MWM49: TOTAL GENERAL | MWP49: =SUM(SQX28:SQX47) -> $0 | MWU49: TOTAL GENERAL | MWX49: =SUM(SRF28:SRF47) -> $0 | MXC49: TOTAL GENERAL | MXF49: =SUM(SRN28:SRN47) -> $0 | MXK49: TOTAL GENERAL | MXN49: =SUM(SRV28:SRV47) -> $0 | MXS49: TOTAL GENERAL | MXV49: =SUM(SSD28:SSD47) -> $0 | MYA49: TOTAL GENERAL | MYD49: =SUM(SSL28:SSL47) -> $0 | MYI49: TOTAL GENERAL | MYL49: =SUM(SST28:SST47) -> $0 | MYQ49: TOTAL GENERAL | MYT49: =SUM(STB28:STB47) -> $0 | MYY49: TOTAL GENERAL | MZB49: =SUM(STJ28:STJ47) -> $0 | MZG49: TOTAL GENERAL | MZJ49: =SUM(STR28:STR47) -> $0 | MZO49: TOTAL GENERAL | MZR49: =SUM(STZ28:STZ47) -> $0 | MZW49: TOTAL GENERAL | MZZ49: =SUM(SUH28:SUH47) -> $0 | NAE49: TOTAL GENERAL | NAH49: =SUM(SUP28:SUP47) -> $0 | NAM49: TOTAL GENERAL | NAP49: =SUM(SUX28:SUX47) -> $0 | NAU49: TOTAL GENERAL | NAX49: =SUM(SVF28:SVF47) -> $0 | NBC49: TOTAL GENERAL | NBF49: =SUM(SVN28:SVN47) -> $0 | NBK49: TOTAL GENERAL | NBN49: =SUM(SVV28:SVV47) -> $0 | NBS49: TOTAL GENERAL | NBV49: =SUM(SWD28:SWD47) -> $0 | NCA49: TOTAL GENERAL | NCD49: =SUM(SWL28:SWL47) -> $0 | NCI49: TOTAL GENERAL | NCL49: =SUM(SWT28:SWT47) -> $0 | NCQ49: TOTAL GENERAL | NCT49: =SUM(SXB28:SXB47) -> $0 | NCY49: TOTAL GENERAL | NDB49: =SUM(SXJ28:SXJ47) -> $0 | NDG49: TOTAL GENERAL | NDJ49: =SUM(SXR28:SXR47) -> $0 | NDO49: TOTAL GENERAL | NDR49: =SUM(SXZ28:SXZ47) -> $0 | NDW49: TOTAL GENERAL | NDZ49: =SUM(SYH28:SYH47) -> $0 | NEE49: TOTAL GENERAL | NEH49: =SUM(SYP28:SYP47) -> $0 | NEM49: TOTAL GENERAL | NEP49: =SUM(SYX28:SYX47) -> $0 | NEU49: TOTAL GENERAL | NEX49: =SUM(SZF28:SZF47) -> $0 | NFC49: TOTAL GENERAL | NFF49: =SUM(SZN28:SZN47) -> $0 | NFK49: TOTAL GENERAL | NFN49: =SUM(SZV28:SZV47) -> $0 | NFS49: TOTAL GENERAL | NFV49: =SUM(TAD28:TAD47) -> $0 | NGA49: TOTAL GENERAL | NGD49: =SUM(TAL28:TAL47) -> $0 | NGI49: TOTAL GENERAL | NGL49: =SUM(TAT28:TAT47) -> $0 | NGQ49: TOTAL GENERAL | NGT49: =SUM(TBB28:TBB47) -> $0 | NGY49: TOTAL GENERAL | NHB49: =SUM(TBJ28:TBJ47) -> $0 | NHG49: TOTAL GENERAL | NHJ49: =SUM(TBR28:TBR47) -> $0 | NHO49: TOTAL GENERAL | NHR49: =SUM(TBZ28:TBZ47) -> $0 | NHW49: TOTAL GENERAL | NHZ49: =SUM(TCH28:TCH47) -> $0 | NIE49: TOTAL GENERAL | NIH49: =SUM(TCP28:TCP47) -> $0 | NIM49: TOTAL GENERAL | NIP49: =SUM(TCX28:TCX47) -> $0 | NIU49: TOTAL GENERAL | NIX49: =SUM(TDF28:TDF47) -> $0 | NJC49: TOTAL GENERAL | NJF49: =SUM(TDN28:TDN47) -> $0 | NJK49: TOTAL GENERAL | NJN49: =SUM(TDV28:TDV47) -> $0 | NJS49: TOTAL GENERAL | NJV49: =SUM(TED28:TED47) -> $0 | NKA49: TOTAL GENERAL | NKD49: =SUM(TEL28:TEL47) -> $0 | NKI49: TOTAL GENERAL | NKL49: =SUM(TET28:TET47) -> $0 | NKQ49: TOTAL GENERAL | NKT49: =SUM(TFB28:TFB47) -> $0 | NKY49: TOTAL GENERAL | NLB49: =SUM(TFJ28:TFJ47) -> $0 | NLG49: TOTAL GENERAL | NLJ49: =SUM(TFR28:TFR47) -> $0 | NLO49: TOTAL GENERAL | NLR49: =SUM(TFZ28:TFZ47) -> $0 | NLW49: TOTAL GENERAL | NLZ49: =SUM(TGH28:TGH47) -> $0 | NME49: TOTAL GENERAL | NMH49: =SUM(TGP28:TGP47) -> $0 | NMM49: TOTAL GENERAL | NMP49: =SUM(TGX28:TGX47) -> $0 | NMU49: TOTAL GENERAL | NMX49: =SUM(THF28:THF47) -> $0 | NNC49: TOTAL GENERAL | NNF49: =SUM(THN28:THN47) -> $0 | NNK49: TOTAL GENERAL | NNN49: =SUM(THV28:THV47) -> $0 | NNS49: TOTAL GENERAL | NNV49: =SUM(TID28:TID47) -> $0 | NOA49: TOTAL GENERAL | NOD49: =SUM(TIL28:TIL47) -> $0 | NOI49: TOTAL GENERAL | NOL49: =SUM(TIT28:TIT47) -> $0 | NOQ49: TOTAL GENERAL | NOT49: =SUM(TJB28:TJB47) -> $0 | NOY49: TOTAL GENERAL | NPB49: =SUM(TJJ28:TJJ47) -> $0 | NPG49: TOTAL GENERAL | NPJ49: =SUM(TJR28:TJR47) -> $0 | NPO49: TOTAL GENERAL | NPR49: =SUM(TJZ28:TJZ47) -> $0 | NPW49: TOTAL GENERAL | NPZ49: =SUM(TKH28:TKH47) -> $0 | NQE49: TOTAL GENERAL | NQH49: =SUM(TKP28:TKP47) -> $0 | NQM49: TOTAL GENERAL | NQP49: =SUM(TKX28:TKX47) -> $0 | NQU49: TOTAL GENERAL | NQX49: =SUM(TLF28:TLF47) -> $0 | NRC49: TOTAL GENERAL | NRF49: =SUM(TLN28:TLN47) -> $0 | NRK49: TOTAL GENERAL | NRN49: =SUM(TLV28:TLV47) -> $0 | NRS49: TOTAL GENERAL | NRV49: =SUM(TMD28:TMD47) -> $0 | NSA49: TOTAL GENERAL | NSD49: =SUM(TML28:TML47) -> $0 | NSI49: TOTAL GENERAL | NSL49: =SUM(TMT28:TMT47) -> $0 | NSQ49: TOTAL GENERAL | NST49: =SUM(TNB28:TNB47) -> $0 | NSY49: TOTAL GENERAL | NTB49: =SUM(TNJ28:TNJ47) -> $0 | NTG49: TOTAL GENERAL | NTJ49: =SUM(TNR28:TNR47) -> $0 | NTO49: TOTAL GENERAL | NTR49: =SUM(TNZ28:TNZ47) -> $0 | NTW49: TOTAL GENERAL | NTZ49: =SUM(TOH28:TOH47) -> $0 | NUE49: TOTAL GENERAL | NUH49: =SUM(TOP28:TOP47) -> $0 | NUM49: TOTAL GENERAL | NUP49: =SUM(TOX28:TOX47) -> $0 | NUU49: TOTAL GENERAL | NUX49: =SUM(TPF28:TPF47) -> $0 | NVC49: TOTAL GENERAL | NVF49: =SUM(TPN28:TPN47) -> $0 | NVK49: TOTAL GENERAL | NVN49: =SUM(TPV28:TPV47) -> $0 | NVS49: TOTAL GENERAL | NVV49: =SUM(TQD28:TQD47) -> $0 | NWA49: TOTAL GENERAL | NWD49: =SUM(TQL28:TQL47) -> $0 | NWI49: TOTAL GENERAL | NWL49: =SUM(TQT28:TQT47) -> $0 | NWQ49: TOTAL GENERAL | NWT49: =SUM(TRB28:TRB47) -> $0 | NWY49: TOTAL GENERAL | NXB49: =SUM(TRJ28:TRJ47) -> $0 | NXG49: TOTAL GENERAL | NXJ49: =SUM(TRR28:TRR47) -> $0 | NXO49: TOTAL GENERAL | NXR49: =SUM(TRZ28:TRZ47) -> $0 | NXW49: TOTAL GENERAL | NXZ49: =SUM(TSH28:TSH47) -> $0 | NYE49: TOTAL GENERAL | NYH49: =SUM(TSP28:TSP47) -> $0 | NYM49: TOTAL GENERAL | NYP49: =SUM(TSX28:TSX47) -> $0 | NYU49: TOTAL GENERAL | NYX49: =SUM(TTF28:TTF47) -> $0 | NZC49: TOTAL GENERAL | NZF49: =SUM(TTN28:TTN47) -> $0 | NZK49: TOTAL GENERAL | NZN49: =SUM(TTV28:TTV47) -> $0 | NZS49: TOTAL GENERAL | NZV49: =SUM(TUD28:TUD47) -> $0 | OAA49: TOTAL GENERAL | OAD49: =SUM(TUL28:TUL47) -> $0 | OAI49: TOTAL GENERAL | OAL49: =SUM(TUT28:TUT47) -> $0 | OAQ49: TOTAL GENERAL | OAT49: =SUM(TVB28:TVB47) -> $0 | OAY49: TOTAL GENERAL | OBB49: =SUM(TVJ28:TVJ47) -> $0 | OBG49: TOTAL GENERAL | OBJ49: =SUM(TVR28:TVR47) -> $0 | OBO49: TOTAL GENERAL | OBR49: =SUM(TVZ28:TVZ47) -> $0 | OBW49: TOTAL GENERAL | OBZ49: =SUM(TWH28:TWH47) -> $0 | OCE49: TOTAL GENERAL | OCH49: =SUM(TWP28:TWP47) -> $0 | OCM49: TOTAL GENERAL | OCP49: =SUM(TWX28:TWX47) -> $0 | OCU49: TOTAL GENERAL | OCX49: =SUM(TXF28:TXF47) -> $0 | ODC49: TOTAL GENERAL | ODF49: =SUM(TXN28:TXN47) -> $0 | ODK49: TOTAL GENERAL | ODN49: =SUM(TXV28:TXV47) -> $0 | ODS49: TOTAL GENERAL | ODV49: =SUM(TYD28:TYD47) -> $0 | OEA49: TOTAL GENERAL | OED49: =SUM(TYL28:TYL47) -> $0 | OEI49: TOTAL GENERAL | OEL49: =SUM(TYT28:TYT47) -> $0 | OEQ49: TOTAL GENERAL | OET49: =SUM(TZB28:TZB47) -> $0 | OEY49: TOTAL GENERAL | OFB49: =SUM(TZJ28:TZJ47) -> $0 | OFG49: TOTAL GENERAL | OFJ49: =SUM(TZR28:TZR47) -> $0 | OFO49: TOTAL GENERAL | OFR49: =SUM(TZZ28:TZZ47) -> $0 | OFW49: TOTAL GENERAL | OFZ49: =SUM(UAH28:UAH47) -> $0 | OGE49: TOTAL GENERAL | OGH49: =SUM(UAP28:UAP47) -> $0 | OGM49: TOTAL GENERAL | OGP49: =SUM(UAX28:UAX47) -> $0 | OGU49: TOTAL GENERAL | OGX49: =SUM(UBF28:UBF47) -> $0 | OHC49: TOTAL GENERAL | OHF49: =SUM(UBN28:UBN47) -> $0 | OHK49: TOTAL GENERAL | OHN49: =SUM(UBV28:UBV47) -> $0 | OHS49: TOTAL GENERAL | OHV49: =SUM(UCD28:UCD47) -> $0 | OIA49: TOTAL GENERAL | OID49: =SUM(UCL28:UCL47) -> $0 | OII49: TOTAL GENERAL | OIL49: =SUM(UCT28:UCT47) -> $0 | OIQ49: TOTAL GENERAL | OIT49: =SUM(UDB28:UDB47) -> $0 | OIY49: TOTAL GENERAL | OJB49: =SUM(UDJ28:UDJ47) -> $0 | OJG49: TOTAL GENERAL | OJJ49: =SUM(UDR28:UDR47) -> $0 | OJO49: TOTAL GENERAL | OJR49: =SUM(UDZ28:UDZ47) -> $0 | OJW49: TOTAL GENERAL | OJZ49: =SUM(UEH28:UEH47) -> $0 | OKE49: TOTAL GENERAL | OKH49: =SUM(UEP28:UEP47) -> $0 | OKM49: TOTAL GENERAL | OKP49: =SUM(UEX28:UEX47) -> $0 | OKU49: TOTAL GENERAL | OKX49: =SUM(UFF28:UFF47) -> $0 | OLC49: TOTAL GENERAL | OLF49: =SUM(UFN28:UFN47) -> $0 | OLK49: TOTAL GENERAL | OLN49: =SUM(UFV28:UFV47) -> $0 | OLS49: TOTAL GENERAL | OLV49: =SUM(UGD28:UGD47) -> $0 | OMA49: TOTAL GENERAL | OMD49: =SUM(UGL28:UGL47) -> $0 | OMI49: TOTAL GENERAL | OML49: =SUM(UGT28:UGT47) -> $0 | OMQ49: TOTAL GENERAL | OMT49: =SUM(UHB28:UHB47) -> $0 | OMY49: TOTAL GENERAL | ONB49: =SUM(UHJ28:UHJ47) -> $0 | ONG49: TOTAL GENERAL | ONJ49: =SUM(UHR28:UHR47) -> $0 | ONO49: TOTAL GENERAL | ONR49: =SUM(UHZ28:UHZ47) -> $0 | ONW49: TOTAL GENERAL | ONZ49: =SUM(UIH28:UIH47) -> $0 | OOE49: TOTAL GENERAL | OOH49: =SUM(UIP28:UIP47) -> $0 | OOM49: TOTAL GENERAL | OOP49: =SUM(UIX28:UIX47) -> $0 | OOU49: TOTAL GENERAL | OOX49: =SUM(UJF28:UJF47) -> $0 | OPC49: TOTAL GENERAL | OPF49: =SUM(UJN28:UJN47) -> $0 | OPK49: TOTAL GENERAL | OPN49: =SUM(UJV28:UJV47) -> $0 | OPS49: TOTAL GENERAL | OPV49: =SUM(UKD28:UKD47) -> $0 | OQA49: TOTAL GENERAL | OQD49: =SUM(UKL28:UKL47) -> $0 | OQI49: TOTAL GENERAL | OQL49: =SUM(UKT28:UKT47) -> $0 | OQQ49: TOTAL GENERAL | OQT49: =SUM(ULB28:ULB47) -> $0 | OQY49: TOTAL GENERAL | ORB49: =SUM(ULJ28:ULJ47) -> $0 | ORG49: TOTAL GENERAL | ORJ49: =SUM(ULR28:ULR47) -> $0 | ORO49: TOTAL GENERAL | ORR49: =SUM(ULZ28:ULZ47) -> $0 | ORW49: TOTAL GENERAL | ORZ49: =SUM(UMH28:UMH47) -> $0 | OSE49: TOTAL GENERAL | OSH49: =SUM(UMP28:UMP47) -> $0 | OSM49: TOTAL GENERAL | OSP49: =SUM(UMX28:UMX47) -> $0 | OSU49: TOTAL GENERAL | OSX49: =SUM(UNF28:UNF47) -> $0 | OTC49: TOTAL GENERAL | OTF49: =SUM(UNN28:UNN47) -> $0 | OTK49: TOTAL GENERAL | OTN49: =SUM(UNV28:UNV47) -> $0 | OTS49: TOTAL GENERAL | OTV49: =SUM(UOD28:UOD47) -> $0 | OUA49: TOTAL GENERAL | OUD49: =SUM(UOL28:UOL47) -> $0 | OUI49: TOTAL GENERAL | OUL49: =SUM(UOT28:UOT47) -> $0 | OUQ49: TOTAL GENERAL | OUT49: =SUM(UPB28:UPB47) -> $0 | OUY49: TOTAL GENERAL | OVB49: =SUM(UPJ28:UPJ47) -> $0 | OVG49: TOTAL GENERAL | OVJ49: =SUM(UPR28:UPR47) -> $0 | OVO49: TOTAL GENERAL | OVR49: =SUM(UPZ28:UPZ47) -> $0 | OVW49: TOTAL GENERAL | OVZ49: =SUM(UQH28:UQH47) -> $0 | OWE49: TOTAL GENERAL | OWH49: =SUM(UQP28:UQP47) -> $0 | OWM49: TOTAL GENERAL | OWP49: =SUM(UQX28:UQX47) -> $0 | OWU49: TOTAL GENERAL | OWX49: =SUM(URF28:URF47) -> $0 | OXC49: TOTAL GENERAL | OXF49: =SUM(URN28:URN47) -> $0 | OXK49: TOTAL GENERAL | OXN49: =SUM(URV28:URV47) -> $0 | OXS49: TOTAL GENERAL | OXV49: =SUM(USD28:USD47) -> $0 | OYA49: TOTAL GENERAL | OYD49: =SUM(USL28:USL47) -> $0 | OYI49: TOTAL GENERAL | OYL49: =SUM(UST28:UST47) -> $0 | OYQ49: TOTAL GENERAL | OYT49: =SUM(UTB28:UTB47) -> $0 | OYY49: TOTAL GENERAL | OZB49: =SUM(UTJ28:UTJ47) -> $0 | OZG49: TOTAL GENERAL | OZJ49: =SUM(UTR28:UTR47) -> $0 | OZO49: TOTAL GENERAL | OZR49: =SUM(UTZ28:UTZ47) -> $0 | OZW49: TOTAL GENERAL | OZZ49: =SUM(UUH28:UUH47) -> $0 | PAE49: TOTAL GENERAL | PAH49: =SUM(UUP28:UUP47) -> $0 | PAM49: TOTAL GENERAL | PAP49: =SUM(UUX28:UUX47) -> $0 | PAU49: TOTAL GENERAL | PAX49: =SUM(UVF28:UVF47) -> $0 | PBC49: TOTAL GENERAL | PBF49: =SUM(UVN28:UVN47) -> $0 | PBK49: TOTAL GENERAL | PBN49: =SUM(UVV28:UVV47) -> $0 | PBS49: TOTAL GENERAL | PBV49: =SUM(UWD28:UWD47) -> $0 | PCA49: TOTAL GENERAL | PCD49: =SUM(UWL28:UWL47) -> $0 | PCI49: TOTAL GENERAL | PCL49: =SUM(UWT28:UWT47) -> $0 | PCQ49: TOTAL GENERAL | PCT49: =SUM(UXB28:UXB47) -> $0
B53: ______________________________________ | F53: ___________________________________________ | NL53: ___________________________________________ | NP53: ______________________________________ | NT53: ___________________________________________ | NX53: ______________________________________ | OB53: ___________________________________________ | OF53: ______________________________________ | OJ53: ___________________________________________ | OL53: ______________________________________ | OP53: ___________________________________________ | OT53: ______________________________________ | OX53: ___________________________________________ | PB53: ______________________________________ | PF53: ___________________________________________ | PJ53: ______________________________________ | PN53: ___________________________________________ | PR53: ______________________________________ | PV53: ___________________________________________ | PZ53: ______________________________________ | QD53: ___________________________________________ | RF53: ______________________________________ | RJ53: ___________________________________________ | RN53: ______________________________________ | RR53: ___________________________________________ | RV53: ______________________________________ | RZ53: ___________________________________________ | SD53: ______________________________________ | SH53: ___________________________________________ | SL53: ______________________________________ | SP53: ___________________________________________ | ST53: ______________________________________ | SX53: ___________________________________________ | TB53: ______________________________________ | TF53: ___________________________________________ | TJ53: ______________________________________ | TN53: ___________________________________________ | TR53: ______________________________________ | TV53: ___________________________________________ | TZ53: ______________________________________ | UD53: ___________________________________________ | UH53: ______________________________________ | UL53: ___________________________________________ | UP53: ______________________________________ | UT53: ___________________________________________ | VR53: ___________________________________________ | VV53: ______________________________________ | VZ53: ___________________________________________ | WD53: ______________________________________ | WH53: ___________________________________________ | WL53: ______________________________________ | WP53: ___________________________________________ | WT53: ______________________________________ | WX53: ___________________________________________ | XB53: ______________________________________ | XF53: ___________________________________________ | XJ53: ______________________________________ | XN53: ___________________________________________ | XR53: ______________________________________ | XV53: ___________________________________________ | XZ53: ______________________________________ | YD53: ___________________________________________ | YH53: ______________________________________ | YL53: ___________________________________________ | YP53: ______________________________________ | YT53: ___________________________________________ | YX53: ______________________________________ | ZB53: ___________________________________________ | ZF53: ______________________________________ | ZJ53: ___________________________________________ | ZN53: ______________________________________ | ZR53: ___________________________________________ | ZV53: ______________________________________ | ZZ53: ___________________________________________ | AAD53: ______________________________________ | AAH53: ___________________________________________ | ADR53: ___________________________________________ | ADV53: ______________________________________ | ADZ53: ___________________________________________ | AED53: ______________________________________ | AEH53: ___________________________________________ | AEL53: ______________________________________ | AEP53: ___________________________________________ | AFR53: ______________________________________ | AFV53: ___________________________________________ | AFZ53: ______________________________________ | AGD53: ___________________________________________ | AGH53: ______________________________________ | AGL53: ___________________________________________ | AGP53: ______________________________________ | AGT53: ___________________________________________ | AGX53: ______________________________________ | AHV53: ______________________________________ | AHZ53: ___________________________________________ | AID53: ______________________________________ | AIH53: ___________________________________________ | AIL53: ______________________________________ | AIP53: ___________________________________________ | AIT53: ______________________________________ | AIX53: ___________________________________________ | AJB53: ______________________________________ | AJF53: ___________________________________________ | AJJ53: ______________________________________ | AJN53: ___________________________________________ | AJR53: ______________________________________ | AJV53: ___________________________________________ | AJZ53: ______________________________________ | AKD53: ___________________________________________ | AKH53: ______________________________________ | AKL53: ___________________________________________ | APB53: ___________________________________________ | APF53: ______________________________________ | APJ53: ___________________________________________ | APN53: ______________________________________ | APR53: ___________________________________________ | APV53: ______________________________________ | APZ53: ___________________________________________ | AQD53: ______________________________________ | AQH53: ___________________________________________ | AQL53: ______________________________________ | AQP53: ___________________________________________ | AQT53: ______________________________________ | AQX53: ___________________________________________ | ARB53: ______________________________________ | ARF53: ___________________________________________ | ARJ53: ______________________________________ | ARN53: ___________________________________________ | ARR53: ______________________________________ | ARV53: ___________________________________________ | ARZ53: ______________________________________ | ASD53: ___________________________________________ | ASH53: ______________________________________ | ASL53: ___________________________________________ | ASP53: ______________________________________ | AST53: ___________________________________________ | ASX53: ______________________________________ | ATB53: ___________________________________________ | ATF53: ______________________________________ | ATJ53: ___________________________________________ | ATN53: ______________________________________ | ATR53: ___________________________________________ | ATV53: ______________________________________ | ATZ53: ___________________________________________ | AUD53: ______________________________________ | AUH53: ___________________________________________ | AUL53: ______________________________________ | AUP53: ___________________________________________ | AUT53: ______________________________________ | AUX53: ___________________________________________ | AVB53: ______________________________________ | AVF53: ___________________________________________ | AVJ53: ______________________________________ | AVN53: ___________________________________________ | AVR53: ______________________________________ | AVV53: ___________________________________________ | AVZ53: ______________________________________ | AWD53: ___________________________________________ | AWH53: ______________________________________ | AWL53: ___________________________________________ | AWP53: ______________________________________ | AWT53: ___________________________________________ | AWX53: ______________________________________ | AXB53: ___________________________________________ | AXF53: ______________________________________ | AXJ53: ___________________________________________ | AXN53: ______________________________________ | AXR53: ___________________________________________ | AXV53: ______________________________________ | AXZ53: ___________________________________________ | AYD53: ______________________________________ | AYH53: ___________________________________________ | AYL53: ______________________________________ | AYP53: ___________________________________________ | AYT53: ______________________________________ | AYX53: ___________________________________________ | AZB53: ______________________________________ | AZF53: ___________________________________________ | AZJ53: ______________________________________ | AZN53: ___________________________________________ | AZR53: ______________________________________ | AZV53: ___________________________________________ | AZZ53: ______________________________________ | BAD53: ___________________________________________ | BAH53: ______________________________________ | BAL53: ___________________________________________ | BAP53: ______________________________________ | BAT53: ___________________________________________ | BAX53: ______________________________________ | BBB53: ___________________________________________ | BBF53: ______________________________________ | BBJ53: ___________________________________________ | BBN53: ______________________________________ | BBR53: ___________________________________________ | BBV53: ______________________________________ | BBZ53: ___________________________________________ | BCD53: ______________________________________ | BCH53: ___________________________________________ | BCL53: ______________________________________ | BCP53: ___________________________________________ | BCT53: ______________________________________ | BCX53: ___________________________________________ | BDB53: ______________________________________ | BDF53: ___________________________________________ | BDJ53: ______________________________________ | BDN53: ___________________________________________ | BDR53: ______________________________________ | BDV53: ___________________________________________ | BDZ53: ______________________________________ | BED53: ___________________________________________ | BEH53: ______________________________________ | BEL53: ___________________________________________ | BEP53: ______________________________________ | BET53: ___________________________________________ | BEX53: ______________________________________ | BFB53: ___________________________________________ | BFF53: ______________________________________ | BFJ53: ___________________________________________ | BFN53: ______________________________________ | BFR53: ___________________________________________ | BFV53: ______________________________________ | BFZ53: ___________________________________________ | BGD53: ______________________________________ | BGH53: ___________________________________________ | BGL53: ______________________________________ | BGP53: ___________________________________________ | BHN53: ___________________________________________ | BHR53: ______________________________________ | BHV53: ___________________________________________ | BHZ53: ______________________________________ | BID53: ___________________________________________ | BIH53: ______________________________________ | BIL53: ___________________________________________ | BIP53: ______________________________________ | BIT53: ___________________________________________ | BIX53: ______________________________________ | BJB53: ___________________________________________ | BJF53: ______________________________________ | BJJ53: ___________________________________________ | BJN53: ______________________________________ | BJR53: ___________________________________________ | BJV53: ______________________________________ | BJZ53: ___________________________________________ | BKD53: ______________________________________ | BKH53: ___________________________________________ | BKL53: ______________________________________ | BKP53: ___________________________________________ | BKT53: ______________________________________ | BKX53: ___________________________________________ | BLB53: ______________________________________ | BLF53: ___________________________________________ | BLJ53: ______________________________________ | BLN53: ___________________________________________ | BLR53: ______________________________________ | BLV53: ___________________________________________ | BLZ53: ______________________________________ | BMD53: ___________________________________________ | BMH53: ______________________________________ | BML53: ___________________________________________ | BMP53: ______________________________________ | BMT53: ___________________________________________ | BMX53: ______________________________________ | BNB53: ___________________________________________ | BNF53: ______________________________________ | BNJ53: ___________________________________________ | BNN53: ______________________________________ | BNR53: ___________________________________________ | BNV53: ______________________________________ | BNZ53: ___________________________________________ | BOD53: ______________________________________ | BOH53: ___________________________________________ | BOL53: ______________________________________ | BOP53: ___________________________________________ | BOT53: ______________________________________ | BOX53: ___________________________________________ | BPB53: ______________________________________ | BPF53: ___________________________________________ | BPJ53: ______________________________________ | BPN53: ___________________________________________ | BPR53: ______________________________________ | BPV53: ___________________________________________ | BPZ53: ______________________________________ | BQD53: ___________________________________________ | BQH53: ______________________________________ | BQL53: ___________________________________________ | BQP53: ______________________________________ | BQT53: ___________________________________________ | BQX53: ______________________________________ | BRB53: ___________________________________________ | BRF53: ______________________________________ | BRJ53: ___________________________________________ | BRN53: ______________________________________ | BRR53: ___________________________________________ | BRV53: ______________________________________ | BRZ53: ___________________________________________ | BSD53: ______________________________________ | BSH53: ___________________________________________ | BSL53: ______________________________________ | BSP53: ___________________________________________ | BST53: ______________________________________ | BSX53: ___________________________________________ | BTB53: ______________________________________ | BTF53: ___________________________________________ | BTJ53: ______________________________________ | BTN53: ___________________________________________ | BTR53: ______________________________________ | BTV53: ___________________________________________ | BTZ53: ______________________________________ | BUD53: ___________________________________________ | BUH53: ______________________________________ | BUL53: ___________________________________________ | BUP53: ______________________________________ | BUT53: ___________________________________________ | BUX53: ______________________________________ | BVB53: ___________________________________________ | BVF53: ______________________________________ | BVJ53: ___________________________________________ | BVN53: ______________________________________ | BVR53: ___________________________________________ | BVV53: ______________________________________ | BVZ53: ___________________________________________ | BWD53: ______________________________________ | BWH53: ___________________________________________ | BWL53: ______________________________________ | BWP53: ___________________________________________ | BWT53: ______________________________________ | BWX53: ___________________________________________ | BXB53: ______________________________________ | BXF53: ___________________________________________ | BXJ53: ______________________________________ | BXN53: ___________________________________________ | BXR53: ______________________________________ | BXV53: ___________________________________________ | BXZ53: ______________________________________ | BYD53: ___________________________________________ | BYH53: ______________________________________ | BYL53: ___________________________________________ | BYP53: ______________________________________ | BYT53: ___________________________________________ | BYX53: ______________________________________ | BZB53: ___________________________________________ | BZF53: ______________________________________ | BZJ53: ___________________________________________ | BZN53: ______________________________________ | BZR53: ___________________________________________ | BZV53: ______________________________________ | BZZ53: ___________________________________________ | CAD53: ______________________________________ | CAH53: ___________________________________________ | CBF53: ___________________________________________ | CBJ53: ______________________________________ | CBN53: ___________________________________________ | CBR53: ______________________________________ | CBV53: ___________________________________________ | CBZ53: ______________________________________ | CCD53: ___________________________________________ | CCH53: ______________________________________ | CCL53: ___________________________________________ | CCP53: ______________________________________ | CCT53: ___________________________________________ | CCX53: ______________________________________ | CDB53: ___________________________________________ | CDF53: ______________________________________ | CDJ53: ___________________________________________ | CDN53: ______________________________________ | CDR53: ___________________________________________ | CDV53: ______________________________________ | CDZ53: ___________________________________________ | CED53: ______________________________________ | CEH53: ___________________________________________ | CEL53: ______________________________________ | CEP53: ___________________________________________ | CET53: ______________________________________ | CEX53: ___________________________________________ | CFB53: ______________________________________ | CFF53: ___________________________________________ | CFJ53: ______________________________________ | CFN53: ___________________________________________ | CFR53: ______________________________________ | CFV53: ___________________________________________ | CFZ53: ______________________________________ | CGD53: ___________________________________________ | CGH53: ______________________________________ | CGL53: ___________________________________________ | CGP53: ______________________________________ | CGT53: ___________________________________________ | CGX53: ______________________________________ | CHB53: ___________________________________________ | CHF53: ______________________________________ | CHJ53: ___________________________________________ | CHN53: ______________________________________ | CHR53: ___________________________________________ | CHV53: ______________________________________ | CHZ53: ___________________________________________ | CID53: ______________________________________ | CIH53: ___________________________________________ | CIL53: ______________________________________ | CIP53: ___________________________________________ | CIT53: ______________________________________ | CIX53: ___________________________________________ | CJB53: ______________________________________ | CJF53: ___________________________________________ | CJJ53: ______________________________________ | CJN53: ___________________________________________ | CKH53: ______________________________________ | CKL53: ___________________________________________ | CKP53: ______________________________________ | CKT53: ___________________________________________ | CKX53: ______________________________________ | CLB53: ___________________________________________ | CLF53: ______________________________________ | CLJ53: ___________________________________________ | CLN53: ______________________________________ | CLR53: ___________________________________________ | CLV53: ______________________________________ | CLZ53: ___________________________________________ | CMD53: ______________________________________ | CMH53: ___________________________________________ | CML53: ______________________________________ | CMP53: ___________________________________________ | CMT53: ______________________________________ | CMX53: ___________________________________________ | CNB53: ______________________________________ | CNF53: ___________________________________________ | CNJ53: ______________________________________ | CNN53: ___________________________________________ | CNR53: ______________________________________ | CNV53: ___________________________________________ | CNZ53: ______________________________________ | COD53: ___________________________________________ | COH53: ______________________________________ | COL53: ___________________________________________ | COP53: ______________________________________ | COT53: ___________________________________________ | COX53: ______________________________________ | CPB53: ___________________________________________ | CPF53: ______________________________________ | CPJ53: ___________________________________________ | CPN53: ______________________________________ | CPR53: ___________________________________________ | CPV53: ______________________________________ | CPZ53: ___________________________________________ | CQD53: ______________________________________ | CQH53: ___________________________________________ | CQL53: ______________________________________ | CQP53: ___________________________________________ | CQT53: ______________________________________ | CQX53: ___________________________________________ | CRB53: ______________________________________ | CRF53: ___________________________________________ | CRJ53: ______________________________________ | CRN53: ___________________________________________ | CRR53: ______________________________________ | CRV53: ___________________________________________ | CRZ53: ______________________________________ | CSD53: ___________________________________________ | CSH53: ______________________________________ | CSL53: ___________________________________________ | CSP53: ______________________________________ | CST53: ___________________________________________ | CSX53: ______________________________________ | CTB53: ___________________________________________ | CTF53: ______________________________________ | CTJ53: ___________________________________________ | CTN53: ______________________________________ | CTR53: ___________________________________________ | CTV53: ______________________________________ | CTZ53: ___________________________________________ | CUD53: ______________________________________ | CUH53: ___________________________________________ | CUL53: ______________________________________ | CUP53: ___________________________________________ | CUT53: ______________________________________ | CUX53: ___________________________________________ | CVB53: ______________________________________ | CVF53: ___________________________________________ | CVJ53: ______________________________________ | CVN53: ___________________________________________ | CVR53: ______________________________________ | CVV53: ___________________________________________ | CVZ53: ______________________________________ | CWD53: ___________________________________________ | CWH53: ______________________________________ | CWL53: ___________________________________________ | CWP53: ______________________________________ | CWT53: ___________________________________________ | CWX53: ______________________________________ | CXB53: ___________________________________________ | CXF53: ______________________________________ | CXJ53: ___________________________________________ | CXN53: ______________________________________ | CXR53: ___________________________________________ | CXV53: ______________________________________ | CXZ53: ___________________________________________ | CYD53: ______________________________________ | CYH53: ___________________________________________ | CYL53: ______________________________________ | CYP53: ___________________________________________ | CYT53: ______________________________________ | CYX53: ___________________________________________ | CZB53: ______________________________________ | CZF53: ___________________________________________ | CZJ53: ______________________________________ | CZN53: ___________________________________________ | CZR53: ______________________________________ | CZV53: ___________________________________________ | CZZ53: ______________________________________ | DAD53: ___________________________________________ | DAH53: ______________________________________ | DAL53: ___________________________________________ | DAP53: ______________________________________ | DAT53: ___________________________________________ | DAX53: ______________________________________ | DBB53: ___________________________________________ | DBF53: ______________________________________ | DBJ53: ___________________________________________ | DBN53: ______________________________________ | DBR53: ___________________________________________ | DBV53: ______________________________________ | DBZ53: ___________________________________________ | DCD53: ______________________________________ | DCH53: ___________________________________________ | DCL53: ______________________________________ | DCP53: ___________________________________________ | DCT53: ______________________________________ | DCX53: ___________________________________________ | DDB53: ______________________________________ | DDF53: ___________________________________________ | DDJ53: ______________________________________ | DDN53: ___________________________________________ | DDR53: ______________________________________ | DDV53: ___________________________________________ | DDZ53: ______________________________________ | DED53: ___________________________________________ | DEH53: ______________________________________ | DEL53: ___________________________________________ | DEP53: ______________________________________ | DET53: ___________________________________________ | DEX53: ______________________________________ | DFB53: ___________________________________________ | DFF53: ______________________________________ | DFJ53: ___________________________________________ | DFN53: ______________________________________ | DFR53: ___________________________________________ | DFV53: ______________________________________ | DFZ53: ___________________________________________ | DGD53: ______________________________________ | DGH53: ___________________________________________ | DGL53: ______________________________________ | DGP53: ___________________________________________ | DGT53: ______________________________________ | DGX53: ___________________________________________ | DHB53: ______________________________________ | DHF53: ___________________________________________ | DHJ53: ______________________________________ | DHN53: ___________________________________________ | DHR53: ______________________________________ | DHV53: ___________________________________________ | DHZ53: ______________________________________ | DID53: ___________________________________________ | DIH53: ______________________________________ | DIL53: ___________________________________________ | DIP53: ______________________________________ | DIT53: ___________________________________________ | DIX53: ______________________________________ | DJB53: ___________________________________________ | DJF53: ______________________________________ | DJJ53: ___________________________________________ | DJN53: ______________________________________ | DJR53: ___________________________________________ | DJV53: ______________________________________ | DJZ53: ___________________________________________ | DKD53: ______________________________________ | DKH53: ___________________________________________ | DKL53: ______________________________________ | DKP53: ___________________________________________ | DKT53: ______________________________________ | DKX53: ___________________________________________ | DLB53: ______________________________________ | DLF53: ___________________________________________ | DLJ53: ______________________________________ | DLN53: ___________________________________________ | DLR53: ______________________________________ | DLV53: ___________________________________________ | DLZ53: ______________________________________ | DMD53: ___________________________________________ | DMH53: ______________________________________ | DML53: ___________________________________________ | DMP53: ______________________________________ | DMT53: ___________________________________________ | DMX53: ______________________________________ | DNB53: ___________________________________________ | DNF53: ______________________________________ | DNJ53: ___________________________________________ | DNN53: ______________________________________ | DNR53: ___________________________________________ | DNV53: ______________________________________ | DNZ53: ___________________________________________ | DOD53: ______________________________________ | DOH53: ___________________________________________ | DOL53: ______________________________________ | DOP53: ___________________________________________ | DOT53: ______________________________________ | DOX53: ___________________________________________ | DPB53: ______________________________________ | DPF53: ___________________________________________ | DPJ53: ______________________________________ | DPN53: ___________________________________________ | DPR53: ______________________________________ | DPV53: ___________________________________________ | DPZ53: ______________________________________ | DQD53: ___________________________________________ | DQH53: ______________________________________ | DQL53: ___________________________________________ | DQP53: ______________________________________ | DQT53: ___________________________________________ | DQX53: ______________________________________ | DRB53: ___________________________________________ | DRF53: ______________________________________ | DRJ53: ___________________________________________ | DRN53: ______________________________________ | DRR53: ___________________________________________ | DRV53: ______________________________________ | DRZ53: ___________________________________________ | DSD53: ______________________________________ | DSH53: ___________________________________________ | DSL53: ______________________________________ | DSP53: ___________________________________________ | DST53: ______________________________________ | DSX53: ___________________________________________ | DUD53: ___________________________________________ | DUH53: ______________________________________ | DUL53: ___________________________________________ | DUP53: ______________________________________ | DUT53: ___________________________________________ | DUX53: ______________________________________ | DVB53: ___________________________________________ | DVF53: ______________________________________ | DVJ53: ___________________________________________ | DVN53: ______________________________________ | DVR53: ___________________________________________ | DVV53: ______________________________________ | DVZ53: ___________________________________________ | DWD53: ______________________________________ | DWH53: ___________________________________________ | DWL53: ______________________________________ | DWP53: ___________________________________________ | DWT53: ______________________________________ | DWX53: ___________________________________________ | DXB53: ______________________________________ | DXF53: ___________________________________________ | DXJ53: ______________________________________ | DXN53: ___________________________________________ | DXR53: ______________________________________ | DXV53: ___________________________________________ | DXZ53: ______________________________________ | DYD53: ___________________________________________ | DYH53: ______________________________________ | DYL53: ___________________________________________ | DYP53: ______________________________________ | DYT53: ___________________________________________ | DYX53: ______________________________________ | DZB53: ___________________________________________ | DZF53: ______________________________________ | DZJ53: ___________________________________________ | DZN53: ______________________________________ | DZR53: ___________________________________________ | DZV53: ______________________________________ | DZZ53: ___________________________________________ | EAD53: ______________________________________ | EAH53: ___________________________________________ | EAL53: ______________________________________ | EAP53: ___________________________________________ | EAT53: ______________________________________ | EAX53: ___________________________________________ | EBB53: ______________________________________ | EBF53: ___________________________________________ | EBJ53: ______________________________________ | EBN53: ___________________________________________ | EBR53: ______________________________________ | EBV53: ___________________________________________ | EBZ53: ______________________________________ | ECD53: ___________________________________________ | ECH53: ______________________________________ | ECL53: ___________________________________________ | ECP53: ______________________________________ | ECT53: ___________________________________________ | ECX53: ______________________________________ | EDB53: ___________________________________________ | EDF53: ______________________________________ | EDJ53: ___________________________________________ | EDN53: ______________________________________ | EDR53: ___________________________________________ | EDV53: ______________________________________ | EDZ53: ___________________________________________ | EED53: ______________________________________ | EEH53: ___________________________________________ | EEL53: ______________________________________ | EEP53: ___________________________________________ | EET53: ______________________________________ | EEX53: ___________________________________________ | EFB53: ______________________________________ | EFF53: ___________________________________________ | EFJ53: ______________________________________ | EFN53: ___________________________________________ | EFR53: ______________________________________ | EFV53: ___________________________________________ | EFZ53: ______________________________________ | EGD53: ___________________________________________ | EGH53: ______________________________________ | EGL53: ___________________________________________ | EGP53: ______________________________________ | EGT53: ___________________________________________ | EGX53: ______________________________________ | EHB53: ___________________________________________ | EHF53: ______________________________________ | EHJ53: ___________________________________________ | EHN53: ______________________________________ | EHR53: ___________________________________________ | EHV53: ______________________________________ | EHZ53: ___________________________________________ | EID53: ______________________________________ | EIH53: ___________________________________________ | EIL53: ______________________________________ | EIP53: ___________________________________________ | EIT53: ______________________________________ | EIX53: ___________________________________________ | EJB53: ______________________________________ | EJF53: ___________________________________________ | EJJ53: ______________________________________ | EJN53: ___________________________________________ | EJR53: ______________________________________ | EJV53: ___________________________________________ | EJZ53: ______________________________________ | EKD53: ___________________________________________ | EKH53: ______________________________________ | EKL53: ___________________________________________ | EKP53: ______________________________________ | EKT53: ___________________________________________ | EKX53: ______________________________________ | ELB53: ___________________________________________ | ELF53: ______________________________________ | ELJ53: ___________________________________________ | ELN53: ______________________________________ | ELR53: ___________________________________________ | ELV53: ______________________________________ | ELZ53: ___________________________________________ | EMD53: ______________________________________ | EMH53: ___________________________________________ | EML53: ______________________________________ | EMP53: ___________________________________________ | EMT53: ______________________________________ | EMX53: ___________________________________________ | ENB53: ______________________________________ | ENF53: ___________________________________________ | ENJ53: ______________________________________ | ENN53: ___________________________________________ | ENR53: ______________________________________ | ENV53: ___________________________________________ | ENZ53: ______________________________________ | EOD53: ___________________________________________ | EOH53: ______________________________________ | EOL53: ___________________________________________ | EOP53: ______________________________________ | EOT53: ___________________________________________ | EOX53: ______________________________________ | EPB53: ___________________________________________ | EPF53: ______________________________________ | EPJ53: ___________________________________________ | EPN53: ______________________________________ | EPR53: ___________________________________________ | EPV53: ______________________________________ | EPZ53: ___________________________________________ | EQD53: ______________________________________ | EQH53: ___________________________________________ | EQL53: ______________________________________ | EQP53: ___________________________________________ | EQT53: ______________________________________ | EQX53: ___________________________________________ | ERB53: ______________________________________ | ERF53: ___________________________________________ | ERJ53: ______________________________________ | ERN53: ___________________________________________ | ERR53: ______________________________________ | ERV53: ___________________________________________ | ERZ53: ______________________________________ | ESD53: ___________________________________________ | ESH53: ______________________________________ | ESL53: ___________________________________________ | ESP53: ______________________________________ | EST53: ___________________________________________ | ESX53: ______________________________________ | ETB53: ___________________________________________ | ETF53: ______________________________________ | ETJ53: ___________________________________________ | ETN53: ______________________________________ | ETR53: ___________________________________________ | ETV53: ______________________________________ | ETZ53: ___________________________________________ | EUD53: ______________________________________ | EUH53: ___________________________________________ | EUL53: ______________________________________ | EUP53: ___________________________________________ | EUT53: ______________________________________ | EUX53: ___________________________________________ | EVB53: ______________________________________ | EVF53: ___________________________________________ | EVJ53: ______________________________________ | EVN53: ___________________________________________ | EVR53: ______________________________________ | EVV53: ___________________________________________ | EVZ53: ______________________________________ | EWD53: ___________________________________________ | EWH53: ______________________________________ | EWL53: ___________________________________________ | EWP53: ______________________________________ | EWT53: ___________________________________________ | EWX53: ______________________________________ | EXB53: ___________________________________________ | EXF53: ______________________________________ | EXJ53: ___________________________________________ | EXN53: ______________________________________ | EXR53: ___________________________________________ | EXV53: ______________________________________ | EXZ53: ___________________________________________ | EYD53: ______________________________________ | EYH53: ___________________________________________ | EYL53: ______________________________________ | EYP53: ___________________________________________ | EYT53: ______________________________________ | EYX53: ___________________________________________ | EZB53: ______________________________________ | EZF53: ___________________________________________ | EZJ53: ______________________________________ | EZN53: ___________________________________________ | EZR53: ______________________________________ | EZV53: ___________________________________________ | EZZ53: ______________________________________ | FAD53: ___________________________________________ | FAH53: ______________________________________ | FAL53: ___________________________________________ | FAP53: ______________________________________ | FAT53: ___________________________________________ | FAX53: ______________________________________ | FBB53: ___________________________________________ | FBF53: ______________________________________ | FBJ53: ___________________________________________ | FBN53: ______________________________________ | FBR53: ___________________________________________ | FBV53: ______________________________________ | FBZ53: ___________________________________________ | FCD53: ______________________________________ | FCH53: ___________________________________________ | FCL53: ______________________________________ | FCP53: ___________________________________________ | FCT53: ______________________________________ | FCX53: ___________________________________________ | FDB53: ______________________________________ | FDF53: ___________________________________________ | FDJ53: ______________________________________ | FDN53: ___________________________________________ | FDR53: ______________________________________ | FDV53: ___________________________________________ | FDZ53: ______________________________________ | FED53: ___________________________________________ | FEH53: ______________________________________ | FEL53: ___________________________________________ | FEP53: ______________________________________ | FET53: ___________________________________________ | FEX53: ______________________________________ | FFB53: ___________________________________________ | FFF53: ______________________________________ | FFJ53: ___________________________________________ | FFN53: ______________________________________ | FFR53: ___________________________________________ | FFV53: ______________________________________ | FFZ53: ___________________________________________ | FGD53: ______________________________________ | FGH53: ___________________________________________ | FGL53: ______________________________________ | FGP53: ___________________________________________ | FGT53: ______________________________________ | FGX53: ___________________________________________ | FHB53: ______________________________________ | FHF53: ___________________________________________ | FHJ53: ______________________________________ | FHN53: ___________________________________________ | FHR53: ______________________________________ | FHV53: ___________________________________________ | FHZ53: ______________________________________ | FID53: ___________________________________________ | FIH53: ______________________________________ | FIL53: ___________________________________________ | FIP53: ______________________________________ | FIT53: ___________________________________________ | FIX53: ______________________________________ | FJB53: ___________________________________________ | FJF53: ______________________________________ | FJJ53: ___________________________________________ | FJN53: ______________________________________ | FJR53: ___________________________________________ | FJV53: ______________________________________ | FJZ53: ___________________________________________ | FKD53: ______________________________________ | FKH53: ___________________________________________ | FKL53: ______________________________________ | FKP53: ___________________________________________ | FKT53: ______________________________________ | FKX53: ___________________________________________ | FLB53: ______________________________________ | FLF53: ___________________________________________ | FLJ53: ______________________________________ | FLN53: ___________________________________________ | FLR53: ______________________________________ | FLV53: ___________________________________________ | FLZ53: ______________________________________ | FMD53: ___________________________________________ | FMH53: ______________________________________ | FML53: ___________________________________________ | FMP53: ______________________________________ | FMT53: ___________________________________________ | FMX53: ______________________________________ | FNB53: ___________________________________________ | FNF53: ______________________________________ | FNJ53: ___________________________________________ | FNN53: ______________________________________ | FNR53: ___________________________________________ | FNV53: ______________________________________ | FNZ53: ___________________________________________ | FOD53: ______________________________________ | FOH53: ___________________________________________ | FOL53: ______________________________________ | FOP53: ___________________________________________ | FOT53: ______________________________________ | FOX53: ___________________________________________ | FPB53: ______________________________________ | FPF53: ___________________________________________ | FPJ53: ______________________________________ | FPN53: ___________________________________________ | FPR53: ______________________________________ | FPV53: ___________________________________________ | FPZ53: ______________________________________ | FQD53: ___________________________________________ | FQH53: ______________________________________ | FQL53: ___________________________________________ | FQP53: ______________________________________ | FQT53: ___________________________________________ | FQX53: ______________________________________ | FRB53: ___________________________________________ | FRF53: ______________________________________ | FRJ53: ___________________________________________ | FRN53: ______________________________________ | FRR53: ___________________________________________ | FRV53: ______________________________________ | FRZ53: ___________________________________________ | FSD53: ______________________________________ | FSH53: ___________________________________________ | FSL53: ______________________________________ | FSP53: ___________________________________________ | FST53: ______________________________________ | FSX53: ___________________________________________ | FTB53: ______________________________________ | FTF53: ___________________________________________ | FTJ53: ______________________________________ | FTN53: ___________________________________________ | FTR53: ______________________________________ | FTV53: ___________________________________________ | FTZ53: ______________________________________ | FUD53: ___________________________________________ | FUH53: ______________________________________ | FUL53: ___________________________________________ | FUP53: ______________________________________ | FUT53: ___________________________________________ | FUX53: ______________________________________ | FVB53: ___________________________________________ | FVF53: ______________________________________ | FVJ53: ___________________________________________ | FVN53: ______________________________________ | FVR53: ___________________________________________ | FVV53: ______________________________________ | FVZ53: ___________________________________________ | FWD53: ______________________________________ | FWH53: ___________________________________________ | FWL53: ______________________________________ | FWP53: ___________________________________________ | FWT53: ______________________________________ | FWX53: ___________________________________________ | FXB53: ______________________________________ | FXF53: ___________________________________________ | FXJ53: ______________________________________ | FXN53: ___________________________________________ | FXR53: ______________________________________ | FXV53: ___________________________________________ | FXZ53: ______________________________________ | FYD53: ___________________________________________ | FYH53: ______________________________________ | FYL53: ___________________________________________ | FYP53: ______________________________________ | FYT53: ___________________________________________ | FYX53: ______________________________________ | FZB53: ___________________________________________ | FZF53: ______________________________________ | FZJ53: ___________________________________________ | FZN53: ______________________________________ | FZR53: ___________________________________________ | FZV53: ______________________________________ | FZZ53: ___________________________________________ | GAD53: ______________________________________ | GAH53: ___________________________________________ | GAL53: ______________________________________ | GAP53: ___________________________________________ | GAT53: ______________________________________ | GAX53: ___________________________________________ | GBB53: ______________________________________ | GBF53: ___________________________________________ | GBJ53: ______________________________________ | GBN53: ___________________________________________ | GBR53: ______________________________________ | GBV53: ___________________________________________ | GBZ53: ______________________________________ | GCD53: ___________________________________________ | GCH53: ______________________________________ | GCL53: ___________________________________________ | GCP53: ______________________________________ | GCT53: ___________________________________________ | GCX53: ______________________________________ | GDB53: ___________________________________________ | GDF53: ______________________________________ | GDJ53: ___________________________________________ | GDN53: ______________________________________ | GDR53: ___________________________________________ | GDV53: ______________________________________ | GDZ53: ___________________________________________ | GED53: ______________________________________ | GEH53: ___________________________________________ | GEL53: ______________________________________ | GEP53: ___________________________________________ | GET53: ______________________________________ | GEX53: ___________________________________________ | GFB53: ______________________________________ | GFF53: ___________________________________________ | GFJ53: ______________________________________ | GFN53: ___________________________________________ | GFR53: ______________________________________ | GFV53: ___________________________________________ | GFZ53: ______________________________________ | GGD53: ___________________________________________ | GGH53: ______________________________________ | GGL53: ___________________________________________ | GGP53: ______________________________________ | GGT53: ___________________________________________ | GGX53: ______________________________________ | GHB53: ___________________________________________ | GHF53: ______________________________________ | GHJ53: ___________________________________________ | GHN53: ______________________________________ | GHR53: ___________________________________________ | GHV53: ______________________________________ | GHZ53: ___________________________________________ | GID53: ______________________________________ | GIH53: ___________________________________________ | GIL53: ______________________________________ | GIP53: ___________________________________________ | GIT53: ______________________________________ | GIX53: ___________________________________________ | GJB53: ______________________________________ | GJF53: ___________________________________________ | GJJ53: ______________________________________ | GJN53: ___________________________________________ | GJR53: ______________________________________ | GJV53: ___________________________________________ | GJZ53: ______________________________________ | GKD53: ___________________________________________ | GKH53: ______________________________________ | GKL53: ___________________________________________ | GKP53: ______________________________________ | GKT53: ___________________________________________ | GKX53: ______________________________________ | GLB53: ___________________________________________ | GLF53: ______________________________________ | GLJ53: ___________________________________________ | GLN53: ______________________________________ | GLR53: ___________________________________________ | GLV53: ______________________________________ | GLZ53: ___________________________________________ | GMD53: ______________________________________ | GMH53: ___________________________________________ | GML53: ______________________________________ | GMP53: ___________________________________________ | GMT53: ______________________________________ | GMX53: ___________________________________________ | GNB53: ______________________________________ | GNF53: ___________________________________________ | GNJ53: ______________________________________ | GNN53: ___________________________________________ | GNR53: ______________________________________ | GNV53: ___________________________________________ | GNZ53: ______________________________________ | GOD53: ___________________________________________ | GOH53: ______________________________________ | GOL53: ___________________________________________ | GOP53: ______________________________________ | GOT53: ___________________________________________ | GOX53: ______________________________________ | GPB53: ___________________________________________ | GPF53: ______________________________________ | GPJ53: ___________________________________________ | GPN53: ______________________________________ | GPR53: ___________________________________________ | GPV53: ______________________________________ | GPZ53: ___________________________________________ | GQD53: ______________________________________ | GQH53: ___________________________________________ | GQL53: ______________________________________ | GQP53: ___________________________________________ | GQT53: ______________________________________ | GQX53: ___________________________________________ | GRB53: ______________________________________ | GRF53: ___________________________________________ | GRJ53: ______________________________________ | GRN53: ___________________________________________ | GRR53: ______________________________________ | GRV53: ___________________________________________ | GRZ53: ______________________________________ | GSD53: ___________________________________________ | GSH53: ______________________________________ | GSL53: ___________________________________________ | GSP53: ______________________________________ | GST53: ___________________________________________ | GSX53: ______________________________________ | GTB53: ___________________________________________ | GTF53: ______________________________________ | GTJ53: ___________________________________________ | GTN53: ______________________________________ | GTR53: ___________________________________________ | GTV53: ______________________________________ | GTZ53: ___________________________________________ | GUD53: ______________________________________ | GUH53: ___________________________________________ | GUL53: ______________________________________ | GUP53: ___________________________________________ | GUT53: ______________________________________ | GUX53: ___________________________________________ | GVB53: ______________________________________ | GVF53: ___________________________________________ | GVJ53: ______________________________________ | GVN53: ___________________________________________ | GVR53: ______________________________________ | GVV53: ___________________________________________ | GVZ53: ______________________________________ | GWD53: ___________________________________________ | GWH53: ______________________________________ | GWL53: ___________________________________________ | GWP53: ______________________________________ | GWT53: ___________________________________________ | GWX53: ______________________________________ | GXB53: ___________________________________________ | GXF53: ______________________________________ | GXJ53: ___________________________________________ | GXN53: ______________________________________ | GXR53: ___________________________________________ | GXV53: ______________________________________ | GXZ53: ___________________________________________ | GYD53: ______________________________________ | GYH53: ___________________________________________ | GYL53: ______________________________________ | GYP53: ___________________________________________ | GYT53: ______________________________________ | GYX53: ___________________________________________ | GZB53: ______________________________________ | GZF53: ___________________________________________ | GZJ53: ______________________________________ | GZN53: ___________________________________________ | GZR53: ______________________________________ | GZV53: ___________________________________________ | GZZ53: ______________________________________ | HAD53: ___________________________________________ | HAH53: ______________________________________ | HAL53: ___________________________________________ | HAP53: ______________________________________ | HAT53: ___________________________________________ | HAX53: ______________________________________ | HBB53: ___________________________________________ | HBF53: ______________________________________ | HBJ53: ___________________________________________ | HBN53: ______________________________________ | HBR53: ___________________________________________ | HBV53: ______________________________________ | HBZ53: ___________________________________________ | HCD53: ______________________________________ | HCH53: ___________________________________________ | HCL53: ______________________________________ | HCP53: ___________________________________________ | HCT53: ______________________________________ | HCX53: ___________________________________________ | HDB53: ______________________________________ | HDF53: ___________________________________________ | HDJ53: ______________________________________ | HDN53: ___________________________________________ | HDR53: ______________________________________ | HDV53: ___________________________________________ | HDZ53: ______________________________________ | HED53: ___________________________________________ | HEH53: ______________________________________ | HEL53: ___________________________________________ | HEP53: ______________________________________ | HET53: ___________________________________________ | HEX53: ______________________________________ | HFB53: ___________________________________________ | HFF53: ______________________________________ | HFJ53: ___________________________________________ | HFN53: ______________________________________ | HFR53: ___________________________________________ | HFV53: ______________________________________ | HFZ53: ___________________________________________ | HGD53: ______________________________________ | HGH53: ___________________________________________ | HGL53: ______________________________________ | HGP53: ___________________________________________ | HGT53: ______________________________________ | HGX53: ___________________________________________ | HHB53: ______________________________________ | HHF53: ___________________________________________ | HHJ53: ______________________________________ | HHN53: ___________________________________________ | HHR53: ______________________________________ | HHV53: ___________________________________________ | HHZ53: ______________________________________ | HID53: ___________________________________________ | HIH53: ______________________________________ | HIL53: ___________________________________________ | HIP53: ______________________________________ | HIT53: ___________________________________________ | HIX53: ______________________________________ | HJB53: ___________________________________________ | HJF53: ______________________________________ | HJJ53: ___________________________________________ | HJN53: ______________________________________ | HJR53: ___________________________________________ | HJV53: ______________________________________ | HJZ53: ___________________________________________ | HKD53: ______________________________________ | HKH53: ___________________________________________ | HKL53: ______________________________________ | HKP53: ___________________________________________ | HKT53: ______________________________________ | HKX53: ___________________________________________ | HLB53: ______________________________________ | HLF53: ___________________________________________ | HLJ53: ______________________________________ | HLN53: ___________________________________________ | HLR53: ______________________________________ | HLV53: ___________________________________________ | HLZ53: ______________________________________ | HMD53: ___________________________________________ | HMH53: ______________________________________ | HML53: ___________________________________________ | HMP53: ______________________________________ | HMT53: ___________________________________________ | HMX53: ______________________________________ | HNB53: ___________________________________________ | HNF53: ______________________________________ | HNJ53: ___________________________________________ | HNN53: ______________________________________ | HNR53: ___________________________________________ | HNV53: ______________________________________ | HNZ53: ___________________________________________ | HOD53: ______________________________________ | HOH53: ___________________________________________ | HOL53: ______________________________________ | HOP53: ___________________________________________ | HOT53: ______________________________________ | HOX53: ___________________________________________ | HPB53: ______________________________________ | HPF53: ___________________________________________ | HPJ53: ______________________________________ | HPN53: ___________________________________________ | HPR53: ______________________________________ | HPV53: ___________________________________________ | HPZ53: ______________________________________ | HQD53: ___________________________________________ | HQH53: ______________________________________ | HQL53: ___________________________________________ | HQP53: ______________________________________ | HQT53: ___________________________________________ | HQX53: ______________________________________ | HRB53: ___________________________________________ | HRF53: ______________________________________ | HRJ53: ___________________________________________ | HRN53: ______________________________________ | HRR53: ___________________________________________ | HRV53: ______________________________________ | HRZ53: ___________________________________________ | HSD53: ______________________________________ | HSH53: ___________________________________________ | HSL53: ______________________________________ | HSP53: ___________________________________________ | HST53: ______________________________________ | HSX53: ___________________________________________ | HTB53: ______________________________________ | HTF53: ___________________________________________ | HTJ53: ______________________________________ | HTN53: ___________________________________________ | HTR53: ______________________________________ | HTV53: ___________________________________________ | HTZ53: ______________________________________ | HUD53: ___________________________________________ | HUH53: ______________________________________ | HUL53: ___________________________________________ | HUP53: ______________________________________ | HUT53: ___________________________________________ | HUX53: ______________________________________ | HVB53: ___________________________________________ | HVF53: ______________________________________ | HVJ53: ___________________________________________ | HVN53: ______________________________________ | HVR53: ___________________________________________ | HVV53: ______________________________________ | HVZ53: ___________________________________________ | HWD53: ______________________________________ | HWH53: ___________________________________________ | HWL53: ______________________________________ | HWP53: ___________________________________________ | HWT53: ______________________________________ | HWX53: ___________________________________________ | HXB53: ______________________________________ | HXF53: ___________________________________________ | HXJ53: ______________________________________ | HXN53: ___________________________________________ | HXR53: ______________________________________ | HXV53: ___________________________________________ | HXZ53: ______________________________________ | HYD53: ___________________________________________ | HYH53: ______________________________________ | HYL53: ___________________________________________ | HYP53: ______________________________________ | HYT53: ___________________________________________ | HYX53: ______________________________________ | HZB53: ___________________________________________ | HZF53: ______________________________________ | HZJ53: ___________________________________________ | HZN53: ______________________________________ | HZR53: ___________________________________________ | HZV53: ______________________________________ | HZZ53: ___________________________________________ | IAD53: ______________________________________ | IAH53: ___________________________________________ | IAL53: ______________________________________ | IAP53: ___________________________________________ | IAT53: ______________________________________ | IAX53: ___________________________________________ | IBB53: ______________________________________ | IBF53: ___________________________________________ | IBJ53: ______________________________________ | IBN53: ___________________________________________ | IBR53: ______________________________________ | IBV53: ___________________________________________ | IBZ53: ______________________________________ | ICD53: ___________________________________________ | ICH53: ______________________________________ | ICL53: ___________________________________________ | ICP53: ______________________________________ | ICT53: ___________________________________________ | ICX53: ______________________________________ | IDB53: ___________________________________________ | IDF53: ______________________________________ | IDJ53: ___________________________________________ | IDN53: ______________________________________ | IDR53: ___________________________________________ | IDV53: ______________________________________ | IDZ53: ___________________________________________ | IED53: ______________________________________ | IEH53: ___________________________________________ | IEL53: ______________________________________ | IEP53: ___________________________________________ | IET53: ______________________________________ | IEX53: ___________________________________________ | IFB53: ______________________________________ | IFF53: ___________________________________________ | IFJ53: ______________________________________ | IFN53: ___________________________________________ | IFR53: ______________________________________ | IFV53: ___________________________________________ | IFZ53: ______________________________________ | IGD53: ___________________________________________ | IGH53: ______________________________________ | IGL53: ___________________________________________ | IGP53: ______________________________________ | IGT53: ___________________________________________ | IGX53: ______________________________________ | IHB53: ___________________________________________ | IHF53: ______________________________________ | IHJ53: ___________________________________________ | IHN53: ______________________________________ | IHR53: ___________________________________________ | IHV53: ______________________________________ | IHZ53: ___________________________________________ | IID53: ______________________________________ | IIH53: ___________________________________________ | IIL53: ______________________________________ | IIP53: ___________________________________________ | IIT53: ______________________________________ | IIX53: ___________________________________________ | IJB53: ______________________________________ | IJF53: ___________________________________________ | IJJ53: ______________________________________ | IJN53: ___________________________________________ | IJR53: ______________________________________ | IJV53: ___________________________________________ | IJZ53: ______________________________________ | IKD53: ___________________________________________ | IKH53: ______________________________________ | IKL53: ___________________________________________ | IKP53: ______________________________________ | IKT53: ___________________________________________ | IKX53: ______________________________________ | ILB53: ___________________________________________ | ILF53: ______________________________________ | ILJ53: ___________________________________________ | ILN53: ______________________________________ | ILR53: ___________________________________________ | ILV53: ______________________________________ | ILZ53: ___________________________________________ | IMD53: ______________________________________ | IMH53: ___________________________________________ | IML53: ______________________________________ | IMP53: ___________________________________________ | IMT53: ______________________________________ | IMX53: ___________________________________________ | INB53: ______________________________________ | INF53: ___________________________________________ | INJ53: ______________________________________ | INN53: ___________________________________________ | INR53: ______________________________________ | INV53: ___________________________________________ | INZ53: ______________________________________ | IOD53: ___________________________________________ | IOH53: ______________________________________ | IOL53: ___________________________________________ | IOP53: ______________________________________ | IOT53: ___________________________________________ | IOX53: ______________________________________ | IPB53: ___________________________________________ | IPF53: ______________________________________ | IPJ53: ___________________________________________ | IPN53: ______________________________________ | IPR53: ___________________________________________ | IPV53: ______________________________________ | IPZ53: ___________________________________________ | IQD53: ______________________________________ | IQH53: ___________________________________________ | IQL53: ______________________________________ | IQP53: ___________________________________________ | IQT53: ______________________________________ | IQX53: ___________________________________________ | IRB53: ______________________________________ | IRF53: ___________________________________________ | IRJ53: ______________________________________ | IRN53: ___________________________________________ | IRR53: ______________________________________ | IRV53: ___________________________________________ | IRZ53: ______________________________________ | ISD53: ___________________________________________ | ISH53: ______________________________________ | ISL53: ___________________________________________ | ISP53: ______________________________________ | IST53: ___________________________________________ | ISX53: ______________________________________ | ITB53: ___________________________________________ | ITF53: ______________________________________ | ITJ53: ___________________________________________ | ITN53: ______________________________________ | ITR53: ___________________________________________ | ITV53: ______________________________________ | ITZ53: ___________________________________________ | IUD53: ______________________________________ | IUH53: ___________________________________________ | IUL53: ______________________________________ | IUP53: ___________________________________________ | IUT53: ______________________________________ | IUX53: ___________________________________________ | IVB53: ______________________________________ | IVF53: ___________________________________________ | IVJ53: ______________________________________ | IVN53: ___________________________________________ | IVR53: ______________________________________ | IVV53: ___________________________________________ | IVZ53: ______________________________________ | IWD53: ___________________________________________ | IWH53: ______________________________________ | IWL53: ___________________________________________ | IWP53: ______________________________________ | IWT53: ___________________________________________ | IWX53: ______________________________________ | IXB53: ___________________________________________ | IXF53: ______________________________________ | IXJ53: ___________________________________________ | IXN53: ______________________________________ | IXR53: ___________________________________________ | IXV53: ______________________________________ | IXZ53: ___________________________________________ | IYD53: ______________________________________ | IYH53: ___________________________________________ | IYL53: ______________________________________ | IYP53: ___________________________________________ | IYT53: ______________________________________ | IYX53: ___________________________________________ | IZB53: ______________________________________ | IZF53: ___________________________________________ | IZJ53: ______________________________________ | IZN53: ___________________________________________ | IZR53: ______________________________________ | IZV53: ___________________________________________ | IZZ53: ______________________________________ | JAD53: ___________________________________________ | JAH53: ______________________________________ | JAL53: ___________________________________________ | JAP53: ______________________________________ | JAT53: ___________________________________________ | JAX53: ______________________________________ | JBB53: ___________________________________________ | JBF53: ______________________________________ | JBJ53: ___________________________________________ | JBN53: ______________________________________ | JBR53: ___________________________________________ | JBV53: ______________________________________ | JBZ53: ___________________________________________ | JCD53: ______________________________________ | JCH53: ___________________________________________ | JCL53: ______________________________________ | JCP53: ___________________________________________ | JCT53: ______________________________________ | JCX53: ___________________________________________ | JDB53: ______________________________________ | JDF53: ___________________________________________ | JDJ53: ______________________________________ | JDN53: ___________________________________________ | JDR53: ______________________________________ | JDV53: ___________________________________________ | JDZ53: ______________________________________ | JED53: ___________________________________________ | JEH53: ______________________________________ | JEL53: ___________________________________________ | JEP53: ______________________________________ | JET53: ___________________________________________ | JEX53: ______________________________________ | JFB53: ___________________________________________ | JFF53: ______________________________________ | JFJ53: ___________________________________________ | JFN53: ______________________________________ | JFR53: ___________________________________________ | JFV53: ______________________________________ | JFZ53: ___________________________________________ | JGD53: ______________________________________ | JGH53: ___________________________________________ | JGL53: ______________________________________ | JGP53: ___________________________________________ | JGT53: ______________________________________ | JGX53: ___________________________________________ | JHB53: ______________________________________ | JHF53: ___________________________________________ | JHJ53: ______________________________________ | JHN53: ___________________________________________ | JHR53: ______________________________________ | JHV53: ___________________________________________ | JHZ53: ______________________________________ | JID53: ___________________________________________ | JIH53: ______________________________________ | JIL53: ___________________________________________ | JIP53: ______________________________________ | JIT53: ___________________________________________ | JIX53: ______________________________________ | JJB53: ___________________________________________ | JJF53: ______________________________________ | JJJ53: ___________________________________________ | JJN53: ______________________________________ | JJR53: ___________________________________________ | JJV53: ______________________________________ | JJZ53: ___________________________________________ | JKD53: ______________________________________ | JKH53: ___________________________________________ | JKL53: ______________________________________ | JKP53: ___________________________________________ | JKT53: ______________________________________ | JKX53: ___________________________________________ | JLB53: ______________________________________ | JLF53: ___________________________________________ | JLJ53: ______________________________________ | JLN53: ___________________________________________ | JLR53: ______________________________________ | JLV53: ___________________________________________ | JLZ53: ______________________________________ | JMD53: ___________________________________________ | JMH53: ______________________________________ | JML53: ___________________________________________ | JMP53: ______________________________________ | JMT53: ___________________________________________ | JMX53: ______________________________________ | JNB53: ___________________________________________ | JNF53: ______________________________________ | JNJ53: ___________________________________________ | JNN53: ______________________________________ | JNR53: ___________________________________________ | JNV53: ______________________________________ | JNZ53: ___________________________________________ | JOD53: ______________________________________ | JOH53: ___________________________________________ | JOL53: ______________________________________ | JOP53: ___________________________________________ | JOT53: ______________________________________ | JOX53: ___________________________________________ | JPB53: ______________________________________ | JPF53: ___________________________________________ | JPJ53: ______________________________________ | JPN53: ___________________________________________ | JPR53: ______________________________________ | JPV53: ___________________________________________ | JPZ53: ______________________________________ | JQD53: ___________________________________________ | JQH53: ______________________________________ | JQL53: ___________________________________________ | JQP53: ______________________________________ | JQT53: ___________________________________________ | JQX53: ______________________________________ | JRB53: ___________________________________________ | JRF53: ______________________________________ | JRJ53: ___________________________________________ | JRN53: ______________________________________ | JRR53: ___________________________________________ | JRV53: ______________________________________ | JRZ53: ___________________________________________ | JSD53: ______________________________________ | JSH53: ___________________________________________ | JSL53: ______________________________________ | JSP53: ___________________________________________ | JST53: ______________________________________ | JSX53: ___________________________________________ | JTB53: ______________________________________ | JTF53: ___________________________________________ | JTJ53: ______________________________________ | JTN53: ___________________________________________ | JTR53: ______________________________________ | JTV53: ___________________________________________ | JTZ53: ______________________________________ | JUD53: ___________________________________________ | JUH53: ______________________________________ | JUL53: ___________________________________________ | JUP53: ______________________________________ | JUT53: ___________________________________________ | JUX53: ______________________________________ | JVB53: ___________________________________________ | JVF53: ______________________________________ | JVJ53: ___________________________________________ | JVN53: ______________________________________ | JVR53: ___________________________________________ | JVV53: ______________________________________ | JVZ53: ___________________________________________ | JWD53: ______________________________________ | JWH53: ___________________________________________ | JWL53: ______________________________________ | JWP53: ___________________________________________ | JWT53: ______________________________________ | JWX53: ___________________________________________ | JXB53: ______________________________________ | JXF53: ___________________________________________ | JXJ53: ______________________________________ | JXN53: ___________________________________________ | JXR53: ______________________________________ | JXV53: ___________________________________________ | JXZ53: ______________________________________ | JYD53: ___________________________________________ | JYH53: ______________________________________ | JYL53: ___________________________________________ | JYP53: ______________________________________ | JYT53: ___________________________________________ | JYX53: ______________________________________ | JZB53: ___________________________________________ | JZF53: ______________________________________ | JZJ53: ___________________________________________ | JZN53: ______________________________________ | JZR53: ___________________________________________ | JZV53: ______________________________________ | JZZ53: ___________________________________________ | KAD53: ______________________________________ | KAH53: ___________________________________________ | KAL53: ______________________________________ | KAP53: ___________________________________________ | KAT53: ______________________________________ | KAX53: ___________________________________________ | KBB53: ______________________________________ | KBF53: ___________________________________________ | KBJ53: ______________________________________ | KBN53: ___________________________________________ | KBR53: ______________________________________ | KBV53: ___________________________________________ | KBZ53: ______________________________________ | KCD53: ___________________________________________ | KCH53: ______________________________________ | KCL53: ___________________________________________ | KCP53: ______________________________________ | KCT53: ___________________________________________ | KCX53: ______________________________________ | KDB53: ___________________________________________ | KDF53: ______________________________________ | KDJ53: ___________________________________________ | KDN53: ______________________________________ | KDR53: ___________________________________________ | KDV53: ______________________________________ | KDZ53: ___________________________________________ | KED53: ______________________________________ | KEH53: ___________________________________________ | KEL53: ______________________________________ | KEP53: ___________________________________________ | KET53: ______________________________________ | KEX53: ___________________________________________ | KFB53: ______________________________________ | KFF53: ___________________________________________ | KFJ53: ______________________________________ | KFN53: ___________________________________________ | KFR53: ______________________________________ | KFV53: ___________________________________________ | KFZ53: ______________________________________ | KGD53: ___________________________________________ | KGH53: ______________________________________ | KGL53: ___________________________________________ | KGP53: ______________________________________ | KGT53: ___________________________________________ | KGX53: ______________________________________ | KHB53: ___________________________________________ | KHF53: ______________________________________ | KHJ53: ___________________________________________ | KHN53: ______________________________________ | KHR53: ___________________________________________ | KHV53: ______________________________________ | KHZ53: ___________________________________________ | KID53: ______________________________________ | KIH53: ___________________________________________ | KIL53: ______________________________________ | KIP53: ___________________________________________ | KIT53: ______________________________________ | KIX53: ___________________________________________ | KJB53: ______________________________________ | KJF53: ___________________________________________ | KJJ53: ______________________________________ | KJN53: ___________________________________________ | KJR53: ______________________________________ | KJV53: ___________________________________________ | KJZ53: ______________________________________ | KKD53: ___________________________________________ | KKH53: ______________________________________ | KKL53: ___________________________________________ | KKP53: ______________________________________ | KKT53: ___________________________________________ | KKX53: ______________________________________ | KLB53: ___________________________________________ | KLF53: ______________________________________ | KLJ53: ___________________________________________ | KLN53: ______________________________________ | KLR53: ___________________________________________ | KLV53: ______________________________________ | KLZ53: ___________________________________________ | KMD53: ______________________________________ | KMH53: ___________________________________________ | KML53: ______________________________________ | KMP53: ___________________________________________ | KMT53: ______________________________________ | KMX53: ___________________________________________ | KNB53: ______________________________________ | KNF53: ___________________________________________ | KNJ53: ______________________________________ | KNN53: ___________________________________________ | KNR53: ______________________________________ | KNV53: ___________________________________________ | KNZ53: ______________________________________ | KOD53: ___________________________________________ | KOH53: ______________________________________ | KOL53: ___________________________________________ | KOP53: ______________________________________ | KOT53: ___________________________________________ | KOX53: ______________________________________ | KPB53: ___________________________________________ | KPF53: ______________________________________ | KPJ53: ___________________________________________ | KPN53: ______________________________________ | KPR53: ___________________________________________ | KPV53: ______________________________________ | KPZ53: ___________________________________________ | KQD53: ______________________________________ | KQH53: ___________________________________________ | KQL53: ______________________________________ | KQP53: ___________________________________________ | KQT53: ______________________________________ | KQX53: ___________________________________________ | KRB53: ______________________________________ | KRF53: ___________________________________________ | KRJ53: ______________________________________ | KRN53: ___________________________________________ | KRR53: ______________________________________ | KRV53: ___________________________________________ | KRZ53: ______________________________________ | KSD53: ___________________________________________ | KSH53: ______________________________________ | KSL53: ___________________________________________ | KSP53: ______________________________________ | KST53: ___________________________________________ | KSX53: ______________________________________ | KTB53: ___________________________________________ | KTF53: ______________________________________ | KTJ53: ___________________________________________ | KTN53: ______________________________________ | KTR53: ___________________________________________ | KTV53: ______________________________________ | KTZ53: ___________________________________________ | KUD53: ______________________________________ | KUH53: ___________________________________________ | KUL53: ______________________________________ | KUP53: ___________________________________________ | KUT53: ______________________________________ | KUX53: ___________________________________________ | KVB53: ______________________________________ | KVF53: ___________________________________________ | KVJ53: ______________________________________ | KVN53: ___________________________________________ | KVR53: ______________________________________ | KVV53: ___________________________________________ | KVZ53: ______________________________________ | KWD53: ___________________________________________ | KWH53: ______________________________________ | KWL53: ___________________________________________ | KWP53: ______________________________________ | KWT53: ___________________________________________ | KWX53: ______________________________________ | KXB53: ___________________________________________ | KXF53: ______________________________________ | KXJ53: ___________________________________________ | KXN53: ______________________________________ | KXR53: ___________________________________________ | KXV53: ______________________________________ | KXZ53: ___________________________________________ | KYD53: ______________________________________ | KYH53: ___________________________________________ | KYL53: ______________________________________ | KYP53: ___________________________________________ | KYT53: ______________________________________ | KYX53: ___________________________________________ | KZB53: ______________________________________ | KZF53: ___________________________________________ | KZJ53: ______________________________________ | KZN53: ___________________________________________ | KZR53: ______________________________________ | KZV53: ___________________________________________ | KZZ53: ______________________________________ | LAD53: ___________________________________________ | LAH53: ______________________________________ | LAL53: ___________________________________________ | LAP53: ______________________________________ | LAT53: ___________________________________________ | LAX53: ______________________________________ | LBB53: ___________________________________________ | LBF53: ______________________________________ | LBJ53: ___________________________________________ | LBN53: ______________________________________ | LBR53: ___________________________________________ | LBV53: ______________________________________ | LBZ53: ___________________________________________ | LCD53: ______________________________________ | LCH53: ___________________________________________ | LCL53: ______________________________________ | LCP53: ___________________________________________ | LCT53: ______________________________________ | LCX53: ___________________________________________ | LDB53: ______________________________________ | LDF53: ___________________________________________ | LDJ53: ______________________________________ | LDN53: ___________________________________________ | LDR53: ______________________________________ | LDV53: ___________________________________________ | LDZ53: ______________________________________ | LED53: ___________________________________________ | LEH53: ______________________________________ | LEL53: ___________________________________________ | LEP53: ______________________________________ | LET53: ___________________________________________ | LEX53: ______________________________________ | LFB53: ___________________________________________ | LFF53: ______________________________________ | LFJ53: ___________________________________________ | LFN53: ______________________________________ | LFR53: ___________________________________________ | LFV53: ______________________________________ | LFZ53: ___________________________________________ | LGD53: ______________________________________ | LGH53: ___________________________________________ | LGL53: ______________________________________ | LGP53: ___________________________________________ | LGT53: ______________________________________ | LGX53: ___________________________________________ | LHB53: ______________________________________ | LHF53: ___________________________________________ | LHJ53: ______________________________________ | LHN53: ___________________________________________ | LHR53: ______________________________________ | LHV53: ___________________________________________ | LHZ53: ______________________________________ | LID53: ___________________________________________ | LIH53: ______________________________________ | LIL53: ___________________________________________ | LIP53: ______________________________________ | LIT53: ___________________________________________ | LIX53: ______________________________________ | LJB53: ___________________________________________ | LJF53: ______________________________________ | LJJ53: ___________________________________________ | LJN53: ______________________________________ | LJR53: ___________________________________________ | LJV53: ______________________________________ | LJZ53: ___________________________________________ | LKD53: ___________________________________________ | LKH53: ______________________________________ | LKL53: ___________________________________________ | LKP53: ______________________________________ | LKT53: ___________________________________________ | LKX53: ______________________________________ | LLB53: ___________________________________________ | LLF53: ______________________________________ | LLJ53: ___________________________________________ | LLN53: ______________________________________ | LLR53: ___________________________________________ | LLV53: ______________________________________ | LLZ53: ___________________________________________ | LMD53: ______________________________________ | LMH53: ___________________________________________ | LML53: ______________________________________ | LMP53: ___________________________________________ | LMT53: ______________________________________ | LMX53: ___________________________________________ | LNB53: ______________________________________ | LNF53: ___________________________________________ | LNJ53: ______________________________________ | LNN53: ___________________________________________ | LNR53: ______________________________________ | LNV53: ___________________________________________ | LNZ53: ______________________________________ | LOD53: ___________________________________________ | LOH53: ______________________________________ | LOL53: ___________________________________________ | LOP53: ______________________________________ | LOT53: ___________________________________________ | LOX53: ______________________________________ | LPB53: ___________________________________________ | LPF53: ______________________________________ | LPJ53: ___________________________________________ | LPN53: ______________________________________ | LPR53: ___________________________________________ | LPV53: ______________________________________ | LPZ53: ___________________________________________ | LQD53: ______________________________________ | LQH53: ___________________________________________ | LQL53: ______________________________________ | LQP53: ___________________________________________ | LQT53: ______________________________________ | LQX53: ___________________________________________ | LRB53: ______________________________________ | LRF53: ___________________________________________ | LRJ53: ______________________________________ | LRN53: ___________________________________________ | LRR53: ______________________________________ | LRV53: ___________________________________________ | LRZ53: ______________________________________ | LSD53: ___________________________________________ | LSH53: ______________________________________ | LSL53: ___________________________________________ | LSP53: ______________________________________ | LST53: ___________________________________________ | LSX53: ______________________________________ | LTB53: ___________________________________________ | LTF53: ______________________________________ | LTJ53: ___________________________________________ | LTN53: ______________________________________ | LTR53: ___________________________________________ | LTV53: ______________________________________ | LTZ53: ___________________________________________ | LUD53: ______________________________________ | LUH53: ___________________________________________ | LUL53: ______________________________________ | LUP53: ___________________________________________ | LUT53: ______________________________________ | LUX53: ___________________________________________ | LVB53: ______________________________________ | LVF53: ___________________________________________ | LVJ53: ______________________________________ | LVN53: ___________________________________________ | LVR53: ______________________________________ | LVV53: ___________________________________________ | LVZ53: ______________________________________ | LWD53: ___________________________________________ | LWH53: ______________________________________ | LWL53: ___________________________________________ | LWP53: ______________________________________ | LWT53: ___________________________________________ | LWX53: ______________________________________ | LXB53: ___________________________________________ | LXF53: ______________________________________ | LXJ53: ___________________________________________ | LXN53: ______________________________________ | LXR53: ___________________________________________ | LXV53: ______________________________________ | LXZ53: ___________________________________________ | LYD53: ______________________________________ | LYH53: ___________________________________________ | LYL53: ______________________________________ | LYP53: ___________________________________________ | LYT53: ______________________________________ | LYX53: ___________________________________________ | LZB53: ______________________________________ | LZF53: ___________________________________________ | LZJ53: ______________________________________ | LZN53: ___________________________________________ | LZR53: ______________________________________ | LZV53: ___________________________________________ | LZZ53: ______________________________________ | MAD53: ___________________________________________ | MAH53: ______________________________________ | MAL53: ___________________________________________ | MAP53: ______________________________________ | MAT53: ___________________________________________ | MAX53: ______________________________________ | MBB53: ___________________________________________ | MBF53: ______________________________________ | MBJ53: ___________________________________________ | MBN53: ______________________________________ | MBR53: ___________________________________________ | MBV53: ______________________________________ | MBZ53: ___________________________________________ | MCD53: ______________________________________ | MCH53: ___________________________________________ | MCL53: ______________________________________ | MCP53: ___________________________________________ | MCT53: ______________________________________ | MCX53: ___________________________________________ | MDB53: ______________________________________ | MDF53: ___________________________________________ | MDJ53: ______________________________________ | MDN53: ___________________________________________ | MDR53: ______________________________________ | MDV53: ___________________________________________ | MDZ53: ______________________________________ | MED53: ___________________________________________ | MEH53: ______________________________________ | MEL53: ___________________________________________ | MEP53: ______________________________________ | MET53: ___________________________________________ | MEX53: ______________________________________ | MFB53: ___________________________________________ | MFF53: ______________________________________ | MFJ53: ___________________________________________ | MFN53: ______________________________________ | MFR53: ___________________________________________ | MFV53: ______________________________________ | MFZ53: ___________________________________________ | MGD53: ______________________________________ | MGH53: ___________________________________________ | MGL53: ______________________________________ | MGP53: ___________________________________________ | MGT53: ______________________________________ | MGX53: ___________________________________________ | MHB53: ______________________________________ | MHF53: ___________________________________________ | MHJ53: ______________________________________ | MHN53: ___________________________________________ | MHR53: ______________________________________ | MHV53: ___________________________________________ | MHZ53: ______________________________________ | MID53: ___________________________________________ | MIH53: ______________________________________ | MIL53: ___________________________________________ | MIP53: ______________________________________ | MIT53: ___________________________________________ | MIX53: ______________________________________ | MJB53: ___________________________________________ | MJF53: ______________________________________ | MJJ53: ___________________________________________ | MJN53: ______________________________________ | MJR53: ___________________________________________ | MJV53: ______________________________________ | MJZ53: ___________________________________________ | MKD53: ______________________________________ | MKH53: ___________________________________________ | MKL53: ______________________________________ | MKP53: ___________________________________________ | MKT53: ______________________________________ | MKX53: ___________________________________________ | MLB53: ______________________________________ | MLF53: ___________________________________________ | MLJ53: ______________________________________ | MLN53: ___________________________________________ | MLR53: ______________________________________ | MLV53: ___________________________________________ | MLZ53: ______________________________________ | MMD53: ___________________________________________ | MMH53: ______________________________________ | MML53: ___________________________________________ | MMP53: ______________________________________ | MMT53: ___________________________________________ | MMX53: ______________________________________ | MNB53: ___________________________________________ | MNF53: ______________________________________ | MNJ53: ___________________________________________ | MNN53: ______________________________________ | MNR53: ___________________________________________ | MNV53: ______________________________________ | MNZ53: ___________________________________________ | MOD53: ______________________________________ | MOH53: ___________________________________________ | MOL53: ______________________________________ | MOP53: ___________________________________________ | MOT53: ______________________________________ | MOX53: ___________________________________________ | MPB53: ______________________________________ | MPF53: ___________________________________________ | MPJ53: ______________________________________ | MPN53: ___________________________________________ | MPR53: ______________________________________ | MPV53: ___________________________________________ | MPZ53: ______________________________________ | MQD53: ___________________________________________ | MQH53: ______________________________________ | MQL53: ___________________________________________ | MQP53: ______________________________________ | MQT53: ___________________________________________ | MQX53: ______________________________________ | MRB53: ___________________________________________ | MRF53: ______________________________________ | MRJ53: ___________________________________________ | MRN53: ______________________________________ | MRR53: ___________________________________________ | MRV53: ______________________________________ | MRZ53: ___________________________________________ | MSD53: ______________________________________ | MSH53: ___________________________________________ | MSL53: ______________________________________ | MSP53: ___________________________________________ | MST53: ______________________________________ | MSX53: ___________________________________________ | MTB53: ______________________________________ | MTF53: ___________________________________________ | MTJ53: ______________________________________ | MTN53: ___________________________________________ | MTR53: ______________________________________ | MTV53: ___________________________________________ | MTZ53: ______________________________________ | MUD53: ___________________________________________ | MUH53: ______________________________________ | MUL53: ___________________________________________ | MUP53: ______________________________________ | MUT53: ___________________________________________ | MUX53: ______________________________________ | MVB53: ___________________________________________ | MVF53: ______________________________________ | MVJ53: ___________________________________________ | MVN53: ______________________________________ | MVR53: ___________________________________________ | MVV53: ______________________________________ | MVZ53: ___________________________________________ | MWD53: ______________________________________ | MWH53: ___________________________________________ | MWL53: ______________________________________ | MWP53: ___________________________________________ | MWT53: ______________________________________ | MWX53: ___________________________________________ | MXB53: ______________________________________ | MXF53: ___________________________________________ | MXJ53: ______________________________________ | MXN53: ___________________________________________ | MXR53: ______________________________________ | MXV53: ___________________________________________ | MXZ53: ______________________________________ | MYD53: ___________________________________________ | MYH53: ______________________________________ | MYL53: ___________________________________________ | MYP53: ______________________________________ | MYT53: ___________________________________________ | MYX53: ______________________________________ | MZB53: ___________________________________________ | MZF53: ______________________________________ | MZJ53: ___________________________________________ | MZN53: ______________________________________ | MZR53: ___________________________________________ | MZV53: ______________________________________ | MZZ53: ___________________________________________ | NAD53: ______________________________________ | NAH53: ___________________________________________ | NAL53: ______________________________________ | NAP53: ___________________________________________ | NAT53: ______________________________________ | NAX53: ___________________________________________ | NBB53: ______________________________________ | NBF53: ___________________________________________ | NBJ53: ______________________________________ | NBN53: ___________________________________________ | NBR53: ______________________________________ | NBV53: ___________________________________________ | NBZ53: ______________________________________ | NCD53: ___________________________________________ | NCH53: ______________________________________ | NCL53: ___________________________________________ | NCP53: ______________________________________ | NCT53: ___________________________________________ | NCX53: ______________________________________ | NDB53: ___________________________________________ | NDF53: ______________________________________ | NDJ53: ___________________________________________ | NDN53: ______________________________________ | NDR53: ___________________________________________ | NDV53: ______________________________________ | NDZ53: ___________________________________________ | NED53: ______________________________________ | NEH53: ___________________________________________ | NEL53: ______________________________________ | NEP53: ___________________________________________ | NET53: ______________________________________ | NEX53: ___________________________________________ | NFB53: ______________________________________ | NFF53: ___________________________________________ | NFJ53: ______________________________________ | NFN53: ___________________________________________ | NFR53: ______________________________________ | NFV53: ___________________________________________ | NFZ53: ______________________________________ | NGD53: ___________________________________________ | NGH53: ______________________________________ | NGL53: ___________________________________________ | NGP53: ______________________________________ | NGT53: ___________________________________________ | NGX53: ______________________________________ | NHB53: ___________________________________________ | NHF53: ______________________________________ | NHJ53: ___________________________________________ | NHN53: ______________________________________ | NHR53: ___________________________________________ | NHV53: ______________________________________ | NHZ53: ___________________________________________ | NID53: ______________________________________ | NIH53: ___________________________________________ | NIL53: ______________________________________ | NIP53: ___________________________________________ | NIT53: ______________________________________ | NIX53: ___________________________________________ | NJB53: ______________________________________ | NJF53: ___________________________________________ | NJJ53: ______________________________________ | NJN53: ___________________________________________ | NJR53: ______________________________________ | NJV53: ___________________________________________ | NJZ53: ______________________________________ | NKD53: ___________________________________________ | NKH53: ______________________________________ | NKL53: ___________________________________________ | NKP53: ______________________________________ | NKT53: ___________________________________________ | NKX53: ______________________________________ | NLB53: ___________________________________________ | NLF53: ______________________________________ | NLJ53: ___________________________________________ | NLN53: ______________________________________ | NLR53: ___________________________________________ | NLV53: ______________________________________ | NLZ53: ___________________________________________ | NMD53: ______________________________________ | NMH53: ___________________________________________ | NML53: ______________________________________ | NMP53: ___________________________________________ | NMT53: ______________________________________ | NMX53: ___________________________________________ | NNB53: ______________________________________ | NNF53: ___________________________________________ | NNJ53: ______________________________________ | NNN53: ___________________________________________ | NNR53: ______________________________________ | NNV53: ___________________________________________ | NNZ53: ______________________________________ | NOD53: ___________________________________________ | NOH53: ______________________________________ | NOL53: ___________________________________________ | NOP53: ______________________________________ | NOT53: ___________________________________________ | NOX53: ______________________________________ | NPB53: ___________________________________________ | NPF53: ______________________________________ | NPJ53: ___________________________________________ | NPN53: ______________________________________ | NPR53: ___________________________________________ | NPV53: ______________________________________ | NPZ53: ___________________________________________ | NQD53: ______________________________________ | NQH53: ___________________________________________ | NQL53: ______________________________________ | NQP53: ___________________________________________ | NQT53: ______________________________________ | NQX53: ___________________________________________ | NRB53: ______________________________________ | NRF53: ___________________________________________ | NRJ53: ______________________________________ | NRN53: ___________________________________________ | NRR53: ______________________________________ | NRV53: ___________________________________________ | NRZ53: ______________________________________ | NSD53: ___________________________________________ | NSH53: ______________________________________ | NSL53: ___________________________________________ | NSP53: ______________________________________ | NST53: ___________________________________________ | NSX53: ______________________________________ | NTB53: ___________________________________________ | NTF53: ______________________________________ | NTJ53: ___________________________________________ | NTN53: ______________________________________ | NTR53: ___________________________________________ | NTV53: ______________________________________ | NTZ53: ___________________________________________ | NUD53: ______________________________________ | NUH53: ___________________________________________ | NUL53: ______________________________________ | NUP53: ___________________________________________ | NUT53: ______________________________________ | NUX53: ___________________________________________ | NVB53: ______________________________________ | NVF53: ___________________________________________ | NVJ53: ______________________________________ | NVN53: ___________________________________________ | NVR53: ______________________________________ | NVV53: ___________________________________________ | NVZ53: ______________________________________ | NWD53: ___________________________________________ | NWH53: ______________________________________ | NWL53: ___________________________________________ | NWP53: ______________________________________ | NWT53: ___________________________________________ | NWX53: ______________________________________ | NXB53: ___________________________________________ | NXF53: ______________________________________ | NXJ53: ___________________________________________ | NXN53: ______________________________________ | NXR53: ___________________________________________ | NXV53: ______________________________________ | NXZ53: ___________________________________________ | NYD53: ______________________________________ | NYH53: ___________________________________________ | NYL53: ______________________________________ | NYP53: ___________________________________________ | NYT53: ______________________________________ | NYX53: ___________________________________________ | NZB53: ______________________________________ | NZF53: ___________________________________________ | NZJ53: ______________________________________ | NZN53: ___________________________________________ | NZR53: ______________________________________ | NZV53: ___________________________________________ | NZZ53: ______________________________________ | OAD53: ___________________________________________ | OAH53: ______________________________________ | OAL53: ___________________________________________ | OAP53: ______________________________________ | OAT53: ___________________________________________ | OAX53: ______________________________________ | OBB53: ___________________________________________ | OBF53: ______________________________________ | OBJ53: ___________________________________________ | OBN53: ______________________________________ | OBR53: ___________________________________________ | OBV53: ______________________________________ | OBZ53: ___________________________________________ | OCD53: ______________________________________ | OCH53: ___________________________________________ | OCL53: ______________________________________ | OCP53: ___________________________________________ | OCT53: ______________________________________ | OCX53: ___________________________________________ | ODB53: ______________________________________ | ODF53: ___________________________________________ | ODJ53: ______________________________________ | ODN53: ___________________________________________ | ODR53: ______________________________________ | ODV53: ___________________________________________ | ODZ53: ______________________________________ | OED53: ___________________________________________ | OEH53: ______________________________________ | OEL53: ___________________________________________ | OEP53: ______________________________________ | OET53: ___________________________________________ | OEX53: ______________________________________ | OFB53: ___________________________________________ | OFF53: ______________________________________ | OFJ53: ___________________________________________ | OFN53: ______________________________________ | OFR53: ___________________________________________ | OFV53: ______________________________________ | OFZ53: ___________________________________________ | OGD53: ______________________________________ | OGH53: ___________________________________________ | OGL53: ______________________________________ | OGP53: ___________________________________________ | OGT53: ______________________________________ | OGX53: ___________________________________________ | OHB53: ______________________________________ | OHF53: ___________________________________________ | OHJ53: ______________________________________ | OHN53: ___________________________________________ | OHR53: ______________________________________ | OHV53: ___________________________________________ | OHZ53: ______________________________________ | OID53: ___________________________________________ | OIH53: ______________________________________ | OIL53: ___________________________________________ | OIP53: ______________________________________ | OIT53: ___________________________________________ | OIX53: ______________________________________ | OJB53: ___________________________________________ | OJF53: ______________________________________ | OJJ53: ___________________________________________ | OJN53: ______________________________________ | OJR53: ___________________________________________ | OJV53: ______________________________________ | OJZ53: ___________________________________________ | OKD53: ______________________________________ | OKH53: ___________________________________________ | OKL53: ______________________________________ | OKP53: ___________________________________________ | OKT53: ______________________________________ | OKX53: ___________________________________________ | OLB53: ______________________________________ | OLF53: ___________________________________________ | OLJ53: ______________________________________ | OLN53: ___________________________________________ | OLR53: ______________________________________ | OLV53: ___________________________________________ | OLZ53: ______________________________________ | OMD53: ___________________________________________ | OMH53: ______________________________________ | OML53: ___________________________________________ | OMP53: ______________________________________ | OMT53: ___________________________________________ | OMX53: ______________________________________ | ONB53: ___________________________________________ | ONF53: ______________________________________ | ONJ53: ___________________________________________ | ONN53: ______________________________________ | ONR53: ___________________________________________ | ONV53: ______________________________________ | ONZ53: ___________________________________________ | OOD53: ______________________________________ | OOH53: ___________________________________________ | OOL53: ______________________________________ | OOP53: ___________________________________________ | OOT53: ______________________________________ | OOX53: ___________________________________________ | OPB53: ______________________________________ | OPF53: ___________________________________________ | OPJ53: ______________________________________ | OPN53: ___________________________________________ | OPR53: ______________________________________ | OPV53: ___________________________________________ | OPZ53: ______________________________________ | OQD53: ___________________________________________ | OQH53: ______________________________________ | OQL53: ___________________________________________ | OQP53: ______________________________________ | OQT53: ___________________________________________ | OQX53: ______________________________________ | ORB53: ___________________________________________ | ORF53: ______________________________________ | ORJ53: ___________________________________________ | ORN53: ______________________________________ | ORR53: ___________________________________________ | ORV53: ______________________________________ | ORZ53: ___________________________________________ | OSD53: ______________________________________ | OSH53: ___________________________________________ | OSL53: ______________________________________ | OSP53: ___________________________________________ | OST53: ______________________________________ | OSX53: ___________________________________________ | OTB53: ______________________________________ | OTF53: ___________________________________________ | OTJ53: ______________________________________ | OTN53: ___________________________________________ | OTR53: ______________________________________ | OTV53: ___________________________________________ | OTZ53: ______________________________________ | OUD53: ___________________________________________ | OUH53: ______________________________________ | OUL53: ___________________________________________ | OUP53: ______________________________________ | OUT53: ___________________________________________ | OUX53: ______________________________________ | OVB53: ___________________________________________ | OVF53: ______________________________________ | OVJ53: ___________________________________________ | OVN53: ______________________________________ | OVR53: ___________________________________________ | OVV53: ______________________________________ | OVZ53: ___________________________________________ | OWD53: ______________________________________ | OWH53: ___________________________________________ | OWL53: ______________________________________ | OWP53: ___________________________________________ | OWT53: ______________________________________ | OWX53: ___________________________________________ | OXB53: ______________________________________ | OXF53: ___________________________________________ | OXJ53: ______________________________________ | OXN53: ___________________________________________ | OXR53: ______________________________________ | OXV53: ___________________________________________ | OXZ53: ______________________________________ | OYD53: ___________________________________________ | OYH53: ______________________________________ | OYL53: ___________________________________________ | OYP53: ______________________________________ | OYT53: ___________________________________________ | OYX53: ______________________________________ | OZB53: ___________________________________________ | OZF53: ______________________________________ | OZJ53: ___________________________________________ | OZN53: ______________________________________ | OZR53: ___________________________________________ | OZV53: ______________________________________ | OZZ53: ___________________________________________ | PAD53: ______________________________________ | PAH53: ___________________________________________ | PAL53: ______________________________________ | PAP53: ___________________________________________ | PAT53: ______________________________________ | PAX53: ___________________________________________ | PBB53: ______________________________________ | PBF53: ___________________________________________ | PBJ53: ______________________________________ | PBN53: ___________________________________________ | PBR53: ______________________________________ | PBV53: ___________________________________________ | PBZ53: ______________________________________ | PCD53: ___________________________________________ | PCH53: ______________________________________ | PCL53: ___________________________________________ | PCP53: ______________________________________ | PCT53: ___________________________________________
